Workbook

Sheet INFO
A1: PROGRAMME DE GESTION CHAMPIONNAT DE FRANCE DES CLUBS 10 METRES
A3: COMPETITION
A4: date : | B4: 15 et 16 janvier 2021
A5: lieu : | B5: PONS
A6: saison : | B6: 2021-2022
A7: Discipline : | B7: PISTOLET | C7: (CARABINE ou PISTOLET)
A8: Nombre d'équipe : | B8: 4
A9: LIGUE : | B9: POITOU-CHARENTES | C9: (EN MAJUSCULE)
A11: RESPONSABLE DE LA SAISIE
A12: NOM Prénom : | B12: POISSONNET Pierre
A13: téléphone : | B13: 06 85 47 62 84
A14: adresse électronique : | B14: gestcompte@cd-tir-17.org
A16: Ce programme n'est pas protégé, je vous conseille d'en créer une copie avant utilisation afin de pallier à de possibles erreurs de manipulation. Pour tout problème lié aux règlements, veuillez consulter le document : mode d'emploi cdfc 10m.pdf. Pour toute information complémentaire ou modification particulière, contacter :
A17: Monsieur Philippe QUENTEL
A18: pquentel@fftir.org
A19: 01 58 05 45 32

Sheet saisie
A3: =CONCATENATE("MATCH DE QUALIFICATION"," - ",INFO!B7," - ",INFO!B9) -> MATCH DE QUALIFICATION - PISTOLET - POITOU-CHARENTES
A5: POSTE | B5: Cl. | C5: CLUB | D5: N° club | E5: Nom | F5: Séries | I5: Total | J5: M* | K5: Nom | L5: Séries | O5: Total | P5: M* | Q5: Nom | R5: Séries | U5: Total | V5: M* | W5: Nom | X5: Séries | AA5: Total | AB5: M* | AC5: Nom | AD5: Séries | AG5: Total | AH5: M* | AI5: TT | AJ5: Bar. | AL5: TOTAL
E6: 1er Tireur | F6: 1 | G6: 2 | H6: 3 | K6: 2ème Tireur | L6: 1 | M6: 2 | N6: 3 | Q6: 3ème Tireur | R6: 1 | S6: 2 | T6: 3 | W6: 4ème Tireur | X6: 1 | Y6: 2 | Z6: 3 | AC6: 5ème Tireur | AD6: 1 | AE6: 2 | AF6: 3
A7: 1 | B7: =RANK(AL7,$AL$7:$AL$26,0) -> 3 | C7: JONZAC S.J.T | D7: 1717165 | E7: GIOVANNONE Philippe | F7: 84 | G7: 80 | H7: 83 | I7: =SUM(F7:H7) -> 247 | K7: SOURIS Christine | L7: 81 | M7: 75 | N7: 81 | O7: =SUM(L7:N7) -> 237 | Q7: ACHTOUK Kenza | R7: 92 | S7: 92 | T7: 88 | U7: =SUM(R7:T7) -> 272 | W7: ARRIGONI Stéphane | X7: 80 | Y7: 81 | Z7: 89 | AA7: =SUM(X7:Z7) -> 250 | AC7: CORMELIER Hervé | AD7: 91 | AE7: 88 | AF7: 83 | AG7: =SUM(AD7:AF7) -> 262 | AI7: =SUM(I7+O7+U7+AA7+AG7) -> 1268 | AJ7: =J7+P7+V7+AB7+AH7 -> 0 | AL7: =I7+O7+U7+AA7+AG7+(0.000001*(J7+P7+V7+AB7+AH7))+(0.000000001*(H7+N7+T7+Z7+AF7))+(0.000000000001*(G7+M7+S7+Y7+AE7)) -> 1268
A8: 2 | B8: 2 | C8: PONS A.P.T.S | D8: 1717100 | E8: DEBAIN Nathalie | F8: 80 | G8: 82 | H8: 75 | I8: =SUM(F8:H8) -> 237 | K8: ROUSSEAU Valérie | L8: 83 | M8: 82 | N8: 92 | O8: =SUM(L8:N8) -> 257 | Q8: ROUSSEAU Thierry | R8: 87 | S8: 83 | T8: 85 | U8: =SUM(R8:T8) -> 255 | W8: POULLY Pascal | X8: 84 | Y8: 86 | Z8: 89 | AA8: =SUM(X8:Z8) -> 259 | AC8: BERNARD Kevin | AD8: 89 | AE8: 90 | AF8: 91 | AG8: =SUM(AD8:AF8) -> 270 | AI8: =SUM(I8+O8+U8+AA8+AG8) -> 1278 | AJ8: =J8+P8+V8+AB8+AH8 -> 0 | AL8: =I8+O8+U8+AA8+AG8+(0.000001*(J8+P8+V8+AB8+AH8))+(0.000000001*(H8+N8+T8+Z8+AF8))+(0.000000000001*(G8+M8+S8+Y8+AE8)) -> 1278
A9: 3 | B9: 1 | C9: ROCHEFORT T.S.R | D9: 1717160 | E9: BAUDET Philippe | F9: 89 | G9: 90 | H9: 88 | I9: =SUM(F9:H9) -> 267 | K9: BERGOGNE Cyril | L9: 95 | M9: 91 | N9: 95 | O9: =SUM(L9:N9) -> 281 | Q9: MERCIER Rémy | R9: 87 | S9: 88 | T9: 86 | U9: =SUM(R9:T9) -> 261 | W9: BRIAND Ptrick | X9: 83 | Y9: 74 | Z9: 77 | AA9: =SUM(X9:Z9) -> 234 | AC9: MERCIER Mickael | AD9: 88 | AE9: 90 | AF9: 91 | AG9: =SUM(AD9:AF9) -> 269 | AI9: =SUM(I9+O9+U9+AA9+AG9) -> 1312 | AJ9: 0 | AL9: 1312
A10: 4 | B10: 4 | C10: SAINTES S.S.T | D10: 1717031 | E10: JACQUES Christophe | F10: 89 | G10: 88 | H10: 88 | I10: =SUM(F10:H10) -> 265 | K10: RABAT Catherine | L10: 52 | M10: 46 | N10: 33 | O10: =SUM(L10:N10) -> 131 | Q10: SOULIER Jean | R10: 81 | S10: 84 | T10: 83 | U10: =SUM(R10:T10) -> 248 | W10: BOIN Bertrand | X10: 71 | Y10: 75 | Z10: 79 | AA10: =SUM(X10:Z10) -> 225 | AC10: FLEURET Eric | AD10: 92 | AE10: 90 | AF10: 91 | AG10: =SUM(AD10:AF10) -> 273 | AI10: =SUM(I10+O10+U10+AA10+AG10) -> 1142 | AJ10: 0 | AL10: 1142
A11: 5 | B11: 5 | I11: 0 | O11: 0 | U11: 0 | AA11: 0 | AG11: 0 | AI11: 0 | AJ11: 0 | AL11: 0
A12: 6 | B12: 5 | I12: 0 | O12: 0 | U12: 0 | AA12: 0 | AG12: 0 | AI12: 0 | AJ12: 0 | AL12: 0
A13: 7 | B13: 5 | I13: 0 | O13: 0 | U13: 0 | AA13: 0 | AG13: 0 | AI13: 0 | AJ13: 0 | AL13: 0
A14: 8 | B14: 5 | I14: 0 | O14: 0 | U14: 0 | AA14: 0 | AG14: 0 | AI14: 0 | AJ14: 0 | AL14: 0
A15: 9 | B15: 5 | I15: 0 | O15: 0 | U15: 0 | AA15: 0 | AG15: 0 | AI15: 0 | AJ15: 0 | AL15: 0
A16: 10 | B16: 5 | I16: 0 | O16: 0 | U16: 0 | AA16: 0 | AG16: 0 | AI16: 0 | AJ16: 0 | AL16: 0
A17: 11 | B17: 5 | I17: 0 | O17: 0 | U17: 0 | AA17: 0 | AG17: 0 | AI17: 0 | AJ17: 0 | AL17: 0
A18: 12 | B18: 5 | I18: 0 | O18: 0 | U18: 0 | AA18: 0 | AG18: 0 | AI18: 0 | AJ18: 0 | AL18: 0
A19: 13 | B19: 5 | I19: 0 | O19: 0 | U19: 0 | AA19: 0 | AG19: 0 | AI19: 0 | AJ19: 0 | AL19: 0
A20: 14 | B20: 5 | I20: 0 | O20: 0 | U20: 0 | AA20: 0 | AG20: 0 | AI20: 0 | AJ20: 0 | AL20: 0
A21: 15 | B21: 5 | I21: 0 | O21: 0 | U21: 0 | AA21: 0 | AG21: 0 | AI21: 0 | AJ21: 0 | AL21: 0
A22: 16 | B22: 5 | I22: 0 | O22: 0 | U22: 0 | AA22: 0 | AG22: 0 | AI22: 0 | AJ22: 0 | AL22: 0
A23: 17 | B23: 5 | I23: 0 | O23: 0 | U23: 0 | AA23: 0 | AG23: 0 | AI23: 0 | AJ23: 0 | AL23: 0
A24: 18 | B24: 5 | I24: 0 | O24: 0 | U24: 0 | AA24: 0 | AG24: 0 | AI24: 0 | AJ24: 0 | AL24: 0
A25: 19 | B25: 5 | I25: 0 | O25: 0 | U25: 0 | AA25: 0 | AG25: 0 | AI25: 0 | AJ25: 0 | AL25: 0
A26: 20 | B26: 5 | I26: 0 | O26: 0 | U26: 0 | AA26: 0 | AG26: 0 | AI26: 0 | AJ26: 0 | AL26: 0

Sheet M Q
A3: =CONCATENATE("MATCH DE QUALIFICATION"," - ",INFO!B7," - ",INFO!B9) -> MATCH DE QUALIFICATION - PISTOLET - POITOU-CHARENTES
A5: Cl. | B5: CLUB | C5: N° club | D5: 1er Tireur | E5: séries | H5: Total | I5: M* | J5: 2ème Tireur | K5: séries | N5: Total | O5: M* | P5: 3ème Tireur | Q5: séries | T5: Total | U5: M* | V5: 4ème Tireur | W5: séries | Z5: Total | AA5: M* | AB5: 5ème Tireur | AC5: séries | AF5: Total | AG5: M* | AH5: TOTAL | AI5: M* TT
A7: 1 | B7: =VLOOKUP(A7,saisie!B$7:AL$26,2,0) -> ROCHEFORT T.S.R | C7: =VLOOKUP(A7,saisie!B$7:AL$26,3,0) -> 1717160 | D7: =VLOOKUP(A7,saisie!B$7:AL$26,4,0) -> BAUDET Philippe | E7: =VLOOKUP(A7,saisie!B$7:AL$26,5,0) -> 89 | F7: =VLOOKUP(A7,saisie!B$7:AL$26,6,0) -> 90 | G7: =VLOOKUP(A7,saisie!B$7:AL$26,7,0) -> 88 | H7: =VLOOKUP(A7,saisie!B$7:AL$26,8,0) -> 267 | I7: =VLOOKUP(A7,saisie!B$7:AL$26,9,0) -> 0 | J7: =VLOOKUP(A7,saisie!B$7:AL$26,10,0) -> BERGOGNE Cyril | K7: =VLOOKUP(A7,saisie!B$7:AL$26,11,0) -> 95 | L7: =VLOOKUP(A7,saisie!B$7:AL$26,12,0) -> 91 | M7: =VLOOKUP(A7,saisie!B$7:AL$26,13,0) -> 95 | N7: =VLOOKUP(A7,saisie!B$7:AL$26,14,0) -> 281 | O7: =VLOOKUP(A7,saisie!B$7:AL$26,15,0) -> 0 | P7: =VLOOKUP(A7,saisie!B$7:AL$26,16,0) -> MERCIER Rémy | Q7: =VLOOKUP(A7,saisie!B$7:AL$26,17,0) -> 87 | R7: =VLOOKUP(A7,saisie!B$7:AL$26,18,0) -> 88 | S7: =VLOOKUP(A7,saisie!B$7:AL$26,19,0) -> 86 | T7: =VLOOKUP(A7,saisie!B$7:AL$26,20,0) -> 261 | U7: =VLOOKUP(A7,saisie!B$7:AL$26,21,0) -> 0 | V7: =VLOOKUP(A7,saisie!B$7:AL$26,22,0) -> BRIAND Ptrick | W7: =VLOOKUP(A7,saisie!B$7:AL$26,23,0) -> 83 | X7: =VLOOKUP(A7,saisie!B$7:AL$26,24,0) -> 74 | Y7: =VLOOKUP(A7,saisie!B$7:AL$26,25,0) -> 77 | Z7: =VLOOKUP(A7,saisie!B$7:AL$26,26,0) -> 234 | AA7: =VLOOKUP(A7,saisie!B$7:AL$26,27,0) -> 0 | AB7: =VLOOKUP(A7,saisie!B$7:AL$26,28,0) -> MERCIER Mickael | AC7: =VLOOKUP(A7,saisie!B$7:AL$26,29,0) -> 88 | AD7: =VLOOKUP(A7,saisie!B$7:AL$26,30,0) -> 90 | AE7: =VLOOKUP(A7,saisie!B$7:AL$26,31,0) -> 91 | AF7: =VLOOKUP(A7,saisie!B$7:AL$26,32,0) -> 269 | AG7: =VLOOKUP(A7,saisie!B$7:AL$26,33,0) -> 0 | AH7: =VLOOKUP(A7,saisie!B$7:AL$26,34,0) -> 1312 | AI7: =VLOOKUP(A7,saisie!B$7:AL$26,35,0) -> 0
A8: =IF(INFO!B8>1,2,"") -> 2 | B8: =VLOOKUP(A8,saisie!B$7:AL$26,2,0) -> PONS A.P.T.S | C8: =VLOOKUP(A8,saisie!B$7:AL$26,3,0) -> 1717100 | D8: =VLOOKUP(A8,saisie!B$7:AL$26,4,0) -> DEBAIN Nathalie | E8: =VLOOKUP(A8,saisie!B$7:AL$26,5,0) -> 80 | F8: =VLOOKUP(A8,saisie!B$7:AL$26,6,0) -> 82 | G8: =VLOOKUP(A8,saisie!B$7:AL$26,7,0) -> 75 | H8: =VLOOKUP(A8,saisie!B$7:AL$26,8,0) -> 237 | I8: =VLOOKUP(A8,saisie!B$7:AL$26,9,0) -> 0 | J8: =VLOOKUP(A8,saisie!B$7:AL$26,10,0) -> ROUSSEAU Valérie | K8: =VLOOKUP(A8,saisie!B$7:AL$26,11,0) -> 83 | L8: =VLOOKUP(A8,saisie!B$7:AL$26,12,0) -> 82 | M8: =VLOOKUP(A8,saisie!B$7:AL$26,13,0) -> 92 | N8: =VLOOKUP(A8,saisie!B$7:AL$26,14,0) -> 257 | O8: =VLOOKUP(A8,saisie!B$7:AL$26,15,0) -> 0 | P8: =VLOOKUP(A8,saisie!B$7:AL$26,16,0) -> ROUSSEAU Thierry | Q8: =VLOOKUP(A8,saisie!B$7:AL$26,17,0) -> 87 | R8: =VLOOKUP(A8,saisie!B$7:AL$26,18,0) -> 83 | S8: =VLOOKUP(A8,saisie!B$7:AL$26,19,0) -> 85 | T8: =VLOOKUP(A8,saisie!B$7:AL$26,20,0) -> 255 | U8: =VLOOKUP(A8,saisie!B$7:AL$26,21,0) -> 0 | V8: =VLOOKUP(A8,saisie!B$7:AL$26,22,0) -> POULLY Pascal | W8: =VLOOKUP(A8,saisie!B$7:AL$26,23,0) -> 84 | X8: =VLOOKUP(A8,saisie!B$7:AL$26,24,0) -> 86 | Y8: =VLOOKUP(A8,saisie!B$7:AL$26,25,0) -> 89 | Z8: =VLOOKUP(A8,saisie!B$7:AL$26,26,0) -> 259 | AA8: =VLOOKUP(A8,saisie!B$7:AL$26,27,0) -> 0 | AB8: =VLOOKUP(A8,saisie!B$7:AL$26,28,0) -> BERNARD Kevin | AC8: =VLOOKUP(A8,saisie!B$7:AL$26,29,0) -> 89 | AD8: =VLOOKUP(A8,saisie!B$7:AL$26,30,0) -> 90 | AE8: =VLOOKUP(A8,saisie!B$7:AL$26,31,0) -> 91 | AF8: =VLOOKUP(A8,saisie!B$7:AL$26,32,0) -> 270 | AG8: =VLOOKUP(A8,saisie!B$7:AL$26,33,0) -> 0 | AH8: =VLOOKUP(A8,saisie!B$7:AL$26,34,0) -> 1278 | AI8: =VLOOKUP(A8,saisie!B$7:AL$26,35,0) -> 0
A9: =IF(INFO!B8>2,3,"") -> 3 | B9: =VLOOKUP(A9,saisie!B$7:AL$26,2,0) -> JONZAC S.J.T | C9: =VLOOKUP(A9,saisie!B$7:AL$26,3,0) -> 1717165 | D9: =VLOOKUP(A9,saisie!B$7:AL$26,4,0) -> GIOVANNONE Philippe | E9: =VLOOKUP(A9,saisie!B$7:AL$26,5,0) -> 84 | F9: =VLOOKUP(A9,saisie!B$7:AL$26,6,0) -> 80 | G9: =VLOOKUP(A9,saisie!B$7:AL$26,7,0) -> 83 | H9: =VLOOKUP(A9,saisie!B$7:AL$26,8,0) -> 247 | I9: =VLOOKUP(A9,saisie!B$7:AL$26,9,0) -> 0 | J9: =VLOOKUP(A9,saisie!B$7:AL$26,10,0) -> SOURIS Christine | K9: =VLOOKUP(A9,saisie!B$7:AL$26,11,0) -> 81 | L9: =VLOOKUP(A9,saisie!B$7:AL$26,12,0) -> 75 | M9: =VLOOKUP(A9,saisie!B$7:AL$26,13,0) -> 81 | N9: =VLOOKUP(A9,saisie!B$7:AL$26,14,0) -> 237 | O9: =VLOOKUP(A9,saisie!B$7:AL$26,15,0) -> 0 | P9: =VLOOKUP(A9,saisie!B$7:AL$26,16,0) -> ACHTOUK Kenza | Q9: =VLOOKUP(A9,saisie!B$7:AL$26,17,0) -> 92 | R9: =VLOOKUP(A9,saisie!B$7:AL$26,18,0) -> 92 | S9: =VLOOKUP(A9,saisie!B$7:AL$26,19,0) -> 88 | T9: =VLOOKUP(A9,saisie!B$7:AL$26,20,0) -> 272 | U9: =VLOOKUP(A9,saisie!B$7:AL$26,21,0) -> 0 | V9: =VLOOKUP(A9,saisie!B$7:AL$26,22,0) -> ARRIGONI Stéphane | W9: =VLOOKUP(A9,saisie!B$7:AL$26,23,0) -> 80 | X9: =VLOOKUP(A9,saisie!B$7:AL$26,24,0) -> 81 | Y9: =VLOOKUP(A9,saisie!B$7:AL$26,25,0) -> 89 | Z9: =VLOOKUP(A9,saisie!B$7:AL$26,26,0) -> 250 | AA9: =VLOOKUP(A9,saisie!B$7:AL$26,27,0) -> 0 | AB9: =VLOOKUP(A9,saisie!B$7:AL$26,28,0) -> CORMELIER Hervé | AC9: =VLOOKUP(A9,saisie!B$7:AL$26,29,0) -> 91 | AD9: =VLOOKUP(A9,saisie!B$7:AL$26,30,0) -> 88 | AE9: =VLOOKUP(A9,saisie!B$7:AL$26,31,0) -> 83 | AF9: =VLOOKUP(A9,saisie!B$7:AL$26,32,0) -> 262 | AG9: =VLOOKUP(A9,saisie!B$7:AL$26,33,0) -> 0 | AH9: =VLOOKUP(A9,saisie!B$7:AL$26,34,0) -> 1268 | AI9: =VLOOKUP(A9,saisie!B$7:AL$26,35,0) -> 0
A10: =IF(INFO!B8>3,4,"") -> 4 | B10: =VLOOKUP(A10,saisie!B$7:AL$26,2,0) -> SAINTES S.S.T | C10: =VLOOKUP(A10,saisie!B$7:AL$26,3,0) -> 1717031 | D10: =VLOOKUP(A10,saisie!B$7:AL$26,4,0) -> JACQUES Christophe | E10: =VLOOKUP(A10,saisie!B$7:AL$26,5,0) -> 89 | F10: =VLOOKUP(A10,saisie!B$7:AL$26,6,0) -> 88 | G10: =VLOOKUP(A10,saisie!B$7:AL$26,7,0) -> 88 | H10: =VLOOKUP(A10,saisie!B$7:AL$26,8,0) -> 265 | I10: =VLOOKUP(A10,saisie!B$7:AL$26,9,0) -> 0 | J10: =VLOOKUP(A10,saisie!B$7:AL$26,10,0) -> RABAT Catherine | K10: =VLOOKUP(A10,saisie!B$7:AL$26,11,0) -> 52 | L10: =VLOOKUP(A10,saisie!B$7:AL$26,12,0) -> 46 | M10: =VLOOKUP(A10,saisie!B$7:AL$26,13,0) -> 33 | N10: =VLOOKUP(A10,saisie!B$7:AL$26,14,0) -> 131 | O10: =VLOOKUP(A10,saisie!B$7:AL$26,15,0) -> 0 | P10: =VLOOKUP(A10,saisie!B$7:AL$26,16,0) -> SOULIER Jean | Q10: =VLOOKUP(A10,saisie!B$7:AL$26,17,0) -> 81 | R10: =VLOOKUP(A10,saisie!B$7:AL$26,18,0) -> 84 | S10: =VLOOKUP(A10,saisie!B$7:AL$26,19,0) -> 83 | T10: =VLOOKUP(A10,saisie!B$7:AL$26,20,0) -> 248 | U10: =VLOOKUP(A10,saisie!B$7:AL$26,21,0) -> 0 | V10: =VLOOKUP(A10,saisie!B$7:AL$26,22,0) -> BOIN Bertrand | W10: =VLOOKUP(A10,saisie!B$7:AL$26,23,0) -> 71 | X10: =VLOOKUP(A10,saisie!B$7:AL$26,24,0) -> 75 | Y10: =VLOOKUP(A10,saisie!B$7:AL$26,25,0) -> 79 | Z10: =VLOOKUP(A10,saisie!B$7:AL$26,26,0) -> 225 | AA10: =VLOOKUP(A10,saisie!B$7:AL$26,27,0) -> 0 | AB10: =VLOOKUP(A10,saisie!B$7:AL$26,28,0) -> FLEURET Eric | AC10: =VLOOKUP(A10,saisie!B$7:AL$26,29,0) -> 92 | AD10: =VLOOKUP(A10,saisie!B$7:AL$26,30,0) -> 90 | AE10: =VLOOKUP(A10,saisie!B$7:AL$26,31,0) -> 91 | AF10: =VLOOKUP(A10,saisie!B$7:AL$26,32,0) -> 273 | AG10: =VLOOKUP(A10,saisie!B$7:AL$26,33,0) -> 0 | AH10: =VLOOKUP(A10,saisie!B$7:AL$26,34,0) -> 1142 | AI10: =VLOOKUP(A10,saisie!B$7:AL$26,35,0) -> 0
A11: =IF(INFO!B8>4,5,"") ->  | B11: =VLOOKUP(A11,saisie!B$7:AL$26,2,0) ->  | C11: =VLOOKUP(A11,saisie!B$7:AL$26,3,0) ->  | D11: =VLOOKUP(A11,saisie!B$7:AL$26,4,0) ->  | E11: =VLOOKUP(A11,saisie!B$7:AL$26,5,0) ->  | F11: =VLOOKUP(A11,saisie!B$7:AL$26,6,0) ->  | G11: =VLOOKUP(A11,saisie!B$7:AL$26,7,0) ->  | H11: =VLOOKUP(A11,saisie!B$7:AL$26,8,0) ->  | I11: =VLOOKUP(A11,saisie!B$7:AL$26,9,0) ->  | J11: =VLOOKUP(A11,saisie!B$7:AL$26,10,0) ->  | K11: =VLOOKUP(A11,saisie!B$7:AL$26,11,0) ->  | L11: =VLOOKUP(A11,saisie!B$7:AL$26,12,0) ->  | M11: =VLOOKUP(A11,saisie!B$7:AL$26,13,0) ->  | N11: =VLOOKUP(A11,saisie!B$7:AL$26,14,0) ->  | O11: =VLOOKUP(A11,saisie!B$7:AL$26,15,0) ->  | P11: =VLOOKUP(A11,saisie!B$7:AL$26,16,0) ->  | Q11: =VLOOKUP(A11,saisie!B$7:AL$26,17,0) ->  | R11: =VLOOKUP(A11,saisie!B$7:AL$26,18,0) ->  | S11: =VLOOKUP(A11,saisie!B$7:AL$26,19,0) ->  | T11: =VLOOKUP(A11,saisie!B$7:AL$26,20,0) ->  | U11: =VLOOKUP(A11,saisie!B$7:AL$26,21,0) ->  | V11: =VLOOKUP(A11,saisie!B$7:AL$26,22,0) ->  | W11: =VLOOKUP(A11,saisie!B$7:AL$26,23,0) ->  | X11: =VLOOKUP(A11,saisie!B$7:AL$26,24,0) ->  | Y11: =VLOOKUP(A11,saisie!B$7:AL$26,25,0) ->  | Z11: =VLOOKUP(A11,saisie!B$7:AL$26,26,0) ->  | AA11: =VLOOKUP(A11,saisie!B$7:AL$26,27,0) ->  | AB11: =VLOOKUP(A11,saisie!B$7:AL$26,28,0) ->  | AC11: =VLOOKUP(A11,saisie!B$7:AL$26,29,0) ->  | AD11: =VLOOKUP(A11,saisie!B$7:AL$26,30,0) ->  | AE11: =VLOOKUP(A11,saisie!B$7:AL$26,31,0) ->  | AF11: =VLOOKUP(A11,saisie!B$7:AL$26,32,0) ->  | AG11: =VLOOKUP(A11,saisie!B$7:AL$26,33,0) ->  | AH11: =VLOOKUP(A11,saisie!B$7:AL$26,34,0) ->  | AI11: =VLOOKUP(A11,saisie!B$7:AL$26,35,0) -> 
A12: =IF(INFO!B8>5,6,"") ->  | B12: =VLOOKUP(A12,saisie!B$7:AL$26,2,0) ->  | C12: =VLOOKUP(A12,saisie!B$7:AL$26,3,0) ->  | D12: =VLOOKUP(A12,saisie!B$7:AL$26,4,0) ->  | E12: =VLOOKUP(A12,saisie!B$7:AL$26,5,0) ->  | F12: =VLOOKUP(A12,saisie!B$7:AL$26,6,0) ->  | G12: =VLOOKUP(A12,saisie!B$7:AL$26,7,0) ->  | H12: =VLOOKUP(A12,saisie!B$7:AL$26,8,0) ->  | I12: =VLOOKUP(A12,saisie!B$7:AL$26,9,0) ->  | J12: =VLOOKUP(A12,saisie!B$7:AL$26,10,0) ->  | K12: =VLOOKUP(A12,saisie!B$7:AL$26,11,0) ->  | L12: =VLOOKUP(A12,saisie!B$7:AL$26,12,0) ->  | M12: =VLOOKUP(A12,saisie!B$7:AL$26,13,0) ->  | N12: =VLOOKUP(A12,saisie!B$7:AL$26,14,0) ->  | O12: =VLOOKUP(A12,saisie!B$7:AL$26,15,0) ->  | P12: =VLOOKUP(A12,saisie!B$7:AL$26,16,0) ->  | Q12: =VLOOKUP(A12,saisie!B$7:AL$26,17,0) ->  | R12: =VLOOKUP(A12,saisie!B$7:AL$26,18,0) ->  | S12: =VLOOKUP(A12,saisie!B$7:AL$26,19,0) ->  | T12: =VLOOKUP(A12,saisie!B$7:AL$26,20,0) ->  | U12: =VLOOKUP(A12,saisie!B$7:AL$26,21,0) ->  | V12: =VLOOKUP(A12,saisie!B$7:AL$26,22,0) ->  | W12: =VLOOKUP(A12,saisie!B$7:AL$26,23,0) ->  | X12: =VLOOKUP(A12,saisie!B$7:AL$26,24,0) ->  | Y12: =VLOOKUP(A12,saisie!B$7:AL$26,25,0) ->  | Z12: =VLOOKUP(A12,saisie!B$7:AL$26,26,0) ->  | AA12: =VLOOKUP(A12,saisie!B$7:AL$26,27,0) ->  | AB12: =VLOOKUP(A12,saisie!B$7:AL$26,28,0) ->  | AC12: =VLOOKUP(A12,saisie!B$7:AL$26,29,0) ->  | AD12: =VLOOKUP(A12,saisie!B$7:AL$26,30,0) ->  | AE12: =VLOOKUP(A12,saisie!B$7:AL$26,31,0) ->  | AF12: =VLOOKUP(A12,saisie!B$7:AL$26,32,0) ->  | AG12: =VLOOKUP(A12,saisie!B$7:AL$26,33,0) ->  | AH12: =VLOOKUP(A12,saisie!B$7:AL$26,34,0) ->  | AI12: =VLOOKUP(A12,saisie!B$7:AL$26,35,0) -> 
A13: =IF(INFO!B8>6,7,"") ->  | B13: =VLOOKUP(A13,saisie!B$7:AL$26,2,0) ->  | C13: =VLOOKUP(A13,saisie!B$7:AL$26,3,0) ->  | D13: =VLOOKUP(A13,saisie!B$7:AL$26,4,0) ->  | E13: =VLOOKUP(A13,saisie!B$7:AL$26,5,0) ->  | F13: =VLOOKUP(A13,saisie!B$7:AL$26,6,0) ->  | G13: =VLOOKUP(A13,saisie!B$7:AL$26,7,0) ->  | H13: =VLOOKUP(A13,saisie!B$7:AL$26,8,0) ->  | I13: =VLOOKUP(A13,saisie!B$7:AL$26,9,0) ->  | J13: =VLOOKUP(A13,saisie!B$7:AL$26,10,0) ->  | K13: =VLOOKUP(A13,saisie!B$7:AL$26,11,0) ->  | L13: =VLOOKUP(A13,saisie!B$7:AL$26,12,0) ->  | M13: =VLOOKUP(A13,saisie!B$7:AL$26,13,0) ->  | N13: =VLOOKUP(A13,saisie!B$7:AL$26,14,0) ->  | O13: =VLOOKUP(A13,saisie!B$7:AL$26,15,0) ->  | P13: =VLOOKUP(A13,saisie!B$7:AL$26,16,0) ->  | Q13: =VLOOKUP(A13,saisie!B$7:AL$26,17,0) ->  | R13: =VLOOKUP(A13,saisie!B$7:AL$26,18,0) ->  | S13: =VLOOKUP(A13,saisie!B$7:AL$26,19,0) ->  | T13: =VLOOKUP(A13,saisie!B$7:AL$26,20,0) ->  | U13: =VLOOKUP(A13,saisie!B$7:AL$26,21,0) ->  | V13: =VLOOKUP(A13,saisie!B$7:AL$26,22,0) ->  | W13: =VLOOKUP(A13,saisie!B$7:AL$26,23,0) ->  | X13: =VLOOKUP(A13,saisie!B$7:AL$26,24,0) ->  | Y13: =VLOOKUP(A13,saisie!B$7:AL$26,25,0) ->  | Z13: =VLOOKUP(A13,saisie!B$7:AL$26,26,0) ->  | AA13: =VLOOKUP(A13,saisie!B$7:AL$26,27,0) ->  | AB13: =VLOOKUP(A13,saisie!B$7:AL$26,28,0) ->  | AC13: =VLOOKUP(A13,saisie!B$7:AL$26,29,0) ->  | AD13: =VLOOKUP(A13,saisie!B$7:AL$26,30,0) ->  | AE13: =VLOOKUP(A13,saisie!B$7:AL$26,31,0) ->  | AF13: =VLOOKUP(A13,saisie!B$7:AL$26,32,0) ->  | AG13: =VLOOKUP(A13,saisie!B$7:AL$26,33,0) ->  | AH13: =VLOOKUP(A13,saisie!B$7:AL$26,34,0) ->  | AI13: =VLOOKUP(A13,saisie!B$7:AL$26,35,0) -> 
A14: =IF(INFO!B8>7,8,"") ->  | B14: =VLOOKUP(A14,saisie!B$7:AL$26,2,0) ->  | C14: =VLOOKUP(A14,saisie!B$7:AL$26,3,0) ->  | D14: =VLOOKUP(A14,saisie!B$7:AL$26,4,0) ->  | E14: =VLOOKUP(A14,saisie!B$7:AL$26,5,0) ->  | F14: =VLOOKUP(A14,saisie!B$7:AL$26,6,0) ->  | G14: =VLOOKUP(A14,saisie!B$7:AL$26,7,0) ->  | H14: =VLOOKUP(A14,saisie!B$7:AL$26,8,0) ->  | I14: =VLOOKUP(A14,saisie!B$7:AL$26,9,0) ->  | J14: =VLOOKUP(A14,saisie!B$7:AL$26,10,0) ->  | K14: =VLOOKUP(A14,saisie!B$7:AL$26,11,0) ->  | L14: =VLOOKUP(A14,saisie!B$7:AL$26,12,0) ->  | M14: =VLOOKUP(A14,saisie!B$7:AL$26,13,0) ->  | N14: =VLOOKUP(A14,saisie!B$7:AL$26,14,0) ->  | O14: =VLOOKUP(A14,saisie!B$7:AL$26,15,0) ->  | P14: =VLOOKUP(A14,saisie!B$7:AL$26,16,0) ->  | Q14: =VLOOKUP(A14,saisie!B$7:AL$26,17,0) ->  | R14: =VLOOKUP(A14,saisie!B$7:AL$26,18,0) ->  | S14: =VLOOKUP(A14,saisie!B$7:AL$26,19,0) ->  | T14: =VLOOKUP(A14,saisie!B$7:AL$26,20,0) ->  | U14: =VLOOKUP(A14,saisie!B$7:AL$26,21,0) ->  | V14: =VLOOKUP(A14,saisie!B$7:AL$26,22,0) ->  | W14: =VLOOKUP(A14,saisie!B$7:AL$26,23,0) ->  | X14: =VLOOKUP(A14,saisie!B$7:AL$26,24,0) ->  | Y14: =VLOOKUP(A14,saisie!B$7:AL$26,25,0) ->  | Z14: =VLOOKUP(A14,saisie!B$7:AL$26,26,0) ->  | AA14: =VLOOKUP(A14,saisie!B$7:AL$26,27,0) ->  | AB14: =VLOOKUP(A14,saisie!B$7:AL$26,28,0) ->  | AC14: =VLOOKUP(A14,saisie!B$7:AL$26,29,0) ->  | AD14: =VLOOKUP(A14,saisie!B$7:AL$26,30,0) ->  | AE14: =VLOOKUP(A14,saisie!B$7:AL$26,31,0) ->  | AF14: =VLOOKUP(A14,saisie!B$7:AL$26,32,0) ->  | AG14: =VLOOKUP(A14,saisie!B$7:AL$26,33,0) ->  | AH14: =VLOOKUP(A14,saisie!B$7:AL$26,34,0) ->  | AI14: =VLOOKUP(A14,saisie!B$7:AL$26,35,0) -> 
A15: =IF(INFO!B8>8,9,"") ->  | B15: =VLOOKUP(A15,saisie!B$7:AL$26,2,0) ->  | C15: =VLOOKUP(A15,saisie!B$7:AL$26,3,0) ->  | D15: =VLOOKUP(A15,saisie!B$7:AL$26,4,0) ->  | E15: =VLOOKUP(A15,saisie!B$7:AL$26,5,0) ->  | F15: =VLOOKUP(A15,saisie!B$7:AL$26,6,0) ->  | G15: =VLOOKUP(A15,saisie!B$7:AL$26,7,0) ->  | H15: =VLOOKUP(A15,saisie!B$7:AL$26,8,0) ->  | I15: =VLOOKUP(A15,saisie!B$7:AL$26,9,0) ->  | J15: =VLOOKUP(A15,saisie!B$7:AL$26,10,0) ->  | K15: =VLOOKUP(A15,saisie!B$7:AL$26,11,0) ->  | L15: =VLOOKUP(A15,saisie!B$7:AL$26,12,0) ->  | M15: =VLOOKUP(A15,saisie!B$7:AL$26,13,0) ->  | N15: =VLOOKUP(A15,saisie!B$7:AL$26,14,0) ->  | O15: =VLOOKUP(A15,saisie!B$7:AL$26,15,0) ->  | P15: =VLOOKUP(A15,saisie!B$7:AL$26,16,0) ->  | Q15: =VLOOKUP(A15,saisie!B$7:AL$26,17,0) ->  | R15: =VLOOKUP(A15,saisie!B$7:AL$26,18,0) ->  | S15: =VLOOKUP(A15,saisie!B$7:AL$26,19,0) ->  | T15: =VLOOKUP(A15,saisie!B$7:AL$26,20,0) ->  | U15: =VLOOKUP(A15,saisie!B$7:AL$26,21,0) ->  | V15: =VLOOKUP(A15,saisie!B$7:AL$26,22,0) ->  | W15: =VLOOKUP(A15,saisie!B$7:AL$26,23,0) ->  | X15: =VLOOKUP(A15,saisie!B$7:AL$26,24,0) ->  | Y15: =VLOOKUP(A15,saisie!B$7:AL$26,25,0) ->  | Z15: =VLOOKUP(A15,saisie!B$7:AL$26,26,0) ->  | AA15: =VLOOKUP(A15,saisie!B$7:AL$26,27,0) ->  | AB15: =VLOOKUP(A15,saisie!B$7:AL$26,28,0) ->  | AC15: =VLOOKUP(A15,saisie!B$7:AL$26,29,0) ->  | AD15: =VLOOKUP(A15,saisie!B$7:AL$26,30,0) ->  | AE15: =VLOOKUP(A15,saisie!B$7:AL$26,31,0) ->  | AF15: =VLOOKUP(A15,saisie!B$7:AL$26,32,0) ->  | AG15: =VLOOKUP(A15,saisie!B$7:AL$26,33,0) ->  | AH15: =VLOOKUP(A15,saisie!B$7:AL$26,34,0) ->  | AI15: =VLOOKUP(A15,saisie!B$7:AL$26,35,0) -> 
A16: =IF(INFO!B8>9,10,"") ->  | B16: =VLOOKUP(A16,saisie!B$7:AL$26,2,0) ->  | C16: =VLOOKUP(A16,saisie!B$7:AL$26,3,0) ->  | D16: =VLOOKUP(A16,saisie!B$7:AL$26,4,0) ->  | E16: =VLOOKUP(A16,saisie!B$7:AL$26,5,0) ->  | F16: =VLOOKUP(A16,saisie!B$7:AL$26,6,0) ->  | G16: =VLOOKUP(A16,saisie!B$7:AL$26,7,0) ->  | H16: =VLOOKUP(A16,saisie!B$7:AL$26,8,0) ->  | I16: =VLOOKUP(A16,saisie!B$7:AL$26,9,0) ->  | J16: =VLOOKUP(A16,saisie!B$7:AL$26,10,0) ->  | K16: =VLOOKUP(A16,saisie!B$7:AL$26,11,0) ->  | L16: =VLOOKUP(A16,saisie!B$7:AL$26,12,0) ->  | M16: =VLOOKUP(A16,saisie!B$7:AL$26,13,0) ->  | N16: =VLOOKUP(A16,saisie!B$7:AL$26,14,0) ->  | O16: =VLOOKUP(A16,saisie!B$7:AL$26,15,0) ->  | P16: =VLOOKUP(A16,saisie!B$7:AL$26,16,0) ->  | Q16: =VLOOKUP(A16,saisie!B$7:AL$26,17,0) ->  | R16: =VLOOKUP(A16,saisie!B$7:AL$26,18,0) ->  | S16: =VLOOKUP(A16,saisie!B$7:AL$26,19,0) ->  | T16: =VLOOKUP(A16,saisie!B$7:AL$26,20,0) ->  | U16: =VLOOKUP(A16,saisie!B$7:AL$26,21,0) ->  | V16: =VLOOKUP(A16,saisie!B$7:AL$26,22,0) ->  | W16: =VLOOKUP(A16,saisie!B$7:AL$26,23,0) ->  | X16: =VLOOKUP(A16,saisie!B$7:AL$26,24,0) ->  | Y16: =VLOOKUP(A16,saisie!B$7:AL$26,25,0) ->  | Z16: =VLOOKUP(A16,saisie!B$7:AL$26,26,0) ->  | AA16: =VLOOKUP(A16,saisie!B$7:AL$26,27,0) ->  | AB16: =VLOOKUP(A16,saisie!B$7:AL$26,28,0) ->  | AC16: =VLOOKUP(A16,saisie!B$7:AL$26,29,0) ->  | AD16: =VLOOKUP(A16,saisie!B$7:AL$26,30,0) ->  | AE16: =VLOOKUP(A16,saisie!B$7:AL$26,31,0) ->  | AF16: =VLOOKUP(A16,saisie!B$7:AL$26,32,0) ->  | AG16: =VLOOKUP(A16,saisie!B$7:AL$26,33,0) ->  | AH16: =VLOOKUP(A16,saisie!B$7:AL$26,34,0) ->  | AI16: =VLOOKUP(A16,saisie!B$7:AL$26,35,0) -> 
A17: =IF(INFO!B8>10,11,"") ->  | B17: =VLOOKUP(A17,saisie!B$7:AL$26,2,0) ->  | C17: =VLOOKUP(A17,saisie!B$7:AL$26,3,0) ->  | D17: =VLOOKUP(A17,saisie!B$7:AL$26,4,0) ->  | E17: =VLOOKUP(A17,saisie!B$7:AL$26,5,0) ->  | F17: =VLOOKUP(A17,saisie!B$7:AL$26,6,0) ->  | G17: =VLOOKUP(A17,saisie!B$7:AL$26,7,0) ->  | H17: =VLOOKUP(A17,saisie!B$7:AL$26,8,0) ->  | I17: =VLOOKUP(A17,saisie!B$7:AL$26,9,0) ->  | J17: =VLOOKUP(A17,saisie!B$7:AL$26,10,0) ->  | K17: =VLOOKUP(A17,saisie!B$7:AL$26,11,0) ->  | L17: =VLOOKUP(A17,saisie!B$7:AL$26,12,0) ->  | M17: =VLOOKUP(A17,saisie!B$7:AL$26,13,0) ->  | N17: =VLOOKUP(A17,saisie!B$7:AL$26,14,0) ->  | O17: =VLOOKUP(A17,saisie!B$7:AL$26,15,0) ->  | P17: =VLOOKUP(A17,saisie!B$7:AL$26,16,0) ->  | Q17: =VLOOKUP(A17,saisie!B$7:AL$26,17,0) ->  | R17: =VLOOKUP(A17,saisie!B$7:AL$26,18,0) ->  | S17: =VLOOKUP(A17,saisie!B$7:AL$26,19,0) ->  | T17: =VLOOKUP(A17,saisie!B$7:AL$26,20,0) ->  | U17: =VLOOKUP(A17,saisie!B$7:AL$26,21,0) ->  | V17: =VLOOKUP(A17,saisie!B$7:AL$26,22,0) ->  | W17: =VLOOKUP(A17,saisie!B$7:AL$26,23,0) ->  | X17: =VLOOKUP(A17,saisie!B$7:AL$26,24,0) ->  | Y17: =VLOOKUP(A17,saisie!B$7:AL$26,25,0) ->  | Z17: =VLOOKUP(A17,saisie!B$7:AL$26,26,0) ->  | AA17: =VLOOKUP(A17,saisie!B$7:AL$26,27,0) ->  | AB17: =VLOOKUP(A17,saisie!B$7:AL$26,28,0) ->  | AC17: =VLOOKUP(A17,saisie!B$7:AL$26,29,0) ->  | AD17: =VLOOKUP(A17,saisie!B$7:AL$26,30,0) ->  | AE17: =VLOOKUP(A17,saisie!B$7:AL$26,31,0) ->  | AF17: =VLOOKUP(A17,saisie!B$7:AL$26,32,0) ->  | AG17: =VLOOKUP(A17,saisie!B$7:AL$26,33,0) ->  | AH17: =VLOOKUP(A17,saisie!B$7:AL$26,34,0) ->  | AI17: =VLOOKUP(A17,saisie!B$7:AL$26,35,0) -> 
A18: =IF(INFO!B8>11,12,"") ->  | B18: =VLOOKUP(A18,saisie!B$7:AL$26,2,0) ->  | C18: =VLOOKUP(A18,saisie!B$7:AL$26,3,0) ->  | D18: =VLOOKUP(A18,saisie!B$7:AL$26,4,0) ->  | E18: =VLOOKUP(A18,saisie!B$7:AL$26,5,0) ->  | F18: =VLOOKUP(A18,saisie!B$7:AL$26,6,0) ->  | G18: =VLOOKUP(A18,saisie!B$7:AL$26,7,0) ->  | H18: =VLOOKUP(A18,saisie!B$7:AL$26,8,0) ->  | I18: =VLOOKUP(A18,saisie!B$7:AL$26,9,0) ->  | J18: =VLOOKUP(A18,saisie!B$7:AL$26,10,0) ->  | K18: =VLOOKUP(A18,saisie!B$7:AL$26,11,0) ->  | L18: =VLOOKUP(A18,saisie!B$7:AL$26,12,0) ->  | M18: =VLOOKUP(A18,saisie!B$7:AL$26,13,0) ->  | N18: =VLOOKUP(A18,saisie!B$7:AL$26,14,0) ->  | O18: =VLOOKUP(A18,saisie!B$7:AL$26,15,0) ->  | P18: =VLOOKUP(A18,saisie!B$7:AL$26,16,0) ->  | Q18: =VLOOKUP(A18,saisie!B$7:AL$26,17,0) ->  | R18: =VLOOKUP(A18,saisie!B$7:AL$26,18,0) ->  | S18: =VLOOKUP(A18,saisie!B$7:AL$26,19,0) ->  | T18: =VLOOKUP(A18,saisie!B$7:AL$26,20,0) ->  | U18: =VLOOKUP(A18,saisie!B$7:AL$26,21,0) ->  | V18: =VLOOKUP(A18,saisie!B$7:AL$26,22,0) ->  | W18: =VLOOKUP(A18,saisie!B$7:AL$26,23,0) ->  | X18: =VLOOKUP(A18,saisie!B$7:AL$26,24,0) ->  | Y18: =VLOOKUP(A18,saisie!B$7:AL$26,25,0) ->  | Z18: =VLOOKUP(A18,saisie!B$7:AL$26,26,0) ->  | AA18: =VLOOKUP(A18,saisie!B$7:AL$26,27,0) ->  | AB18: =VLOOKUP(A18,saisie!B$7:AL$26,28,0) ->  | AC18: =VLOOKUP(A18,saisie!B$7:AL$26,29,0) ->  | AD18: =VLOOKUP(A18,saisie!B$7:AL$26,30,0) ->  | AE18: =VLOOKUP(A18,saisie!B$7:AL$26,31,0) ->  | AF18: =VLOOKUP(A18,saisie!B$7:AL$26,32,0) ->  | AG18: =VLOOKUP(A18,saisie!B$7:AL$26,33,0) ->  | AH18: =VLOOKUP(A18,saisie!B$7:AL$26,34,0) ->  | AI18: =VLOOKUP(A18,saisie!B$7:AL$26,35,0) -> 
A19: =IF(INFO!B8>12,13,"") ->  | B19: =VLOOKUP(A19,saisie!B$7:AL$26,2,0) ->  | C19: =VLOOKUP(A19,saisie!B$7:AL$26,3,0) ->  | D19: =VLOOKUP(A19,saisie!B$7:AL$26,4,0) ->  | E19: =VLOOKUP(A19,saisie!B$7:AL$26,5,0) ->  | F19: =VLOOKUP(A19,saisie!B$7:AL$26,6,0) ->  | G19: =VLOOKUP(A19,saisie!B$7:AL$26,7,0) ->  | H19: =VLOOKUP(A19,saisie!B$7:AL$26,8,0) ->  | I19: =VLOOKUP(A19,saisie!B$7:AL$26,9,0) ->  | J19: =VLOOKUP(A19,saisie!B$7:AL$26,10,0) ->  | K19: =VLOOKUP(A19,saisie!B$7:AL$26,11,0) ->  | L19: =VLOOKUP(A19,saisie!B$7:AL$26,12,0) ->  | M19: =VLOOKUP(A19,saisie!B$7:AL$26,13,0) ->  | N19: =VLOOKUP(A19,saisie!B$7:AL$26,14,0) ->  | O19: =VLOOKUP(A19,saisie!B$7:AL$26,15,0) ->  | P19: =VLOOKUP(A19,saisie!B$7:AL$26,16,0) ->  | Q19: =VLOOKUP(A19,saisie!B$7:AL$26,17,0) ->  | R19: =VLOOKUP(A19,saisie!B$7:AL$26,18,0) ->  | S19: =VLOOKUP(A19,saisie!B$7:AL$26,19,0) ->  | T19: =VLOOKUP(A19,saisie!B$7:AL$26,20,0) ->  | U19: =VLOOKUP(A19,saisie!B$7:AL$26,21,0) ->  | V19: =VLOOKUP(A19,saisie!B$7:AL$26,22,0) ->  | W19: =VLOOKUP(A19,saisie!B$7:AL$26,23,0) ->  | X19: =VLOOKUP(A19,saisie!B$7:AL$26,24,0) ->  | Y19: =VLOOKUP(A19,saisie!B$7:AL$26,25,0) ->  | Z19: =VLOOKUP(A19,saisie!B$7:AL$26,26,0) ->  | AA19: =VLOOKUP(A19,saisie!B$7:AL$26,27,0) ->  | AB19: =VLOOKUP(A19,saisie!B$7:AL$26,28,0) ->  | AC19: =VLOOKUP(A19,saisie!B$7:AL$26,29,0) ->  | AD19: =VLOOKUP(A19,saisie!B$7:AL$26,30,0) ->  | AE19: =VLOOKUP(A19,saisie!B$7:AL$26,31,0) ->  | AF19: =VLOOKUP(A19,saisie!B$7:AL$26,32,0) ->  | AG19: =VLOOKUP(A19,saisie!B$7:AL$26,33,0) ->  | AH19: =VLOOKUP(A19,saisie!B$7:AL$26,34,0) ->  | AI19: =VLOOKUP(A19,saisie!B$7:AL$26,35,0) -> 
A20: =IF(INFO!B8>13,14,"") ->  | B20: =VLOOKUP(A20,saisie!B$7:AL$26,2,0) ->  | C20: =VLOOKUP(A20,saisie!B$7:AL$26,3,0) ->  | D20: =VLOOKUP(A20,saisie!B$7:AL$26,4,0) ->  | E20: =VLOOKUP(A20,saisie!B$7:AL$26,5,0) ->  | F20: =VLOOKUP(A20,saisie!B$7:AL$26,6,0) ->  | G20: =VLOOKUP(A20,saisie!B$7:AL$26,7,0) ->  | H20: =VLOOKUP(A20,saisie!B$7:AL$26,8,0) ->  | I20: =VLOOKUP(A20,saisie!B$7:AL$26,9,0) ->  | J20: =VLOOKUP(A20,saisie!B$7:AL$26,10,0) ->  | K20: =VLOOKUP(A20,saisie!B$7:AL$26,11,0) ->  | L20: =VLOOKUP(A20,saisie!B$7:AL$26,12,0) ->  | M20: =VLOOKUP(A20,saisie!B$7:AL$26,13,0) ->  | N20: =VLOOKUP(A20,saisie!B$7:AL$26,14,0) ->  | O20: =VLOOKUP(A20,saisie!B$7:AL$26,15,0) ->  | P20: =VLOOKUP(A20,saisie!B$7:AL$26,16,0) ->  | Q20: =VLOOKUP(A20,saisie!B$7:AL$26,17,0) ->  | R20: =VLOOKUP(A20,saisie!B$7:AL$26,18,0) ->  | S20: =VLOOKUP(A20,saisie!B$7:AL$26,19,0) ->  | T20: =VLOOKUP(A20,saisie!B$7:AL$26,20,0) ->  | U20: =VLOOKUP(A20,saisie!B$7:AL$26,21,0) ->  | V20: =VLOOKUP(A20,saisie!B$7:AL$26,22,0) ->  | W20: =VLOOKUP(A20,saisie!B$7:AL$26,23,0) ->  | X20: =VLOOKUP(A20,saisie!B$7:AL$26,24,0) ->  | Y20: =VLOOKUP(A20,saisie!B$7:AL$26,25,0) ->  | Z20: =VLOOKUP(A20,saisie!B$7:AL$26,26,0) ->  | AA20: =VLOOKUP(A20,saisie!B$7:AL$26,27,0) ->  | AB20: =VLOOKUP(A20,saisie!B$7:AL$26,28,0) ->  | AC20: =VLOOKUP(A20,saisie!B$7:AL$26,29,0) ->  | AD20: =VLOOKUP(A20,saisie!B$7:AL$26,30,0) ->  | AE20: =VLOOKUP(A20,saisie!B$7:AL$26,31,0) ->  | AF20: =VLOOKUP(A20,saisie!B$7:AL$26,32,0) ->  | AG20: =VLOOKUP(A20,saisie!B$7:AL$26,33,0) ->  | AH20: =VLOOKUP(A20,saisie!B$7:AL$26,34,0) ->  | AI20: =VLOOKUP(A20,saisie!B$7:AL$26,35,0) -> 
A21: =IF(INFO!B8>14,15,"") ->  | B21: =VLOOKUP(A21,saisie!B$7:AL$26,2,0) ->  | C21: =VLOOKUP(A21,saisie!B$7:AL$26,3,0) ->  | D21: =VLOOKUP(A21,saisie!B$7:AL$26,4,0) ->  | E21: =VLOOKUP(A21,saisie!B$7:AL$26,5,0) ->  | F21: =VLOOKUP(A21,saisie!B$7:AL$26,6,0) ->  | G21: =VLOOKUP(A21,saisie!B$7:AL$26,7,0) ->  | H21: =VLOOKUP(A21,saisie!B$7:AL$26,8,0) ->  | I21: =VLOOKUP(A21,saisie!B$7:AL$26,9,0) ->  | J21: =VLOOKUP(A21,saisie!B$7:AL$26,10,0) ->  | K21: =VLOOKUP(A21,saisie!B$7:AL$26,11,0) ->  | L21: =VLOOKUP(A21,saisie!B$7:AL$26,12,0) ->  | M21: =VLOOKUP(A21,saisie!B$7:AL$26,13,0) ->  | N21: =VLOOKUP(A21,saisie!B$7:AL$26,14,0) ->  | O21: =VLOOKUP(A21,saisie!B$7:AL$26,15,0) ->  | P21: =VLOOKUP(A21,saisie!B$7:AL$26,16,0) ->  | Q21: =VLOOKUP(A21,saisie!B$7:AL$26,17,0) ->  | R21: =VLOOKUP(A21,saisie!B$7:AL$26,18,0) ->  | S21: =VLOOKUP(A21,saisie!B$7:AL$26,19,0) ->  | T21: =VLOOKUP(A21,saisie!B$7:AL$26,20,0) ->  | U21: =VLOOKUP(A21,saisie!B$7:AL$26,21,0) ->  | V21: =VLOOKUP(A21,saisie!B$7:AL$26,22,0) ->  | W21: =VLOOKUP(A21,saisie!B$7:AL$26,23,0) ->  | X21: =VLOOKUP(A21,saisie!B$7:AL$26,24,0) ->  | Y21: =VLOOKUP(A21,saisie!B$7:AL$26,25,0) ->  | Z21: =VLOOKUP(A21,saisie!B$7:AL$26,26,0) ->  | AA21: =VLOOKUP(A21,saisie!B$7:AL$26,27,0) ->  | AB21: =VLOOKUP(A21,saisie!B$7:AL$26,28,0) ->  | AC21: =VLOOKUP(A21,saisie!B$7:AL$26,29,0) ->  | AD21: =VLOOKUP(A21,saisie!B$7:AL$26,30,0) ->  | AE21: =VLOOKUP(A21,saisie!B$7:AL$26,31,0) ->  | AF21: =VLOOKUP(A21,saisie!B$7:AL$26,32,0) ->  | AG21: =VLOOKUP(A21,saisie!B$7:AL$26,33,0) ->  | AH21: =VLOOKUP(A21,saisie!B$7:AL$26,34,0) ->  | AI21: =VLOOKUP(A21,saisie!B$7:AL$26,35,0) -> 
A22: =IF(INFO!B8>15,16,"") ->  | B22: =VLOOKUP(A22,saisie!B$7:AL$26,2,0) ->  | C22: =VLOOKUP(A22,saisie!B$7:AL$26,3,0) ->  | D22: =VLOOKUP(A22,saisie!B$7:AL$26,4,0) ->  | E22: =VLOOKUP(A22,saisie!B$7:AL$26,5,0) ->  | F22: =VLOOKUP(A22,saisie!B$7:AL$26,6,0) ->  | G22: =VLOOKUP(A22,saisie!B$7:AL$26,7,0) ->  | H22: =VLOOKUP(A22,saisie!B$7:AL$26,8,0) ->  | I22: =VLOOKUP(A22,saisie!B$7:AL$26,9,0) ->  | J22: =VLOOKUP(A22,saisie!B$7:AL$26,10,0) ->  | K22: =VLOOKUP(A22,saisie!B$7:AL$26,11,0) ->  | L22: =VLOOKUP(A22,saisie!B$7:AL$26,12,0) ->  | M22: =VLOOKUP(A22,saisie!B$7:AL$26,13,0) ->  | N22: =VLOOKUP(A22,saisie!B$7:AL$26,14,0) ->  | O22: =VLOOKUP(A22,saisie!B$7:AL$26,15,0) ->  | P22: =VLOOKUP(A22,saisie!B$7:AL$26,16,0) ->  | Q22: =VLOOKUP(A22,saisie!B$7:AL$26,17,0) ->  | R22: =VLOOKUP(A22,saisie!B$7:AL$26,18,0) ->  | S22: =VLOOKUP(A22,saisie!B$7:AL$26,19,0) ->  | T22: =VLOOKUP(A22,saisie!B$7:AL$26,20,0) ->  | U22: =VLOOKUP(A22,saisie!B$7:AL$26,21,0) ->  | V22: =VLOOKUP(A22,saisie!B$7:AL$26,22,0) ->  | W22: =VLOOKUP(A22,saisie!B$7:AL$26,23,0) ->  | X22: =VLOOKUP(A22,saisie!B$7:AL$26,24,0) ->  | Y22: =VLOOKUP(A22,saisie!B$7:AL$26,25,0) ->  | Z22: =VLOOKUP(A22,saisie!B$7:AL$26,26,0) ->  | AA22: =VLOOKUP(A22,saisie!B$7:AL$26,27,0) ->  | AB22: =VLOOKUP(A22,saisie!B$7:AL$26,28,0) ->  | AC22: =VLOOKUP(A22,saisie!B$7:AL$26,29,0) ->  | AD22: =VLOOKUP(A22,saisie!B$7:AL$26,30,0) ->  | AE22: =VLOOKUP(A22,saisie!B$7:AL$26,31,0) ->  | AF22: =VLOOKUP(A22,saisie!B$7:AL$26,32,0) ->  | AG22: =VLOOKUP(A22,saisie!B$7:AL$26,33,0) ->  | AH22: =VLOOKUP(A22,saisie!B$7:AL$26,34,0) ->  | AI22: =VLOOKUP(A22,saisie!B$7:AL$26,35,0) -> 
A23: =IF(INFO!B8>16,17,"") ->  | B23: =VLOOKUP(A23,saisie!B$7:AL$26,2,0) ->  | C23: =VLOOKUP(A23,saisie!B$7:AL$26,3,0) ->  | D23: =VLOOKUP(A23,saisie!B$7:AL$26,4,0) ->  | E23: =VLOOKUP(A23,saisie!B$7:AL$26,5,0) ->  | F23: =VLOOKUP(A23,saisie!B$7:AL$26,6,0) ->  | G23: =VLOOKUP(A23,saisie!B$7:AL$26,7,0) ->  | H23: =VLOOKUP(A23,saisie!B$7:AL$26,8,0) ->  | I23: =VLOOKUP(A23,saisie!B$7:AL$26,9,0) ->  | J23: =VLOOKUP(A23,saisie!B$7:AL$26,10,0) ->  | K23: =VLOOKUP(A23,saisie!B$7:AL$26,11,0) ->  | L23: =VLOOKUP(A23,saisie!B$7:AL$26,12,0) ->  | M23: =VLOOKUP(A23,saisie!B$7:AL$26,13,0) ->  | N23: =VLOOKUP(A23,saisie!B$7:AL$26,14,0) ->  | O23: =VLOOKUP(A23,saisie!B$7:AL$26,15,0) ->  | P23: =VLOOKUP(A23,saisie!B$7:AL$26,16,0) ->  | Q23: =VLOOKUP(A23,saisie!B$7:AL$26,17,0) ->  | R23: =VLOOKUP(A23,saisie!B$7:AL$26,18,0) ->  | S23: =VLOOKUP(A23,saisie!B$7:AL$26,19,0) ->  | T23: =VLOOKUP(A23,saisie!B$7:AL$26,20,0) ->  | U23: =VLOOKUP(A23,saisie!B$7:AL$26,21,0) ->  | V23: =VLOOKUP(A23,saisie!B$7:AL$26,22,0) ->  | W23: =VLOOKUP(A23,saisie!B$7:AL$26,23,0) ->  | X23: =VLOOKUP(A23,saisie!B$7:AL$26,24,0) ->  | Y23: =VLOOKUP(A23,saisie!B$7:AL$26,25,0) ->  | Z23: =VLOOKUP(A23,saisie!B$7:AL$26,26,0) ->  | AA23: =VLOOKUP(A23,saisie!B$7:AL$26,27,0) ->  | AB23: =VLOOKUP(A23,saisie!B$7:AL$26,28,0) ->  | AC23: =VLOOKUP(A23,saisie!B$7:AL$26,29,0) ->  | AD23: =VLOOKUP(A23,saisie!B$7:AL$26,30,0) ->  | AE23: =VLOOKUP(A23,saisie!B$7:AL$26,31,0) ->  | AF23: =VLOOKUP(A23,saisie!B$7:AL$26,32,0) ->  | AG23: =VLOOKUP(A23,saisie!B$7:AL$26,33,0) ->  | AH23: =VLOOKUP(A23,saisie!B$7:AL$26,34,0) ->  | AI23: =VLOOKUP(A23,saisie!B$7:AL$26,35,0) -> 
A24: =IF(INFO!B8>17,18,"") ->  | B24: =VLOOKUP(A24,saisie!B$7:AL$26,2,0) ->  | C24: =VLOOKUP(A24,saisie!B$7:AL$26,3,0) ->  | D24: =VLOOKUP(A24,saisie!B$7:AL$26,4,0) ->  | E24: =VLOOKUP(A24,saisie!B$7:AL$26,5,0) ->  | F24: =VLOOKUP(A24,saisie!B$7:AL$26,6,0) ->  | G24: =VLOOKUP(A24,saisie!B$7:AL$26,7,0) ->  | H24: =VLOOKUP(A24,saisie!B$7:AL$26,8,0) ->  | I24: =VLOOKUP(A24,saisie!B$7:AL$26,9,0) ->  | J24: =VLOOKUP(A24,saisie!B$7:AL$26,10,0) ->  | K24: =VLOOKUP(A24,saisie!B$7:AL$26,11,0) ->  | L24: =VLOOKUP(A24,saisie!B$7:AL$26,12,0) ->  | M24: =VLOOKUP(A24,saisie!B$7:AL$26,13,0) ->  | N24: =VLOOKUP(A24,saisie!B$7:AL$26,14,0) ->  | O24: =VLOOKUP(A24,saisie!B$7:AL$26,15,0) ->  | P24: =VLOOKUP(A24,saisie!B$7:AL$26,16,0) ->  | Q24: =VLOOKUP(A24,saisie!B$7:AL$26,17,0) ->  | R24: =VLOOKUP(A24,saisie!B$7:AL$26,18,0) ->  | S24: =VLOOKUP(A24,saisie!B$7:AL$26,19,0) ->  | T24: =VLOOKUP(A24,saisie!B$7:AL$26,20,0) ->  | U24: =VLOOKUP(A24,saisie!B$7:AL$26,21,0) ->  | V24: =VLOOKUP(A24,saisie!B$7:AL$26,22,0) ->  | W24: =VLOOKUP(A24,saisie!B$7:AL$26,23,0) ->  | X24: =VLOOKUP(A24,saisie!B$7:AL$26,24,0) ->  | Y24: =VLOOKUP(A24,saisie!B$7:AL$26,25,0) ->  | Z24: =VLOOKUP(A24,saisie!B$7:AL$26,26,0) ->  | AA24: =VLOOKUP(A24,saisie!B$7:AL$26,27,0) ->  | AB24: =VLOOKUP(A24,saisie!B$7:AL$26,28,0) ->  | AC24: =VLOOKUP(A24,saisie!B$7:AL$26,29,0) ->  | AD24: =VLOOKUP(A24,saisie!B$7:AL$26,30,0) ->  | AE24: =VLOOKUP(A24,saisie!B$7:AL$26,31,0) ->  | AF24: =VLOOKUP(A24,saisie!B$7:AL$26,32,0) ->  | AG24: =VLOOKUP(A24,saisie!B$7:AL$26,33,0) ->  | AH24: =VLOOKUP(A24,saisie!B$7:AL$26,34,0) ->  | AI24: =VLOOKUP(A24,saisie!B$7:AL$26,35,0) -> 
A25: =IF(INFO!B8>18,19,"") ->  | B25: =VLOOKUP(A25,saisie!B$7:AL$26,2,0) ->  | C25: =VLOOKUP(A25,saisie!B$7:AL$26,3,0) ->  | D25: =VLOOKUP(A25,saisie!B$7:AL$26,4,0) ->  | E25: =VLOOKUP(A25,saisie!B$7:AL$26,5,0) ->  | F25: =VLOOKUP(A25,saisie!B$7:AL$26,6,0) ->  | G25: =VLOOKUP(A25,saisie!B$7:AL$26,7,0) ->  | H25: =VLOOKUP(A25,saisie!B$7:AL$26,8,0) ->  | I25: =VLOOKUP(A25,saisie!B$7:AL$26,9,0) ->  | J25: =VLOOKUP(A25,saisie!B$7:AL$26,10,0) ->  | K25: =VLOOKUP(A25,saisie!B$7:AL$26,11,0) ->  | L25: =VLOOKUP(A25,saisie!B$7:AL$26,12,0) ->  | M25: =VLOOKUP(A25,saisie!B$7:AL$26,13,0) ->  | N25: =VLOOKUP(A25,saisie!B$7:AL$26,14,0) ->  | O25: =VLOOKUP(A25,saisie!B$7:AL$26,15,0) ->  | P25: =VLOOKUP(A25,saisie!B$7:AL$26,16,0) ->  | Q25: =VLOOKUP(A25,saisie!B$7:AL$26,17,0) ->  | R25: =VLOOKUP(A25,saisie!B$7:AL$26,18,0) ->  | S25: =VLOOKUP(A25,saisie!B$7:AL$26,19,0) ->  | T25: =VLOOKUP(A25,saisie!B$7:AL$26,20,0) ->  | U25: =VLOOKUP(A25,saisie!B$7:AL$26,21,0) ->  | V25: =VLOOKUP(A25,saisie!B$7:AL$26,22,0) ->  | W25: =VLOOKUP(A25,saisie!B$7:AL$26,23,0) ->  | X25: =VLOOKUP(A25,saisie!B$7:AL$26,24,0) ->  | Y25: =VLOOKUP(A25,saisie!B$7:AL$26,25,0) ->  | Z25: =VLOOKUP(A25,saisie!B$7:AL$26,26,0) ->  | AA25: =VLOOKUP(A25,saisie!B$7:AL$26,27,0) ->  | AB25: =VLOOKUP(A25,saisie!B$7:AL$26,28,0) ->  | AC25: =VLOOKUP(A25,saisie!B$7:AL$26,29,0) ->  | AD25: =VLOOKUP(A25,saisie!B$7:AL$26,30,0) ->  | AE25: =VLOOKUP(A25,saisie!B$7:AL$26,31,0) ->  | AF25: =VLOOKUP(A25,saisie!B$7:AL$26,32,0) ->  | AG25: =VLOOKUP(A25,saisie!B$7:AL$26,33,0) ->  | AH25: =VLOOKUP(A25,saisie!B$7:AL$26,34,0) ->  | AI25: =VLOOKUP(A25,saisie!B$7:AL$26,35,0) -> 
A26: =IF(INFO!B8>19,20,"") ->  | B26: =VLOOKUP(A26,saisie!B$7:AL$26,2,0) ->  | C26: =VLOOKUP(A26,saisie!B$7:AL$26,3,0) ->  | D26: =VLOOKUP(A26,saisie!B$7:AL$26,4,0) ->  | E26: =VLOOKUP(A26,saisie!B$7:AL$26,5,0) ->  | F26: =VLOOKUP(A26,saisie!B$7:AL$26,6,0) ->  | G26: =VLOOKUP(A26,saisie!B$7:AL$26,7,0) ->  | H26: =VLOOKUP(A26,saisie!B$7:AL$26,8,0) ->  | I26: =VLOOKUP(A26,saisie!B$7:AL$26,9,0) ->  | J26: =VLOOKUP(A26,saisie!B$7:AL$26,10,0) ->  | K26: =VLOOKUP(A26,saisie!B$7:AL$26,11,0) ->  | L26: =VLOOKUP(A26,saisie!B$7:AL$26,12,0) ->  | M26: =VLOOKUP(A26,saisie!B$7:AL$26,13,0) ->  | N26: =VLOOKUP(A26,saisie!B$7:AL$26,14,0) ->  | O26: =VLOOKUP(A26,saisie!B$7:AL$26,15,0) ->  | P26: =VLOOKUP(A26,saisie!B$7:AL$26,16,0) ->  | Q26: =VLOOKUP(A26,saisie!B$7:AL$26,17,0) ->  | R26: =VLOOKUP(A26,saisie!B$7:AL$26,18,0) ->  | S26: =VLOOKUP(A26,saisie!B$7:AL$26,19,0) ->  | T26: =VLOOKUP(A26,saisie!B$7:AL$26,20,0) ->  | U26: =VLOOKUP(A26,saisie!B$7:AL$26,21,0) ->  | V26: =VLOOKUP(A26,saisie!B$7:AL$26,22,0) ->  | W26: =VLOOKUP(A26,saisie!B$7:AL$26,23,0) ->  | X26: =VLOOKUP(A26,saisie!B$7:AL$26,24,0) ->  | Y26: =VLOOKUP(A26,saisie!B$7:AL$26,25,0) ->  | Z26: =VLOOKUP(A26,saisie!B$7:AL$26,26,0) ->  | AA26: =VLOOKUP(A26,saisie!B$7:AL$26,27,0) ->  | AB26: =VLOOKUP(A26,saisie!B$7:AL$26,28,0) ->  | AC26: =VLOOKUP(A26,saisie!B$7:AL$26,29,0) ->  | AD26: =VLOOKUP(A26,saisie!B$7:AL$26,30,0) ->  | AE26: =VLOOKUP(A26,saisie!B$7:AL$26,31,0) ->  | AF26: =VLOOKUP(A26,saisie!B$7:AL$26,32,0) ->  | AG26: =VLOOKUP(A26,saisie!B$7:AL$26,33,0) ->  | AH26: =VLOOKUP(A26,saisie!B$7:AL$26,34,0) ->  | AI26: =VLOOKUP(A26,saisie!B$7:AL$26,35,0) -> 
A27: =IF(INFO!B8>20,21,"") ->  | B27: =VLOOKUP(A27,saisie!B$7:AL$26,2,0) ->  | C27: =VLOOKUP(A27,saisie!B$7:AL$26,3,0) ->  | D27: =VLOOKUP(A27,saisie!B$7:AL$26,4,0) ->  | E27: =VLOOKUP(A27,saisie!B$7:AL$26,5,0) ->  | F27: =VLOOKUP(A27,saisie!B$7:AL$26,6,0) ->  | G27: =VLOOKUP(A27,saisie!B$7:AL$26,7,0) ->  | H27: =VLOOKUP(A27,saisie!B$7:AL$26,8,0) ->  | I27: =VLOOKUP(A27,saisie!B$7:AL$26,9,0) ->  | J27: =VLOOKUP(A27,saisie!B$7:AL$26,10,0) ->  | K27: =VLOOKUP(A27,saisie!B$7:AL$26,11,0) ->  | L27: =VLOOKUP(A27,saisie!B$7:AL$26,12,0) ->  | M27: =VLOOKUP(A27,saisie!B$7:AL$26,13,0) ->  | N27: =VLOOKUP(A27,saisie!B$7:AL$26,14,0) ->  | O27: =VLOOKUP(A27,saisie!B$7:AL$26,15,0) ->  | P27: =VLOOKUP(A27,saisie!B$7:AL$26,16,0) ->  | Q27: =VLOOKUP(A27,saisie!B$7:AL$26,17,0) ->  | R27: =VLOOKUP(A27,saisie!B$7:AL$26,18,0) ->  | S27: =VLOOKUP(A27,saisie!B$7:AL$26,19,0) ->  | T27: =VLOOKUP(A27,saisie!B$7:AL$26,20,0) ->  | U27: =VLOOKUP(A27,saisie!B$7:AL$26,21,0) ->  | V27: =VLOOKUP(A27,saisie!B$7:AL$26,22,0) ->  | W27: =VLOOKUP(A27,saisie!B$7:AL$26,23,0) ->  | X27: =VLOOKUP(A27,saisie!B$7:AL$26,24,0) ->  | Y27: =VLOOKUP(A27,saisie!B$7:AL$26,25,0) ->  | Z27: =VLOOKUP(A27,saisie!B$7:AL$26,26,0) ->  | AA27: =VLOOKUP(A27,saisie!B$7:AL$26,27,0) ->  | AB27: =VLOOKUP(A27,saisie!B$7:AL$26,28,0) ->  | AC27: =VLOOKUP(A27,saisie!B$7:AL$26,29,0) ->  | AD27: =VLOOKUP(A27,saisie!B$7:AL$26,30,0) ->  | AE27: =VLOOKUP(A27,saisie!B$7:AL$26,31,0) ->  | AF27: =VLOOKUP(A27,saisie!B$7:AL$26,32,0) ->  | AG27: =VLOOKUP(A27,saisie!B$7:AL$26,33,0) ->  | AH27: =VLOOKUP(A27,saisie!B$7:AL$26,34,0) ->  | AI27: =VLOOKUP(A27,saisie!B$7:AL$26,35,0) -> 
A28: =IF(INFO!B8>21,22,"") ->  | B28: =VLOOKUP(A28,saisie!B$7:AL$26,2,0) ->  | C28: =VLOOKUP(A28,saisie!B$7:AL$26,3,0) ->  | D28: =VLOOKUP(A28,saisie!B$7:AL$26,4,0) ->  | E28: =VLOOKUP(A28,saisie!B$7:AL$26,5,0) ->  | F28: =VLOOKUP(A28,saisie!B$7:AL$26,6,0) ->  | G28: =VLOOKUP(A28,saisie!B$7:AL$26,7,0) ->  | H28: =VLOOKUP(A28,saisie!B$7:AL$26,8,0) ->  | I28: =VLOOKUP(A28,saisie!B$7:AL$26,9,0) ->  | J28: =VLOOKUP(A28,saisie!B$7:AL$26,10,0) ->  | K28: =VLOOKUP(A28,saisie!B$7:AL$26,11,0) ->  | L28: =VLOOKUP(A28,saisie!B$7:AL$26,12,0) ->  | M28: =VLOOKUP(A28,saisie!B$7:AL$26,13,0) ->  | N28: =VLOOKUP(A28,saisie!B$7:AL$26,14,0) ->  | O28: =VLOOKUP(A28,saisie!B$7:AL$26,15,0) ->  | P28: =VLOOKUP(A28,saisie!B$7:AL$26,16,0) ->  | Q28: =VLOOKUP(A28,saisie!B$7:AL$26,17,0) ->  | R28: =VLOOKUP(A28,saisie!B$7:AL$26,18,0) ->  | S28: =VLOOKUP(A28,saisie!B$7:AL$26,19,0) ->  | T28: =VLOOKUP(A28,saisie!B$7:AL$26,20,0) ->  | U28: =VLOOKUP(A28,saisie!B$7:AL$26,21,0) ->  | V28: =VLOOKUP(A28,saisie!B$7:AL$26,22,0) ->  | W28: =VLOOKUP(A28,saisie!B$7:AL$26,23,0) ->  | X28: =VLOOKUP(A28,saisie!B$7:AL$26,24,0) ->  | Y28: =VLOOKUP(A28,saisie!B$7:AL$26,25,0) ->  | Z28: =VLOOKUP(A28,saisie!B$7:AL$26,26,0) ->  | AA28: =VLOOKUP(A28,saisie!B$7:AL$26,27,0) ->  | AB28: =VLOOKUP(A28,saisie!B$7:AL$26,28,0) ->  | AC28: =VLOOKUP(A28,saisie!B$7:AL$26,29,0) ->  | AD28: =VLOOKUP(A28,saisie!B$7:AL$26,30,0) ->  | AE28: =VLOOKUP(A28,saisie!B$7:AL$26,31,0) ->  | AF28: =VLOOKUP(A28,saisie!B$7:AL$26,32,0) ->  | AG28: =VLOOKUP(A28,saisie!B$7:AL$26,33,0) ->  | AH28: =VLOOKUP(A28,saisie!B$7:AL$26,34,0) ->  | AI28: =VLOOKUP(A28,saisie!B$7:AL$26,35,0) -> 
A29: =IF(INFO!B8>22,23,"") ->  | B29: =VLOOKUP(A29,saisie!B$7:AL$26,2,0) ->  | C29: =VLOOKUP(A29,saisie!B$7:AL$26,3,0) ->  | D29: =VLOOKUP(A29,saisie!B$7:AL$26,4,0) ->  | E29: =VLOOKUP(A29,saisie!B$7:AL$26,5,0) ->  | F29: =VLOOKUP(A29,saisie!B$7:AL$26,6,0) ->  | G29: =VLOOKUP(A29,saisie!B$7:AL$26,7,0) ->  | H29: =VLOOKUP(A29,saisie!B$7:AL$26,8,0) ->  | I29: =VLOOKUP(A29,saisie!B$7:AL$26,9,0) ->  | J29: =VLOOKUP(A29,saisie!B$7:AL$26,10,0) ->  | K29: =VLOOKUP(A29,saisie!B$7:AL$26,11,0) ->  | L29: =VLOOKUP(A29,saisie!B$7:AL$26,12,0) ->  | M29: =VLOOKUP(A29,saisie!B$7:AL$26,13,0) ->  | N29: =VLOOKUP(A29,saisie!B$7:AL$26,14,0) ->  | O29: =VLOOKUP(A29,saisie!B$7:AL$26,15,0) ->  | P29: =VLOOKUP(A29,saisie!B$7:AL$26,16,0) ->  | Q29: =VLOOKUP(A29,saisie!B$7:AL$26,17,0) ->  | R29: =VLOOKUP(A29,saisie!B$7:AL$26,18,0) ->  | S29: =VLOOKUP(A29,saisie!B$7:AL$26,19,0) ->  | T29: =VLOOKUP(A29,saisie!B$7:AL$26,20,0) ->  | U29: =VLOOKUP(A29,saisie!B$7:AL$26,21,0) ->  | V29: =VLOOKUP(A29,saisie!B$7:AL$26,22,0) ->  | W29: =VLOOKUP(A29,saisie!B$7:AL$26,23,0) ->  | X29: =VLOOKUP(A29,saisie!B$7:AL$26,24,0) ->  | Y29: =VLOOKUP(A29,saisie!B$7:AL$26,25,0) ->  | Z29: =VLOOKUP(A29,saisie!B$7:AL$26,26,0) ->  | AA29: =VLOOKUP(A29,saisie!B$7:AL$26,27,0) ->  | AB29: =VLOOKUP(A29,saisie!B$7:AL$26,28,0) ->  | AC29: =VLOOKUP(A29,saisie!B$7:AL$26,29,0) ->  | AD29: =VLOOKUP(A29,saisie!B$7:AL$26,30,0) ->  | AE29: =VLOOKUP(A29,saisie!B$7:AL$26,31,0) ->  | AF29: =VLOOKUP(A29,saisie!B$7:AL$26,32,0) ->  | AG29: =VLOOKUP(A29,saisie!B$7:AL$26,33,0) ->  | AH29: =VLOOKUP(A29,saisie!B$7:AL$26,34,0) ->  | AI29: =VLOOKUP(A29,saisie!B$7:AL$26,35,0) -> 
A30: =IF(INFO!B8>23,24,"") ->  | B30: =VLOOKUP(A30,saisie!B$7:AL$26,2,0) ->  | C30: =VLOOKUP(A30,saisie!B$7:AL$26,3,0) ->  | D30: =VLOOKUP(A30,saisie!B$7:AL$26,4,0) ->  | E30: =VLOOKUP(A30,saisie!B$7:AL$26,5,0) ->  | F30: =VLOOKUP(A30,saisie!B$7:AL$26,6,0) ->  | G30: =VLOOKUP(A30,saisie!B$7:AL$26,7,0) ->  | H30: =VLOOKUP(A30,saisie!B$7:AL$26,8,0) ->  | I30: =VLOOKUP(A30,saisie!B$7:AL$26,9,0) ->  | J30: =VLOOKUP(A30,saisie!B$7:AL$26,10,0) ->  | K30: =VLOOKUP(A30,saisie!B$7:AL$26,11,0) ->  | L30: =VLOOKUP(A30,saisie!B$7:AL$26,12,0) ->  | M30: =VLOOKUP(A30,saisie!B$7:AL$26,13,0) ->  | N30: =VLOOKUP(A30,saisie!B$7:AL$26,14,0) ->  | O30: =VLOOKUP(A30,saisie!B$7:AL$26,15,0) ->  | P30: =VLOOKUP(A30,saisie!B$7:AL$26,16,0) ->  | Q30: =VLOOKUP(A30,saisie!B$7:AL$26,17,0) ->  | R30: =VLOOKUP(A30,saisie!B$7:AL$26,18,0) ->  | S30: =VLOOKUP(A30,saisie!B$7:AL$26,19,0) ->  | T30: =VLOOKUP(A30,saisie!B$7:AL$26,20,0) ->  | U30: =VLOOKUP(A30,saisie!B$7:AL$26,21,0) ->  | V30: =VLOOKUP(A30,saisie!B$7:AL$26,22,0) ->  | W30: =VLOOKUP(A30,saisie!B$7:AL$26,23,0) ->  | X30: =VLOOKUP(A30,saisie!B$7:AL$26,24,0) ->  | Y30: =VLOOKUP(A30,saisie!B$7:AL$26,25,0) ->  | Z30: =VLOOKUP(A30,saisie!B$7:AL$26,26,0) ->  | AA30: =VLOOKUP(A30,saisie!B$7:AL$26,27,0) ->  | AB30: =VLOOKUP(A30,saisie!B$7:AL$26,28,0) ->  | AC30: =VLOOKUP(A30,saisie!B$7:AL$26,29,0) ->  | AD30: =VLOOKUP(A30,saisie!B$7:AL$26,30,0) ->  | AE30: =VLOOKUP(A30,saisie!B$7:AL$26,31,0) ->  | AF30: =VLOOKUP(A30,saisie!B$7:AL$26,32,0) ->  | AG30: =VLOOKUP(A30,saisie!B$7:AL$26,33,0) ->  | AH30: =VLOOKUP(A30,saisie!B$7:AL$26,34,0) ->  | AI30: =VLOOKUP(A30,saisie!B$7:AL$26,35,0) -> 
A31: =IF(INFO!B8>24,25,"") ->  | B31: =VLOOKUP(A31,saisie!B$7:AL$26,2,0) ->  | C31: =VLOOKUP(A31,saisie!B$7:AL$26,3,0) ->  | D31: =VLOOKUP(A31,saisie!B$7:AL$26,4,0) ->  | E31: =VLOOKUP(A31,saisie!B$7:AL$26,5,0) ->  | F31: =VLOOKUP(A31,saisie!B$7:AL$26,6,0) ->  | G31: =VLOOKUP(A31,saisie!B$7:AL$26,7,0) ->  | H31: =VLOOKUP(A31,saisie!B$7:AL$26,8,0) ->  | I31: =VLOOKUP(A31,saisie!B$7:AL$26,9,0) ->  | J31: =VLOOKUP(A31,saisie!B$7:AL$26,10,0) ->  | K31: =VLOOKUP(A31,saisie!B$7:AL$26,11,0) ->  | L31: =VLOOKUP(A31,saisie!B$7:AL$26,12,0) ->  | M31: =VLOOKUP(A31,saisie!B$7:AL$26,13,0) ->  | N31: =VLOOKUP(A31,saisie!B$7:AL$26,14,0) ->  | O31: =VLOOKUP(A31,saisie!B$7:AL$26,15,0) ->  | P31: =VLOOKUP(A31,saisie!B$7:AL$26,16,0) ->  | Q31: =VLOOKUP(A31,saisie!B$7:AL$26,17,0) ->  | R31: =VLOOKUP(A31,saisie!B$7:AL$26,18,0) ->  | S31: =VLOOKUP(A31,saisie!B$7:AL$26,19,0) ->  | T31: =VLOOKUP(A31,saisie!B$7:AL$26,20,0) ->  | U31: =VLOOKUP(A31,saisie!B$7:AL$26,21,0) ->  | V31: =VLOOKUP(A31,saisie!B$7:AL$26,22,0) ->  | W31: =VLOOKUP(A31,saisie!B$7:AL$26,23,0) ->  | X31: =VLOOKUP(A31,saisie!B$7:AL$26,24,0) ->  | Y31: =VLOOKUP(A31,saisie!B$7:AL$26,25,0) ->  | Z31: =VLOOKUP(A31,saisie!B$7:AL$26,26,0) ->  | AA31: =VLOOKUP(A31,saisie!B$7:AL$26,27,0) ->  | AB31: =VLOOKUP(A31,saisie!B$7:AL$26,28,0) ->  | AC31: =VLOOKUP(A31,saisie!B$7:AL$26,29,0) ->  | AD31: =VLOOKUP(A31,saisie!B$7:AL$26,30,0) ->  | AE31: =VLOOKUP(A31,saisie!B$7:AL$26,31,0) ->  | AF31: =VLOOKUP(A31,saisie!B$7:AL$26,32,0) ->  | AG31: =VLOOKUP(A31,saisie!B$7:AL$26,33,0) ->  | AH31: =VLOOKUP(A31,saisie!B$7:AL$26,34,0) ->  | AI31: =VLOOKUP(A31,saisie!B$7:AL$26,35,0) -> 
A32: =IF(INFO!B8>25,26,"") ->  | B32: =VLOOKUP(A32,saisie!B$7:AL$26,2,0) ->  | C32: =VLOOKUP(A32,saisie!B$7:AL$26,3,0) ->  | D32: =VLOOKUP(A32,saisie!B$7:AL$26,4,0) ->  | E32: =VLOOKUP(A32,saisie!B$7:AL$26,5,0) ->  | F32: =VLOOKUP(A32,saisie!B$7:AL$26,6,0) ->  | G32: =VLOOKUP(A32,saisie!B$7:AL$26,7,0) ->  | H32: =VLOOKUP(A32,saisie!B$7:AL$26,8,0) ->  | I32: =VLOOKUP(A32,saisie!B$7:AL$26,9,0) ->  | J32: =VLOOKUP(A32,saisie!B$7:AL$26,10,0) ->  | K32: =VLOOKUP(A32,saisie!B$7:AL$26,11,0) ->  | L32: =VLOOKUP(A32,saisie!B$7:AL$26,12,0) ->  | M32: =VLOOKUP(A32,saisie!B$7:AL$26,13,0) ->  | N32: =VLOOKUP(A32,saisie!B$7:AL$26,14,0) ->  | O32: =VLOOKUP(A32,saisie!B$7:AL$26,15,0) ->  | P32: =VLOOKUP(A32,saisie!B$7:AL$26,16,0) ->  | Q32: =VLOOKUP(A32,saisie!B$7:AL$26,17,0) ->  | R32: =VLOOKUP(A32,saisie!B$7:AL$26,18,0) ->  | S32: =VLOOKUP(A32,saisie!B$7:AL$26,19,0) ->  | T32: =VLOOKUP(A32,saisie!B$7:AL$26,20,0) ->  | U32: =VLOOKUP(A32,saisie!B$7:AL$26,21,0) ->  | V32: =VLOOKUP(A32,saisie!B$7:AL$26,22,0) ->  | W32: =VLOOKUP(A32,saisie!B$7:AL$26,23,0) ->  | X32: =VLOOKUP(A32,saisie!B$7:AL$26,24,0) ->  | Y32: =VLOOKUP(A32,saisie!B$7:AL$26,25,0) ->  | Z32: =VLOOKUP(A32,saisie!B$7:AL$26,26,0) ->  | AA32: =VLOOKUP(A32,saisie!B$7:AL$26,27,0) ->  | AB32: =VLOOKUP(A32,saisie!B$7:AL$26,28,0) ->  | AC32: =VLOOKUP(A32,saisie!B$7:AL$26,29,0) ->  | AD32: =VLOOKUP(A32,saisie!B$7:AL$26,30,0) ->  | AE32: =VLOOKUP(A32,saisie!B$7:AL$26,31,0) ->  | AF32: =VLOOKUP(A32,saisie!B$7:AL$26,32,0) ->  | AG32: =VLOOKUP(A32,saisie!B$7:AL$26,33,0) ->  | AH32: =VLOOKUP(A32,saisie!B$7:AL$26,34,0) ->  | AI32: =VLOOKUP(A32,saisie!B$7:AL$26,35,0) -> 
A33: =IF(INFO!B8>26,27,"") ->  | B33: =VLOOKUP(A33,saisie!B$7:AL$26,2,0) ->  | C33: =VLOOKUP(A33,saisie!B$7:AL$26,3,0) ->  | D33: =VLOOKUP(A33,saisie!B$7:AL$26,4,0) ->  | E33: =VLOOKUP(A33,saisie!B$7:AL$26,5,0) ->  | F33: =VLOOKUP(A33,saisie!B$7:AL$26,6,0) ->  | G33: =VLOOKUP(A33,saisie!B$7:AL$26,7,0) ->  | H33: =VLOOKUP(A33,saisie!B$7:AL$26,8,0) ->  | I33: =VLOOKUP(A33,saisie!B$7:AL$26,9,0) ->  | J33: =VLOOKUP(A33,saisie!B$7:AL$26,10,0) ->  | K33: =VLOOKUP(A33,saisie!B$7:AL$26,11,0) ->  | L33: =VLOOKUP(A33,saisie!B$7:AL$26,12,0) ->  | M33: =VLOOKUP(A33,saisie!B$7:AL$26,13,0) ->  | N33: =VLOOKUP(A33,saisie!B$7:AL$26,14,0) ->  | O33: =VLOOKUP(A33,saisie!B$7:AL$26,15,0) ->  | P33: =VLOOKUP(A33,saisie!B$7:AL$26,16,0) ->  | Q33: =VLOOKUP(A33,saisie!B$7:AL$26,17,0) ->  | R33: =VLOOKUP(A33,saisie!B$7:AL$26,18,0) ->  | S33: =VLOOKUP(A33,saisie!B$7:AL$26,19,0) ->  | T33: =VLOOKUP(A33,saisie!B$7:AL$26,20,0) ->  | U33: =VLOOKUP(A33,saisie!B$7:AL$26,21,0) ->  | V33: =VLOOKUP(A33,saisie!B$7:AL$26,22,0) ->  | W33: =VLOOKUP(A33,saisie!B$7:AL$26,23,0) ->  | X33: =VLOOKUP(A33,saisie!B$7:AL$26,24,0) ->  | Y33: =VLOOKUP(A33,saisie!B$7:AL$26,25,0) ->  | Z33: =VLOOKUP(A33,saisie!B$7:AL$26,26,0) ->  | AA33: =VLOOKUP(A33,saisie!B$7:AL$26,27,0) ->  | AB33: =VLOOKUP(A33,saisie!B$7:AL$26,28,0) ->  | AC33: =VLOOKUP(A33,saisie!B$7:AL$26,29,0) ->  | AD33: =VLOOKUP(A33,saisie!B$7:AL$26,30,0) ->  | AE33: =VLOOKUP(A33,saisie!B$7:AL$26,31,0) ->  | AF33: =VLOOKUP(A33,saisie!B$7:AL$26,32,0) ->  | AG33: =VLOOKUP(A33,saisie!B$7:AL$26,33,0) ->  | AH33: =VLOOKUP(A33,saisie!B$7:AL$26,34,0) ->  | AI33: =VLOOKUP(A33,saisie!B$7:AL$26,35,0) -> 
A34: =IF(INFO!B8>27,28,"") ->  | B34: =VLOOKUP(A34,saisie!B$7:AL$26,2,0) ->  | C34: =VLOOKUP(A34,saisie!B$7:AL$26,3,0) ->  | D34: =VLOOKUP(A34,saisie!B$7:AL$26,4,0) ->  | E34: =VLOOKUP(A34,saisie!B$7:AL$26,5,0) ->  | F34: =VLOOKUP(A34,saisie!B$7:AL$26,6,0) ->  | G34: =VLOOKUP(A34,saisie!B$7:AL$26,7,0) ->  | H34: =VLOOKUP(A34,saisie!B$7:AL$26,8,0) ->  | I34: =VLOOKUP(A34,saisie!B$7:AL$26,9,0) ->  | J34: =VLOOKUP(A34,saisie!B$7:AL$26,10,0) ->  | K34: =VLOOKUP(A34,saisie!B$7:AL$26,11,0) ->  | L34: =VLOOKUP(A34,saisie!B$7:AL$26,12,0) ->  | M34: =VLOOKUP(A34,saisie!B$7:AL$26,13,0) ->  | N34: =VLOOKUP(A34,saisie!B$7:AL$26,14,0) ->  | O34: =VLOOKUP(A34,saisie!B$7:AL$26,15,0) ->  | P34: =VLOOKUP(A34,saisie!B$7:AL$26,16,0) ->  | Q34: =VLOOKUP(A34,saisie!B$7:AL$26,17,0) ->  | R34: =VLOOKUP(A34,saisie!B$7:AL$26,18,0) ->  | S34: =VLOOKUP(A34,saisie!B$7:AL$26,19,0) ->  | T34: =VLOOKUP(A34,saisie!B$7:AL$26,20,0) ->  | U34: =VLOOKUP(A34,saisie!B$7:AL$26,21,0) ->  | V34: =VLOOKUP(A34,saisie!B$7:AL$26,22,0) ->  | W34: =VLOOKUP(A34,saisie!B$7:AL$26,23,0) ->  | X34: =VLOOKUP(A34,saisie!B$7:AL$26,24,0) ->  | Y34: =VLOOKUP(A34,saisie!B$7:AL$26,25,0) ->  | Z34: =VLOOKUP(A34,saisie!B$7:AL$26,26,0) ->  | AA34: =VLOOKUP(A34,saisie!B$7:AL$26,27,0) ->  | AB34: =VLOOKUP(A34,saisie!B$7:AL$26,28,0) ->  | AC34: =VLOOKUP(A34,saisie!B$7:AL$26,29,0) ->  | AD34: =VLOOKUP(A34,saisie!B$7:AL$26,30,0) ->  | AE34: =VLOOKUP(A34,saisie!B$7:AL$26,31,0) ->  | AF34: =VLOOKUP(A34,saisie!B$7:AL$26,32,0) ->  | AG34: =VLOOKUP(A34,saisie!B$7:AL$26,33,0) ->  | AH34: =VLOOKUP(A34,saisie!B$7:AL$26,34,0) ->  | AI34: =VLOOKUP(A34,saisie!B$7:AL$26,35,0) -> 
A35: =IF(INFO!B8>28,29,"") ->  | B35: =VLOOKUP(A35,saisie!B$7:AL$26,2,0) ->  | C35: =VLOOKUP(A35,saisie!B$7:AL$26,3,0) ->  | D35: =VLOOKUP(A35,saisie!B$7:AL$26,4,0) ->  | E35: =VLOOKUP(A35,saisie!B$7:AL$26,5,0) ->  | F35: =VLOOKUP(A35,saisie!B$7:AL$26,6,0) ->  | G35: =VLOOKUP(A35,saisie!B$7:AL$26,7,0) ->  | H35: =VLOOKUP(A35,saisie!B$7:AL$26,8,0) ->  | I35: =VLOOKUP(A35,saisie!B$7:AL$26,9,0) ->  | J35: =VLOOKUP(A35,saisie!B$7:AL$26,10,0) ->  | K35: =VLOOKUP(A35,saisie!B$7:AL$26,11,0) ->  | L35: =VLOOKUP(A35,saisie!B$7:AL$26,12,0) ->  | M35: =VLOOKUP(A35,saisie!B$7:AL$26,13,0) ->  | N35: =VLOOKUP(A35,saisie!B$7:AL$26,14,0) ->  | O35: =VLOOKUP(A35,saisie!B$7:AL$26,15,0) ->  | P35: =VLOOKUP(A35,saisie!B$7:AL$26,16,0) ->  | Q35: =VLOOKUP(A35,saisie!B$7:AL$26,17,0) ->  | R35: =VLOOKUP(A35,saisie!B$7:AL$26,18,0) ->  | S35: =VLOOKUP(A35,saisie!B$7:AL$26,19,0) ->  | T35: =VLOOKUP(A35,saisie!B$7:AL$26,20,0) ->  | U35: =VLOOKUP(A35,saisie!B$7:AL$26,21,0) ->  | V35: =VLOOKUP(A35,saisie!B$7:AL$26,22,0) ->  | W35: =VLOOKUP(A35,saisie!B$7:AL$26,23,0) ->  | X35: =VLOOKUP(A35,saisie!B$7:AL$26,24,0) ->  | Y35: =VLOOKUP(A35,saisie!B$7:AL$26,25,0) ->  | Z35: =VLOOKUP(A35,saisie!B$7:AL$26,26,0) ->  | AA35: =VLOOKUP(A35,saisie!B$7:AL$26,27,0) ->  | AB35: =VLOOKUP(A35,saisie!B$7:AL$26,28,0) ->  | AC35: =VLOOKUP(A35,saisie!B$7:AL$26,29,0) ->  | AD35: =VLOOKUP(A35,saisie!B$7:AL$26,30,0) ->  | AE35: =VLOOKUP(A35,saisie!B$7:AL$26,31,0) ->  | AF35: =VLOOKUP(A35,saisie!B$7:AL$26,32,0) ->  | AG35: =VLOOKUP(A35,saisie!B$7:AL$26,33,0) ->  | AH35: =VLOOKUP(A35,saisie!B$7:AL$26,34,0) ->  | AI35: =VLOOKUP(A35,saisie!B$7:AL$26,35,0) -> 
A36: =IF(INFO!B8>29,30,"") ->  | B36: =VLOOKUP(A36,saisie!B$7:AL$26,2,0) ->  | C36: =VLOOKUP(A36,saisie!B$7:AL$26,3,0) ->  | D36: =VLOOKUP(A36,saisie!B$7:AL$26,4,0) ->  | E36: =VLOOKUP(A36,saisie!B$7:AL$26,5,0) ->  | F36: =VLOOKUP(A36,saisie!B$7:AL$26,6,0) ->  | G36: =VLOOKUP(A36,saisie!B$7:AL$26,7,0) ->  | H36: =VLOOKUP(A36,saisie!B$7:AL$26,8,0) ->  | I36: =VLOOKUP(A36,saisie!B$7:AL$26,9,0) ->  | J36: =VLOOKUP(A36,saisie!B$7:AL$26,10,0) ->  | K36: =VLOOKUP(A36,saisie!B$7:AL$26,11,0) ->  | L36: =VLOOKUP(A36,saisie!B$7:AL$26,12,0) ->  | M36: =VLOOKUP(A36,saisie!B$7:AL$26,13,0) ->  | N36: =VLOOKUP(A36,saisie!B$7:AL$26,14,0) ->  | O36: =VLOOKUP(A36,saisie!B$7:AL$26,15,0) ->  | P36: =VLOOKUP(A36,saisie!B$7:AL$26,16,0) ->  | Q36: =VLOOKUP(A36,saisie!B$7:AL$26,17,0) ->  | R36: =VLOOKUP(A36,saisie!B$7:AL$26,18,0) ->  | S36: =VLOOKUP(A36,saisie!B$7:AL$26,19,0) ->  | T36: =VLOOKUP(A36,saisie!B$7:AL$26,20,0) ->  | U36: =VLOOKUP(A36,saisie!B$7:AL$26,21,0) ->  | V36: =VLOOKUP(A36,saisie!B$7:AL$26,22,0) ->  | W36: =VLOOKUP(A36,saisie!B$7:AL$26,23,0) ->  | X36: =VLOOKUP(A36,saisie!B$7:AL$26,24,0) ->  | Y36: =VLOOKUP(A36,saisie!B$7:AL$26,25,0) ->  | Z36: =VLOOKUP(A36,saisie!B$7:AL$26,26,0) ->  | AA36: =VLOOKUP(A36,saisie!B$7:AL$26,27,0) ->  | AB36: =VLOOKUP(A36,saisie!B$7:AL$26,28,0) ->  | AC36: =VLOOKUP(A36,saisie!B$7:AL$26,29,0) ->  | AD36: =VLOOKUP(A36,saisie!B$7:AL$26,30,0) ->  | AE36: =VLOOKUP(A36,saisie!B$7:AL$26,31,0) ->  | AF36: =VLOOKUP(A36,saisie!B$7:AL$26,32,0) ->  | AG36: =VLOOKUP(A36,saisie!B$7:AL$26,33,0) ->  | AH36: =VLOOKUP(A36,saisie!B$7:AL$26,34,0) ->  | AI36: =VLOOKUP(A36,saisie!B$7:AL$26,35,0) -> 
A37: =IF(INFO!B8>30,31,"") ->  | B37: =VLOOKUP(A37,saisie!B$7:AL$26,2,0) ->  | C37: =VLOOKUP(A37,saisie!B$7:AL$26,3,0) ->  | D37: =VLOOKUP(A37,saisie!B$7:AL$26,4,0) ->  | E37: =VLOOKUP(A37,saisie!B$7:AL$26,5,0) ->  | F37: =VLOOKUP(A37,saisie!B$7:AL$26,6,0) ->  | G37: =VLOOKUP(A37,saisie!B$7:AL$26,7,0) ->  | H37: =VLOOKUP(A37,saisie!B$7:AL$26,8,0) ->  | I37: =VLOOKUP(A37,saisie!B$7:AL$26,9,0) ->  | J37: =VLOOKUP(A37,saisie!B$7:AL$26,10,0) ->  | K37: =VLOOKUP(A37,saisie!B$7:AL$26,11,0) ->  | L37: =VLOOKUP(A37,saisie!B$7:AL$26,12,0) ->  | M37: =VLOOKUP(A37,saisie!B$7:AL$26,13,0) ->  | N37: =VLOOKUP(A37,saisie!B$7:AL$26,14,0) ->  | O37: =VLOOKUP(A37,saisie!B$7:AL$26,15,0) ->  | P37: =VLOOKUP(A37,saisie!B$7:AL$26,16,0) ->  | Q37: =VLOOKUP(A37,saisie!B$7:AL$26,17,0) ->  | R37: =VLOOKUP(A37,saisie!B$7:AL$26,18,0) ->  | S37: =VLOOKUP(A37,saisie!B$7:AL$26,19,0) ->  | T37: =VLOOKUP(A37,saisie!B$7:AL$26,20,0) ->  | U37: =VLOOKUP(A37,saisie!B$7:AL$26,21,0) ->  | V37: =VLOOKUP(A37,saisie!B$7:AL$26,22,0) ->  | W37: =VLOOKUP(A37,saisie!B$7:AL$26,23,0) ->  | X37: =VLOOKUP(A37,saisie!B$7:AL$26,24,0) ->  | Y37: =VLOOKUP(A37,saisie!B$7:AL$26,25,0) ->  | Z37: =VLOOKUP(A37,saisie!B$7:AL$26,26,0) ->  | AA37: =VLOOKUP(A37,saisie!B$7:AL$26,27,0) ->  | AB37: =VLOOKUP(A37,saisie!B$7:AL$26,28,0) ->  | AC37: =VLOOKUP(A37,saisie!B$7:AL$26,29,0) ->  | AD37: =VLOOKUP(A37,saisie!B$7:AL$26,30,0) ->  | AE37: =VLOOKUP(A37,saisie!B$7:AL$26,31,0) ->  | AF37: =VLOOKUP(A37,saisie!B$7:AL$26,32,0) ->  | AG37: =VLOOKUP(A37,saisie!B$7:AL$26,33,0) ->  | AH37: =VLOOKUP(A37,saisie!B$7:AL$26,34,0) ->  | AI37: =VLOOKUP(A37,saisie!B$7:AL$26,35,0) -> 
A38: =IF(INFO!B8>31,32,"") ->  | B38: =VLOOKUP(A38,saisie!B$7:AL$26,2,0) ->  | C38: =VLOOKUP(A38,saisie!B$7:AL$26,3,0) ->  | D38: =VLOOKUP(A38,saisie!B$7:AL$26,4,0) ->  | E38: =VLOOKUP(A38,saisie!B$7:AL$26,5,0) ->  | F38: =VLOOKUP(A38,saisie!B$7:AL$26,6,0) ->  | G38: =VLOOKUP(A38,saisie!B$7:AL$26,7,0) ->  | H38: =VLOOKUP(A38,saisie!B$7:AL$26,8,0) ->  | I38: =VLOOKUP(A38,saisie!B$7:AL$26,9,0) ->  | J38: =VLOOKUP(A38,saisie!B$7:AL$26,10,0) ->  | K38: =VLOOKUP(A38,saisie!B$7:AL$26,11,0) ->  | L38: =VLOOKUP(A38,saisie!B$7:AL$26,12,0) ->  | M38: =VLOOKUP(A38,saisie!B$7:AL$26,13,0) ->  | N38: =VLOOKUP(A38,saisie!B$7:AL$26,14,0) ->  | O38: =VLOOKUP(A38,saisie!B$7:AL$26,15,0) ->  | P38: =VLOOKUP(A38,saisie!B$7:AL$26,16,0) ->  | Q38: =VLOOKUP(A38,saisie!B$7:AL$26,17,0) ->  | R38: =VLOOKUP(A38,saisie!B$7:AL$26,18,0) ->  | S38: =VLOOKUP(A38,saisie!B$7:AL$26,19,0) ->  | T38: =VLOOKUP(A38,saisie!B$7:AL$26,20,0) ->  | U38: =VLOOKUP(A38,saisie!B$7:AL$26,21,0) ->  | V38: =VLOOKUP(A38,saisie!B$7:AL$26,22,0) ->  | W38: =VLOOKUP(A38,saisie!B$7:AL$26,23,0) ->  | X38: =VLOOKUP(A38,saisie!B$7:AL$26,24,0) ->  | Y38: =VLOOKUP(A38,saisie!B$7:AL$26,25,0) ->  | Z38: =VLOOKUP(A38,saisie!B$7:AL$26,26,0) ->  | AA38: =VLOOKUP(A38,saisie!B$7:AL$26,27,0) ->  | AB38: =VLOOKUP(A38,saisie!B$7:AL$26,28,0) ->  | AC38: =VLOOKUP(A38,saisie!B$7:AL$26,29,0) ->  | AD38: =VLOOKUP(A38,saisie!B$7:AL$26,30,0) ->  | AE38: =VLOOKUP(A38,saisie!B$7:AL$26,31,0) ->  | AF38: =VLOOKUP(A38,saisie!B$7:AL$26,32,0) ->  | AG38: =VLOOKUP(A38,saisie!B$7:AL$26,33,0) ->  | AH38: =VLOOKUP(A38,saisie!B$7:AL$26,34,0) ->  | AI38: =VLOOKUP(A38,saisie!B$7:AL$26,35,0) -> 
A39: =IF(INFO!B8>32,33,"") ->  | B39: =VLOOKUP(A39,saisie!B$7:AL$26,2,0) ->  | C39: =VLOOKUP(A39,saisie!B$7:AL$26,3,0) ->  | D39: =VLOOKUP(A39,saisie!B$7:AL$26,4,0) ->  | E39: =VLOOKUP(A39,saisie!B$7:AL$26,5,0) ->  | F39: =VLOOKUP(A39,saisie!B$7:AL$26,6,0) ->  | G39: =VLOOKUP(A39,saisie!B$7:AL$26,7,0) ->  | H39: =VLOOKUP(A39,saisie!B$7:AL$26,8,0) ->  | I39: =VLOOKUP(A39,saisie!B$7:AL$26,9,0) ->  | J39: =VLOOKUP(A39,saisie!B$7:AL$26,10,0) ->  | K39: =VLOOKUP(A39,saisie!B$7:AL$26,11,0) ->  | L39: =VLOOKUP(A39,saisie!B$7:AL$26,12,0) ->  | M39: =VLOOKUP(A39,saisie!B$7:AL$26,13,0) ->  | N39: =VLOOKUP(A39,saisie!B$7:AL$26,14,0) ->  | O39: =VLOOKUP(A39,saisie!B$7:AL$26,15,0) ->  | P39: =VLOOKUP(A39,saisie!B$7:AL$26,16,0) ->  | Q39: =VLOOKUP(A39,saisie!B$7:AL$26,17,0) ->  | R39: =VLOOKUP(A39,saisie!B$7:AL$26,18,0) ->  | S39: =VLOOKUP(A39,saisie!B$7:AL$26,19,0) ->  | T39: =VLOOKUP(A39,saisie!B$7:AL$26,20,0) ->  | U39: =VLOOKUP(A39,saisie!B$7:AL$26,21,0) ->  | V39: =VLOOKUP(A39,saisie!B$7:AL$26,22,0) ->  | W39: =VLOOKUP(A39,saisie!B$7:AL$26,23,0) ->  | X39: =VLOOKUP(A39,saisie!B$7:AL$26,24,0) ->  | Y39: =VLOOKUP(A39,saisie!B$7:AL$26,25,0) ->  | Z39: =VLOOKUP(A39,saisie!B$7:AL$26,26,0) ->  | AA39: =VLOOKUP(A39,saisie!B$7:AL$26,27,0) ->  | AB39: =VLOOKUP(A39,saisie!B$7:AL$26,28,0) ->  | AC39: =VLOOKUP(A39,saisie!B$7:AL$26,29,0) ->  | AD39: =VLOOKUP(A39,saisie!B$7:AL$26,30,0) ->  | AE39: =VLOOKUP(A39,saisie!B$7:AL$26,31,0) ->  | AF39: =VLOOKUP(A39,saisie!B$7:AL$26,32,0) ->  | AG39: =VLOOKUP(A39,saisie!B$7:AL$26,33,0) ->  | AH39: =VLOOKUP(A39,saisie!B$7:AL$26,34,0) ->  | AI39: =VLOOKUP(A39,saisie!B$7:AL$26,35,0) -> 
A40: =IF(INFO!B8>33,34,"") ->  | B40: =VLOOKUP(A40,saisie!B$7:AL$26,2,0) ->  | C40: =VLOOKUP(A40,saisie!B$7:AL$26,3,0) ->  | D40: =VLOOKUP(A40,saisie!B$7:AL$26,4,0) ->  | E40: =VLOOKUP(A40,saisie!B$7:AL$26,5,0) ->  | F40: =VLOOKUP(A40,saisie!B$7:AL$26,6,0) ->  | G40: =VLOOKUP(A40,saisie!B$7:AL$26,7,0) ->  | H40: =VLOOKUP(A40,saisie!B$7:AL$26,8,0) ->  | I40: =VLOOKUP(A40,saisie!B$7:AL$26,9,0) ->  | J40: =VLOOKUP(A40,saisie!B$7:AL$26,10,0) ->  | K40: =VLOOKUP(A40,saisie!B$7:AL$26,11,0) ->  | L40: =VLOOKUP(A40,saisie!B$7:AL$26,12,0) ->  | M40: =VLOOKUP(A40,saisie!B$7:AL$26,13,0) ->  | N40: =VLOOKUP(A40,saisie!B$7:AL$26,14,0) ->  | O40: =VLOOKUP(A40,saisie!B$7:AL$26,15,0) ->  | P40: =VLOOKUP(A40,saisie!B$7:AL$26,16,0) ->  | Q40: =VLOOKUP(A40,saisie!B$7:AL$26,17,0) ->  | R40: =VLOOKUP(A40,saisie!B$7:AL$26,18,0) ->  | S40: =VLOOKUP(A40,saisie!B$7:AL$26,19,0) ->  | T40: =VLOOKUP(A40,saisie!B$7:AL$26,20,0) ->  | U40: =VLOOKUP(A40,saisie!B$7:AL$26,21,0) ->  | V40: =VLOOKUP(A40,saisie!B$7:AL$26,22,0) ->  | W40: =VLOOKUP(A40,saisie!B$7:AL$26,23,0) ->  | X40: =VLOOKUP(A40,saisie!B$7:AL$26,24,0) ->  | Y40: =VLOOKUP(A40,saisie!B$7:AL$26,25,0) ->  | Z40: =VLOOKUP(A40,saisie!B$7:AL$26,26,0) ->  | AA40: =VLOOKUP(A40,saisie!B$7:AL$26,27,0) ->  | AB40: =VLOOKUP(A40,saisie!B$7:AL$26,28,0) ->  | AC40: =VLOOKUP(A40,saisie!B$7:AL$26,29,0) ->  | AD40: =VLOOKUP(A40,saisie!B$7:AL$26,30,0) ->  | AE40: =VLOOKUP(A40,saisie!B$7:AL$26,31,0) ->  | AF40: =VLOOKUP(A40,saisie!B$7:AL$26,32,0) ->  | AG40: =VLOOKUP(A40,saisie!B$7:AL$26,33,0) ->  | AH40: =VLOOKUP(A40,saisie!B$7:AL$26,34,0) ->  | AI40: =VLOOKUP(A40,saisie!B$7:AL$26,35,0) -> 
A41: =IF(INFO!B8>34,35,"") ->  | B41: =VLOOKUP(A41,saisie!B$7:AL$26,2,0) ->  | C41: =VLOOKUP(A41,saisie!B$7:AL$26,3,0) ->  | D41: =VLOOKUP(A41,saisie!B$7:AL$26,4,0) ->  | E41: =VLOOKUP(A41,saisie!B$7:AL$26,5,0) ->  | F41: =VLOOKUP(A41,saisie!B$7:AL$26,6,0) ->  | G41: =VLOOKUP(A41,saisie!B$7:AL$26,7,0) ->  | H41: =VLOOKUP(A41,saisie!B$7:AL$26,8,0) ->  | I41: =VLOOKUP(A41,saisie!B$7:AL$26,9,0) ->  | J41: =VLOOKUP(A41,saisie!B$7:AL$26,10,0) ->  | K41: =VLOOKUP(A41,saisie!B$7:AL$26,11,0) ->  | L41: =VLOOKUP(A41,saisie!B$7:AL$26,12,0) ->  | M41: =VLOOKUP(A41,saisie!B$7:AL$26,13,0) ->  | N41: =VLOOKUP(A41,saisie!B$7:AL$26,14,0) ->  | O41: =VLOOKUP(A41,saisie!B$7:AL$26,15,0) ->  | P41: =VLOOKUP(A41,saisie!B$7:AL$26,16,0) ->  | Q41: =VLOOKUP(A41,saisie!B$7:AL$26,17,0) ->  | R41: =VLOOKUP(A41,saisie!B$7:AL$26,18,0) ->  | S41: =VLOOKUP(A41,saisie!B$7:AL$26,19,0) ->  | T41: =VLOOKUP(A41,saisie!B$7:AL$26,20,0) ->  | U41: =VLOOKUP(A41,saisie!B$7:AL$26,21,0) ->  | V41: =VLOOKUP(A41,saisie!B$7:AL$26,22,0) ->  | W41: =VLOOKUP(A41,saisie!B$7:AL$26,23,0) ->  | X41: =VLOOKUP(A41,saisie!B$7:AL$26,24,0) ->  | Y41: =VLOOKUP(A41,saisie!B$7:AL$26,25,0) ->  | Z41: =VLOOKUP(A41,saisie!B$7:AL$26,26,0) ->  | AA41: =VLOOKUP(A41,saisie!B$7:AL$26,27,0) ->  | AB41: =VLOOKUP(A41,saisie!B$7:AL$26,28,0) ->  | AC41: =VLOOKUP(A41,saisie!B$7:AL$26,29,0) ->  | AD41: =VLOOKUP(A41,saisie!B$7:AL$26,30,0) ->  | AE41: =VLOOKUP(A41,saisie!B$7:AL$26,31,0) ->  | AF41: =VLOOKUP(A41,saisie!B$7:AL$26,32,0) ->  | AG41: =VLOOKUP(A41,saisie!B$7:AL$26,33,0) ->  | AH41: =VLOOKUP(A41,saisie!B$7:AL$26,34,0) ->  | AI41: =VLOOKUP(A41,saisie!B$7:AL$26,35,0) -> 
A42: =IF(INFO!B8>35,36,"") ->  | B42: =VLOOKUP(A42,saisie!B$7:AL$26,2,0) ->  | C42: =VLOOKUP(A42,saisie!B$7:AL$26,3,0) ->  | D42: =VLOOKUP(A42,saisie!B$7:AL$26,4,0) ->  | E42: =VLOOKUP(A42,saisie!B$7:AL$26,5,0) ->  | F42: =VLOOKUP(A42,saisie!B$7:AL$26,6,0) ->  | G42: =VLOOKUP(A42,saisie!B$7:AL$26,7,0) ->  | H42: =VLOOKUP(A42,saisie!B$7:AL$26,8,0) ->  | I42: =VLOOKUP(A42,saisie!B$7:AL$26,9,0) ->  | J42: =VLOOKUP(A42,saisie!B$7:AL$26,10,0) ->  | K42: =VLOOKUP(A42,saisie!B$7:AL$26,11,0) ->  | L42: =VLOOKUP(A42,saisie!B$7:AL$26,12,0) ->  | M42: =VLOOKUP(A42,saisie!B$7:AL$26,13,0) ->  | N42: =VLOOKUP(A42,saisie!B$7:AL$26,14,0) ->  | O42: =VLOOKUP(A42,saisie!B$7:AL$26,15,0) ->  | P42: =VLOOKUP(A42,saisie!B$7:AL$26,16,0) ->  | Q42: =VLOOKUP(A42,saisie!B$7:AL$26,17,0) ->  | R42: =VLOOKUP(A42,saisie!B$7:AL$26,18,0) ->  | S42: =VLOOKUP(A42,saisie!B$7:AL$26,19,0) ->  | T42: =VLOOKUP(A42,saisie!B$7:AL$26,20,0) ->  | U42: =VLOOKUP(A42,saisie!B$7:AL$26,21,0) ->  | V42: =VLOOKUP(A42,saisie!B$7:AL$26,22,0) ->  | W42: =VLOOKUP(A42,saisie!B$7:AL$26,23,0) ->  | X42: =VLOOKUP(A42,saisie!B$7:AL$26,24,0) ->  | Y42: =VLOOKUP(A42,saisie!B$7:AL$26,25,0) ->  | Z42: =VLOOKUP(A42,saisie!B$7:AL$26,26,0) ->  | AA42: =VLOOKUP(A42,saisie!B$7:AL$26,27,0) ->  | AB42: =VLOOKUP(A42,saisie!B$7:AL$26,28,0) ->  | AC42: =VLOOKUP(A42,saisie!B$7:AL$26,29,0) ->  | AD42: =VLOOKUP(A42,saisie!B$7:AL$26,30,0) ->  | AE42: =VLOOKUP(A42,saisie!B$7:AL$26,31,0) ->  | AF42: =VLOOKUP(A42,saisie!B$7:AL$26,32,0) ->  | AG42: =VLOOKUP(A42,saisie!B$7:AL$26,33,0) ->  | AH42: =VLOOKUP(A42,saisie!B$7:AL$26,34,0) ->  | AI42: =VLOOKUP(A42,saisie!B$7:AL$26,35,0) -> 
A43: =IF(INFO!B8>36,37,"") ->  | B43: =VLOOKUP(A43,saisie!B$7:AL$26,2,0) ->  | C43: =VLOOKUP(A43,saisie!B$7:AL$26,3,0) ->  | D43: =VLOOKUP(A43,saisie!B$7:AL$26,4,0) ->  | E43: =VLOOKUP(A43,saisie!B$7:AL$26,5,0) ->  | F43: =VLOOKUP(A43,saisie!B$7:AL$26,6,0) ->  | G43: =VLOOKUP(A43,saisie!B$7:AL$26,7,0) ->  | H43: =VLOOKUP(A43,saisie!B$7:AL$26,8,0) ->  | I43: =VLOOKUP(A43,saisie!B$7:AL$26,9,0) ->  | J43: =VLOOKUP(A43,saisie!B$7:AL$26,10,0) ->  | K43: =VLOOKUP(A43,saisie!B$7:AL$26,11,0) ->  | L43: =VLOOKUP(A43,saisie!B$7:AL$26,12,0) ->  | M43: =VLOOKUP(A43,saisie!B$7:AL$26,13,0) ->  | N43: =VLOOKUP(A43,saisie!B$7:AL$26,14,0) ->  | O43: =VLOOKUP(A43,saisie!B$7:AL$26,15,0) ->  | P43: =VLOOKUP(A43,saisie!B$7:AL$26,16,0) ->  | Q43: =VLOOKUP(A43,saisie!B$7:AL$26,17,0) ->  | R43: =VLOOKUP(A43,saisie!B$7:AL$26,18,0) ->  | S43: =VLOOKUP(A43,saisie!B$7:AL$26,19,0) ->  | T43: =VLOOKUP(A43,saisie!B$7:AL$26,20,0) ->  | U43: =VLOOKUP(A43,saisie!B$7:AL$26,21,0) ->  | V43: =VLOOKUP(A43,saisie!B$7:AL$26,22,0) ->  | W43: =VLOOKUP(A43,saisie!B$7:AL$26,23,0) ->  | X43: =VLOOKUP(A43,saisie!B$7:AL$26,24,0) ->  | Y43: =VLOOKUP(A43,saisie!B$7:AL$26,25,0) ->  | Z43: =VLOOKUP(A43,saisie!B$7:AL$26,26,0) ->  | AA43: =VLOOKUP(A43,saisie!B$7:AL$26,27,0) ->  | AB43: =VLOOKUP(A43,saisie!B$7:AL$26,28,0) ->  | AC43: =VLOOKUP(A43,saisie!B$7:AL$26,29,0) ->  | AD43: =VLOOKUP(A43,saisie!B$7:AL$26,30,0) ->  | AE43: =VLOOKUP(A43,saisie!B$7:AL$26,31,0) ->  | AF43: =VLOOKUP(A43,saisie!B$7:AL$26,32,0) ->  | AG43: =VLOOKUP(A43,saisie!B$7:AL$26,33,0) ->  | AH43: =VLOOKUP(A43,saisie!B$7:AL$26,34,0) ->  | AI43: =VLOOKUP(A43,saisie!B$7:AL$26,35,0) -> 
A44: =IF(INFO!B8>37,38,"") ->  | B44: =VLOOKUP(A44,saisie!B$7:AL$26,2,0) ->  | C44: =VLOOKUP(A44,saisie!B$7:AL$26,3,0) ->  | D44: =VLOOKUP(A44,saisie!B$7:AL$26,4,0) ->  | E44: =VLOOKUP(A44,saisie!B$7:AL$26,5,0) ->  | F44: =VLOOKUP(A44,saisie!B$7:AL$26,6,0) ->  | G44: =VLOOKUP(A44,saisie!B$7:AL$26,7,0) ->  | H44: =VLOOKUP(A44,saisie!B$7:AL$26,8,0) ->  | I44: =VLOOKUP(A44,saisie!B$7:AL$26,9,0) ->  | J44: =VLOOKUP(A44,saisie!B$7:AL$26,10,0) ->  | K44: =VLOOKUP(A44,saisie!B$7:AL$26,11,0) ->  | L44: =VLOOKUP(A44,saisie!B$7:AL$26,12,0) ->  | M44: =VLOOKUP(A44,saisie!B$7:AL$26,13,0) ->  | N44: =VLOOKUP(A44,saisie!B$7:AL$26,14,0) ->  | O44: =VLOOKUP(A44,saisie!B$7:AL$26,15,0) ->  | P44: =VLOOKUP(A44,saisie!B$7:AL$26,16,0) ->  | Q44: =VLOOKUP(A44,saisie!B$7:AL$26,17,0) ->  | R44: =VLOOKUP(A44,saisie!B$7:AL$26,18,0) ->  | S44: =VLOOKUP(A44,saisie!B$7:AL$26,19,0) ->  | T44: =VLOOKUP(A44,saisie!B$7:AL$26,20,0) ->  | U44: =VLOOKUP(A44,saisie!B$7:AL$26,21,0) ->  | V44: =VLOOKUP(A44,saisie!B$7:AL$26,22,0) ->  | W44: =VLOOKUP(A44,saisie!B$7:AL$26,23,0) ->  | X44: =VLOOKUP(A44,saisie!B$7:AL$26,24,0) ->  | Y44: =VLOOKUP(A44,saisie!B$7:AL$26,25,0) ->  | Z44: =VLOOKUP(A44,saisie!B$7:AL$26,26,0) ->  | AA44: =VLOOKUP(A44,saisie!B$7:AL$26,27,0) ->  | AB44: =VLOOKUP(A44,saisie!B$7:AL$26,28,0) ->  | AC44: =VLOOKUP(A44,saisie!B$7:AL$26,29,0) ->  | AD44: =VLOOKUP(A44,saisie!B$7:AL$26,30,0) ->  | AE44: =VLOOKUP(A44,saisie!B$7:AL$26,31,0) ->  | AF44: =VLOOKUP(A44,saisie!B$7:AL$26,32,0) ->  | AG44: =VLOOKUP(A44,saisie!B$7:AL$26,33,0) ->  | AH44: =VLOOKUP(A44,saisie!B$7:AL$26,34,0) ->  | AI44: =VLOOKUP(A44,saisie!B$7:AL$26,35,0) -> 
A45: =IF(INFO!B8>38,39,"") ->  | B45: =VLOOKUP(A45,saisie!B$7:AL$26,2,0) ->  | C45: =VLOOKUP(A45,saisie!B$7:AL$26,3,0) ->  | D45: =VLOOKUP(A45,saisie!B$7:AL$26,4,0) ->  | E45: =VLOOKUP(A45,saisie!B$7:AL$26,5,0) ->  | F45: =VLOOKUP(A45,saisie!B$7:AL$26,6,0) ->  | G45: =VLOOKUP(A45,saisie!B$7:AL$26,7,0) ->  | H45: =VLOOKUP(A45,saisie!B$7:AL$26,8,0) ->  | I45: =VLOOKUP(A45,saisie!B$7:AL$26,9,0) ->  | J45: =VLOOKUP(A45,saisie!B$7:AL$26,10,0) ->  | K45: =VLOOKUP(A45,saisie!B$7:AL$26,11,0) ->  | L45: =VLOOKUP(A45,saisie!B$7:AL$26,12,0) ->  | M45: =VLOOKUP(A45,saisie!B$7:AL$26,13,0) ->  | N45: =VLOOKUP(A45,saisie!B$7:AL$26,14,0) ->  | O45: =VLOOKUP(A45,saisie!B$7:AL$26,15,0) ->  | P45: =VLOOKUP(A45,saisie!B$7:AL$26,16,0) ->  | Q45: =VLOOKUP(A45,saisie!B$7:AL$26,17,0) ->  | R45: =VLOOKUP(A45,saisie!B$7:AL$26,18,0) ->  | S45: =VLOOKUP(A45,saisie!B$7:AL$26,19,0) ->  | T45: =VLOOKUP(A45,saisie!B$7:AL$26,20,0) ->  | U45: =VLOOKUP(A45,saisie!B$7:AL$26,21,0) ->  | V45: =VLOOKUP(A45,saisie!B$7:AL$26,22,0) ->  | W45: =VLOOKUP(A45,saisie!B$7:AL$26,23,0) ->  | X45: =VLOOKUP(A45,saisie!B$7:AL$26,24,0) ->  | Y45: =VLOOKUP(A45,saisie!B$7:AL$26,25,0) ->  | Z45: =VLOOKUP(A45,saisie!B$7:AL$26,26,0) ->  | AA45: =VLOOKUP(A45,saisie!B$7:AL$26,27,0) ->  | AB45: =VLOOKUP(A45,saisie!B$7:AL$26,28,0) ->  | AC45: =VLOOKUP(A45,saisie!B$7:AL$26,29,0) ->  | AD45: =VLOOKUP(A45,saisie!B$7:AL$26,30,0) ->  | AE45: =VLOOKUP(A45,saisie!B$7:AL$26,31,0) ->  | AF45: =VLOOKUP(A45,saisie!B$7:AL$26,32,0) ->  | AG45: =VLOOKUP(A45,saisie!B$7:AL$26,33,0) ->  | AH45: =VLOOKUP(A45,saisie!B$7:AL$26,34,0) ->  | AI45: =VLOOKUP(A45,saisie!B$7:AL$26,35,0) -> 
A46: =IF(INFO!B8>39,40,"") ->  | B46: =VLOOKUP(A46,saisie!B$7:AL$26,2,0) ->  | C46: =VLOOKUP(A46,saisie!B$7:AL$26,3,0) ->  | D46: =VLOOKUP(A46,saisie!B$7:AL$26,4,0) ->  | E46: =VLOOKUP(A46,saisie!B$7:AL$26,5,0) ->  | F46: =VLOOKUP(A46,saisie!B$7:AL$26,6,0) ->  | G46: =VLOOKUP(A46,saisie!B$7:AL$26,7,0) ->  | H46: =VLOOKUP(A46,saisie!B$7:AL$26,8,0) ->  | I46: =VLOOKUP(A46,saisie!B$7:AL$26,9,0) ->  | J46: =VLOOKUP(A46,saisie!B$7:AL$26,10,0) ->  | K46: =VLOOKUP(A46,saisie!B$7:AL$26,11,0) ->  | L46: =VLOOKUP(A46,saisie!B$7:AL$26,12,0) ->  | M46: =VLOOKUP(A46,saisie!B$7:AL$26,13,0) ->  | N46: =VLOOKUP(A46,saisie!B$7:AL$26,14,0) ->  | O46: =VLOOKUP(A46,saisie!B$7:AL$26,15,0) ->  | P46: =VLOOKUP(A46,saisie!B$7:AL$26,16,0) ->  | Q46: =VLOOKUP(A46,saisie!B$7:AL$26,17,0) ->  | R46: =VLOOKUP(A46,saisie!B$7:AL$26,18,0) ->  | S46: =VLOOKUP(A46,saisie!B$7:AL$26,19,0) ->  | T46: =VLOOKUP(A46,saisie!B$7:AL$26,20,0) ->  | U46: =VLOOKUP(A46,saisie!B$7:AL$26,21,0) ->  | V46: =VLOOKUP(A46,saisie!B$7:AL$26,22,0) ->  | W46: =VLOOKUP(A46,saisie!B$7:AL$26,23,0) ->  | X46: =VLOOKUP(A46,saisie!B$7:AL$26,24,0) ->  | Y46: =VLOOKUP(A46,saisie!B$7:AL$26,25,0) ->  | Z46: =VLOOKUP(A46,saisie!B$7:AL$26,26,0) ->  | AA46: =VLOOKUP(A46,saisie!B$7:AL$26,27,0) ->  | AB46: =VLOOKUP(A46,saisie!B$7:AL$26,28,0) ->  | AC46: =VLOOKUP(A46,saisie!B$7:AL$26,29,0) ->  | AD46: =VLOOKUP(A46,saisie!B$7:AL$26,30,0) ->  | AE46: =VLOOKUP(A46,saisie!B$7:AL$26,31,0) ->  | AF46: =VLOOKUP(A46,saisie!B$7:AL$26,32,0) ->  | AG46: =VLOOKUP(A46,saisie!B$7:AL$26,33,0) ->  | AH46: =VLOOKUP(A46,saisie!B$7:AL$26,34,0) ->  | AI46: =VLOOKUP(A46,saisie!B$7:AL$26,35,0) -> 

Sheet Clb Q (2) (hidden)
B1: CLUB N°1 | C1: ='M Q'!B7 -> ROCHEFORT T.S.R | F1: ='M Q'!AH7 -> 1312 | J1: =IF(INFO!B8>7,"CLUB N°8","") ->  | K1: ='M Q'!B14 ->  | N1: ='M Q'!AH14 -> 
B2: NOMS | C2: série 1 | D2: série 2 | E2: série 3 | F2: POINTS | J2: NOMS | K2: série 1 | L2: série 2 | M2: série 3 | N2: POINTS
A3: =F3+0.0001*G3+0.0000001*E3+0.0000000001*D3 -> 267.0000088 | B3: ='M Q'!D7 -> BAUDET Philippe | C3: ='M Q'!E7 -> 89 | D3: ='M Q'!F7 -> 90 | E3: ='M Q'!G7 -> 88 | F3: ='M Q'!H7 -> 267 | G3: ='M Q'!I7 -> 0 | I3: =N3+0.0001*O3+0.0000001*M3+0.0000000001*L3 ->  | J3: ='M Q'!D14 ->  | K3: ='M Q'!E14 ->  | L3: ='M Q'!F14 ->  | M3: ='M Q'!G14 ->  | N3: ='M Q'!H14 ->  | O3: ='M Q'!I14 -> 
A4: =F4+0.0001*G4+0.0000001*E4+0.0000000001*D4 -> 281.0000095 | B4: ='M Q'!J7 -> BERGOGNE Cyril | C4: ='M Q'!K7 -> 95 | D4: ='M Q'!L7 -> 91 | E4: ='M Q'!M7 -> 95 | F4: ='M Q'!N7 -> 281 | G4: ='M Q'!O7 -> 0 | I4: =N4+0.0001*O4+0.0000001*M4+0.0000000001*L4 ->  | J4: ='M Q'!J14 ->  | K4: ='M Q'!K14 ->  | L4: ='M Q'!L14 ->  | M4: ='M Q'!M14 ->  | N4: ='M Q'!N14 ->  | O4: ='M Q'!O14 -> 
A5: =F5+0.0001*G5+0.0000001*E5+0.0000000001*D5 -> 261.0000086 | B5: ='M Q'!P7 -> MERCIER Rémy | C5: ='M Q'!Q7 -> 87 | D5: ='M Q'!R7 -> 88 | E5: ='M Q'!S7 -> 86 | F5: ='M Q'!T7 -> 261 | G5: ='M Q'!U7 -> 0 | I5: =N5+0.0001*O5+0.0000001*M5+0.0000000001*L5 ->  | J5: ='M Q'!P14 ->  | K5: ='M Q'!Q14 ->  | L5: ='M Q'!R14 ->  | M5: ='M Q'!S14 ->  | N5: ='M Q'!T14 ->  | O5: ='M Q'!U14 -> 
A6: =F6+0.0001*G6+0.0000001*E6+0.0000000001*D6 -> 234.0000077 | B6: ='M Q'!V7 -> BRIAND Ptrick | C6: ='M Q'!W7 -> 83 | D6: ='M Q'!X7 -> 74 | E6: ='M Q'!Y7 -> 77 | F6: ='M Q'!Z7 -> 234 | G6: ='M Q'!AA7 -> 0 | I6: =N6+0.0001*O6+0.0000001*M6+0.0000000001*L6 ->  | J6: ='M Q'!V14 ->  | K6: ='M Q'!W14 ->  | L6: ='M Q'!X14 ->  | M6: ='M Q'!Y14 ->  | N6: ='M Q'!Z14 ->  | O6: ='M Q'!AA14 -> 
A7: =F7+0.0001*G7+0.0000001*E7+0.0000000001*D7 -> 269.0000091 | B7: ='M Q'!AB7 -> MERCIER Mickael | C7: ='M Q'!AC7 -> 88 | D7: ='M Q'!AD7 -> 90 | E7: ='M Q'!AE7 -> 91 | F7: ='M Q'!AF7 -> 269 | G7: ='M Q'!AG7 -> 0 | I7: =N7+0.0001*O7+0.0000001*M7+0.0000000001*L7 ->  | J7: ='M Q'!AB14 ->  | K7: ='M Q'!AC14 ->  | L7: ='M Q'!AD14 ->  | M7: ='M Q'!AE14 ->  | N7: ='M Q'!AF14 ->  | O7: ='M Q'!AG14 -> 
B9: CLUB N°2 | C9: ='M Q'!B8 -> PONS A.P.T.S | F9: ='M Q'!AH8 -> 1278 | J9: =IF(INFO!B8>6,"CLUB N°7","") ->  | K9: ='M Q'!B13 ->  | N9: ='M Q'!AH13 -> 
B10: NOMS | C10: série 1 | D10: série 2 | E10: série 3 | F10: POINTS | J10: NOMS | K10: série 1 | L10: série 2 | M10: série 3 | N10: POINTS
A11: =F11+0.0001*G11+0.0000001*E11+0.0000000001*D11 -> 237.0000075 | B11: ='M Q'!D8 -> DEBAIN Nathalie | C11: ='M Q'!E8 -> 80 | D11: ='M Q'!F8 -> 82 | E11: ='M Q'!G8 -> 75 | F11: ='M Q'!H8 -> 237 | G11: ='M Q'!I8 -> 0 | I11: =N11+0.0001*O11+0.0000001*M11+0.0000000001*L11 ->  | J11: ='M Q'!D13 ->  | K11: ='M Q'!E13 ->  | L11: ='M Q'!F13 ->  | M11: ='M Q'!G13 ->  | N11: ='M Q'!H13 ->  | O11: ='M Q'!I13 -> 
A12: =F12+0.0001*G12+0.0000001*E12+0.0000000001*D12 -> 257.0000092 | B12: ='M Q'!J8 -> ROUSSEAU Valérie | C12: ='M Q'!K8 -> 83 | D12: ='M Q'!L8 -> 82 | E12: ='M Q'!M8 -> 92 | F12: ='M Q'!N8 -> 257 | G12: ='M Q'!O8 -> 0 | I12: =N12+0.0001*O12+0.0000001*M12+0.0000000001*L12 ->  | J12: ='M Q'!J13 ->  | K12: ='M Q'!K13 ->  | L12: ='M Q'!L13 ->  | M12: ='M Q'!M13 ->  | N12: ='M Q'!N13 ->  | O12: ='M Q'!O13 -> 
A13: =F13+0.0001*G13+0.0000001*E13+0.0000000001*D13 -> 255.0000085 | B13: ='M Q'!P8 -> ROUSSEAU Thierry | C13: ='M Q'!Q8 -> 87 | D13: ='M Q'!R8 -> 83 | E13: ='M Q'!S8 -> 85 | F13: ='M Q'!T8 -> 255 | G13: ='M Q'!U8 -> 0 | I13: =N13+0.0001*O13+0.0000001*M13+0.0000000001*L13 ->  | J13: ='M Q'!P13 ->  | K13: ='M Q'!Q13 ->  | L13: ='M Q'!R13 ->  | M13: ='M Q'!S13 ->  | N13: ='M Q'!T13 ->  | O13: ='M Q'!U13 -> 
A14: =F14+0.0001*G14+0.0000001*E14+0.0000000001*D14 -> 259.0000089 | B14: ='M Q'!V8 -> POULLY Pascal | C14: ='M Q'!W8 -> 84 | D14: ='M Q'!X8 -> 86 | E14: ='M Q'!Y8 -> 89 | F14: ='M Q'!Z8 -> 259 | G14: ='M Q'!AA8 -> 0 | I14: =N14+0.0001*O14+0.0000001*M14+0.0000000001*L14 ->  | J14: ='M Q'!V13 ->  | K14: ='M Q'!W13 ->  | L14: ='M Q'!X13 ->  | M14: ='M Q'!Y13 ->  | N14: ='M Q'!Z13 ->  | O14: ='M Q'!AA13 -> 
A15: =F15+0.0001*G15+0.0000001*E15+0.0000000001*D15 -> 270.0000091 | B15: ='M Q'!AB8 -> BERNARD Kevin | C15: ='M Q'!AC8 -> 89 | D15: ='M Q'!AD8 -> 90 | E15: ='M Q'!AE8 -> 91 | F15: ='M Q'!AF8 -> 270 | G15: ='M Q'!AG8 -> 0 | I15: =N15+0.0001*O15+0.0000001*M15+0.0000000001*L15 ->  | J15: ='M Q'!AB13 ->  | K15: ='M Q'!AC13 ->  | L15: ='M Q'!AD13 ->  | M15: ='M Q'!AE13 ->  | N15: ='M Q'!AF13 ->  | O15: ='M Q'!AG13 -> 
B17: =IF(INFO!B8>2,"CLUB N°3","") -> CLUB N°3 | C17: ='M Q'!B9 -> JONZAC S.J.T | F17: ='M Q'!AH9 -> 1268 | J17: =IF(INFO!B8>5,"CLUB N°6","") ->  | K17: ='M Q'!B12 ->  | N17: ='M Q'!AH12 -> 
B18: NOMS | C18: série 1 | D18: série 2 | E18: série 3 | F18: POINTS | J18: NOMS | K18: série 1 | L18: série 2 | M18: série 3 | N18: POINTS
A19: =F19+0.0001*G19+0.0000001*E19+0.0000000001*D19 -> 247.0000083 | B19: ='M Q'!D9 -> GIOVANNONE Philippe | C19: ='M Q'!E9 -> 84 | D19: ='M Q'!F9 -> 80 | E19: ='M Q'!G9 -> 83 | F19: ='M Q'!H9 -> 247 | G19: ='M Q'!I9 -> 0 | I19: =N19+0.0001*O19+0.0000001*M19+0.0000000001*L19 ->  | J19: ='M Q'!D12 ->  | K19: ='M Q'!E12 ->  | L19: ='M Q'!F12 ->  | M19: ='M Q'!G12 ->  | N19: ='M Q'!H12 ->  | O19: ='M Q'!I12 -> 
A20: =F20+0.0001*G20+0.0000001*E20+0.0000000001*D20 -> 237.0000081 | B20: ='M Q'!J9 -> SOURIS Christine | C20: ='M Q'!K9 -> 81 | D20: ='M Q'!L9 -> 75 | E20: ='M Q'!M9 -> 81 | F20: ='M Q'!N9 -> 237 | G20: ='M Q'!O9 -> 0 | I20: =N20+0.0001*O20+0.0000001*M20+0.0000000001*L20 ->  | J20: ='M Q'!J12 ->  | K20: ='M Q'!K12 ->  | L20: ='M Q'!L12 ->  | M20: ='M Q'!M12 ->  | N20: ='M Q'!N12 ->  | O20: ='M Q'!O12 -> 
A21: =F21+0.0001*G21+0.0000001*E21+0.0000000001*D21 -> 272.0000088 | B21: ='M Q'!P9 -> ACHTOUK Kenza | C21: ='M Q'!Q9 -> 92 | D21: ='M Q'!R9 -> 92 | E21: ='M Q'!S9 -> 88 | F21: ='M Q'!T9 -> 272 | G21: ='M Q'!U9 -> 0 | I21: =N21+0.0001*O21+0.0000001*M21+0.0000000001*L21 ->  | J21: ='M Q'!P12 ->  | K21: ='M Q'!Q12 ->  | L21: ='M Q'!R12 ->  | M21: ='M Q'!S12 ->  | N21: ='M Q'!T12 ->  | O21: ='M Q'!U12 -> 
A22: =F22+0.0001*G22+0.0000001*E22+0.0000000001*D22 -> 250.0000089 | B22: ='M Q'!V9 -> ARRIGONI Stéphane | C22: ='M Q'!W9 -> 80 | D22: ='M Q'!X9 -> 81 | E22: ='M Q'!Y9 -> 89 | F22: ='M Q'!Z9 -> 250 | G22: ='M Q'!AA9 -> 0 | I22: =N22+0.0001*O22+0.0000001*M22+0.0000000001*L22 ->  | J22: ='M Q'!V12 ->  | K22: ='M Q'!W12 ->  | L22: ='M Q'!X12 ->  | M22: ='M Q'!Y12 ->  | N22: ='M Q'!Z12 ->  | O22: ='M Q'!AA12 -> 
A23: =F23+0.0001*G23+0.0000001*E23+0.0000000001*D23 -> 262.0000083 | B23: ='M Q'!AB9 -> CORMELIER Hervé | C23: ='M Q'!AC9 -> 91 | D23: ='M Q'!AD9 -> 88 | E23: ='M Q'!AE9 -> 83 | F23: ='M Q'!AF9 -> 262 | G23: ='M Q'!AG9 -> 0 | I23: =N23+0.0001*O23+0.0000001*M23+0.0000000001*L23 ->  | J23: ='M Q'!AB12 ->  | K23: ='M Q'!AC12 ->  | L23: ='M Q'!AD12 ->  | M23: ='M Q'!AE12 ->  | N23: ='M Q'!AF12 ->  | O23: ='M Q'!AG12 -> 
B25: =IF(INFO!B8>3,"CLUB N°4","") -> CLUB N°4 | C25: ='M Q'!B10 -> SAINTES S.S.T | F25: ='M Q'!AH10 -> 1142 | J25: =IF(INFO!B8>4,"CLUB N°5","") ->  | K25: ='M Q'!B11 ->  | N25: ='M Q'!AH11 -> 
B26: NOMS | C26: série 1 | D26: série 2 | E26: série 3 | F26: POINTS | J26: NOMS | K26: série 1 | L26: série 2 | M26: série 3 | N26: POINTS
A27: =F27+0.0001*G27+0.0000001*E27+0.0000000001*D27 -> 265.0000088 | B27: ='M Q'!D10 -> JACQUES Christophe | C27: ='M Q'!E10 -> 89 | D27: ='M Q'!F10 -> 88 | E27: ='M Q'!G10 -> 88 | F27: ='M Q'!H10 -> 265 | G27: ='M Q'!I10 -> 0 | I27: =N27+0.0001*O27+0.0000001*M27+0.0000000001*L27 ->  | J27: ='M Q'!D11 ->  | K27: ='M Q'!E11 ->  | L27: ='M Q'!F11 ->  | M27: ='M Q'!G11 ->  | N27: ='M Q'!H11 ->  | O27: ='M Q'!I11 -> 
A28: =F28+0.0001*G28+0.0000001*E28+0.0000000001*D28 -> 131.0000033 | B28: ='M Q'!J10 -> RABAT Catherine | C28: ='M Q'!K10 -> 52 | D28: ='M Q'!L10 -> 46 | E28: ='M Q'!M10 -> 33 | F28: ='M Q'!N10 -> 131 | G28: ='M Q'!O10 -> 0 | I28: =N28+0.0001*O28+0.0000001*M28+0.0000000001*L28 ->  | J28: ='M Q'!J11 ->  | K28: ='M Q'!K11 ->  | L28: ='M Q'!L11 ->  | M28: ='M Q'!M11 ->  | N28: ='M Q'!N11 ->  | O28: ='M Q'!O11 -> 
A29: =F29+0.0001*G29+0.0000001*E29+0.0000000001*D29 -> 248.0000083 | B29: ='M Q'!P10 -> SOULIER Jean | C29: ='M Q'!Q10 -> 81 | D29: ='M Q'!R10 -> 84 | E29: ='M Q'!S10 -> 83 | F29: ='M Q'!T10 -> 248 | G29: ='M Q'!U10 -> 0 | I29: =N29+0.0001*O29+0.0000001*M29+0.0000000001*L29 ->  | J29: ='M Q'!P11 ->  | K29: ='M Q'!Q11 ->  | L29: ='M Q'!R11 ->  | M29: ='M Q'!S11 ->  | N29: ='M Q'!T11 ->  | O29: ='M Q'!U11 -> 
A30: =F30+0.0001*G30+0.0000001*E30+0.0000000001*D30 -> 225.0000079 | B30: ='M Q'!V10 -> BOIN Bertrand | C30: ='M Q'!W10 -> 71 | D30: ='M Q'!X10 -> 75 | E30: ='M Q'!Y10 -> 79 | F30: ='M Q'!Z10 -> 225 | G30: ='M Q'!AA10 -> 0 | I30: =N30+0.0001*O30+0.0000001*M30+0.0000000001*L30 ->  | J30: ='M Q'!V11 ->  | K30: ='M Q'!W11 ->  | L30: ='M Q'!X11 ->  | M30: ='M Q'!Y11 ->  | N30: ='M Q'!Z11 ->  | O30: ='M Q'!AA11 -> 
A31: =F31+0.0001*G31+0.0000001*E31+0.0000000001*D31 -> 273.0000091 | B31: ='M Q'!AB10 -> FLEURET Eric | C31: ='M Q'!AC10 -> 92 | D31: ='M Q'!AD10 -> 90 | E31: ='M Q'!AE10 -> 91 | F31: ='M Q'!AF10 -> 273 | G31: ='M Q'!AG10 -> 0 | I31: =N31+0.0001*O31+0.0000001*M31+0.0000000001*L31 ->  | J31: ='M Q'!AB11 ->  | K31: ='M Q'!AC11 ->  | L31: ='M Q'!AD11 ->  | M31: ='M Q'!AE11 ->  | N31: ='M Q'!AF11 ->  | O31: ='M Q'!AG11 -> 

Sheet Clb Q
B1: CLUBS QUALIFIES EN PHASE FINALE
B2: CLUB N°1 | C2: ='Clb Q (2)'!C1 -> ROCHEFORT T.S.R | F2: ='Clb Q (2)'!F1 -> 1312 | H2: =IF(INFO!B8>7,"CLUB N°8","") ->  | I2: =IF(INFO!B8>7,'Clb Q (2)'!K1,"") ->  | L2: =IF(INFO!B8>7,'Clb Q (2)'!N1,"") -> 
B3: NOMS | C3: série 1 | D3: série 2 | E3: série 3 | F3: POINTS | H3: NOMS | I3: série 1 | J3: série 2 | K3: série 3 | L3: POINTS
B4: =VLOOKUP(F4,'Clb Q (2)'!A$3:G$7,2,0) -> BERGOGNE Cyril | C4: =VLOOKUP(F4,'Clb Q (2)'!A$3:G$7,3,0) -> 95 | D4: =VLOOKUP(F4,'Clb Q (2)'!A$3:G$7,4,0) -> 91 | E4: =VLOOKUP(F4,'Clb Q (2)'!A$3:G$7,5,0) -> 95 | F4: =LARGE('Clb Q (2)'!A$3:A$7,1) -> 281.0000095 | H4: =IF(INFO!B$8>7,VLOOKUP(L4,'Clb Q (2)'!I$3:O$7,2,0),"") ->  | I4: =IF(INFO!B$8>7,VLOOKUP(L4,'Clb Q (2)'!I$3:O$7,3,0),"") ->  | J4: =IF(INFO!B$8>7,VLOOKUP(L4,'Clb Q (2)'!I$3:O$7,4,0),"") ->  | K4: =IF(INFO!B$8>7,VLOOKUP(L4,'Clb Q (2)'!I$3:O$7,5,0),"") ->  | L4: =IF(INFO!B$8>7,LARGE('Clb Q (2)'!I$3:I$7,1),"") -> 
B5: =VLOOKUP(F5,'Clb Q (2)'!A$3:G$7,2,0) -> MERCIER Mickael | C5: =VLOOKUP(F5,'Clb Q (2)'!A$3:G$7,3,0) -> 88 | D5: =VLOOKUP(F5,'Clb Q (2)'!A$3:G$7,4,0) -> 90 | E5: =VLOOKUP(F5,'Clb Q (2)'!A$3:G$7,5,0) -> 91 | F5: =LARGE('Clb Q (2)'!A$3:A$7,2) -> 269.0000091 | H5: =IF(INFO!B$8>7,VLOOKUP(L5,'Clb Q (2)'!I$3:O$7,2,0),"") ->  | I5: =IF(INFO!B$8>7,VLOOKUP(L5,'Clb Q (2)'!I$3:O$7,3,0),"") ->  | J5: =IF(INFO!B$8>7,VLOOKUP(L5,'Clb Q (2)'!I$3:O$7,4,0),"") ->  | K5: =IF(INFO!B$8>7,VLOOKUP(L5,'Clb Q (2)'!I$3:O$7,5,0),"") ->  | L5: =IF(INFO!B$8>7,LARGE('Clb Q (2)'!I$3:I$7,2),"") -> 
B6: =VLOOKUP(F6,'Clb Q (2)'!A$3:G$7,2,0) -> BAUDET Philippe | C6: =VLOOKUP(F6,'Clb Q (2)'!A$3:G$7,3,0) -> 89 | D6: =VLOOKUP(F6,'Clb Q (2)'!A$3:G$7,4,0) -> 90 | E6: =VLOOKUP(F6,'Clb Q (2)'!A$3:G$7,5,0) -> 88 | F6: =LARGE('Clb Q (2)'!A$3:A$7,3) -> 267.0000088 | H6: =IF(INFO!B$8>7,VLOOKUP(L6,'Clb Q (2)'!I$3:O$7,2,0),"") ->  | I6: =IF(INFO!B$8>7,VLOOKUP(L6,'Clb Q (2)'!I$3:O$7,3,0),"") ->  | J6: =IF(INFO!B$8>7,VLOOKUP(L6,'Clb Q (2)'!I$3:O$7,4,0),"") ->  | K6: =IF(INFO!B$8>7,VLOOKUP(L6,'Clb Q (2)'!I$3:O$7,5,0),"") ->  | L6: =IF(INFO!B$8>7,LARGE('Clb Q (2)'!I$3:I$7,3),"") -> 
B7: =VLOOKUP(F7,'Clb Q (2)'!A$3:G$7,2,0) -> MERCIER Rémy | C7: =VLOOKUP(F7,'Clb Q (2)'!A$3:G$7,3,0) -> 87 | D7: =VLOOKUP(F7,'Clb Q (2)'!A$3:G$7,4,0) -> 88 | E7: =VLOOKUP(F7,'Clb Q (2)'!A$3:G$7,5,0) -> 86 | F7: =LARGE('Clb Q (2)'!A$3:A$7,4) -> 261.0000086 | H7: =IF(INFO!B$8>7,VLOOKUP(L7,'Clb Q (2)'!I$3:O$7,2,0),"") ->  | I7: =IF(INFO!B$8>7,VLOOKUP(L7,'Clb Q (2)'!I$3:O$7,3,0),"") ->  | J7: =IF(INFO!B$8>7,VLOOKUP(L7,'Clb Q (2)'!I$3:O$7,4,0),"") ->  | K7: =IF(INFO!B$8>7,VLOOKUP(L7,'Clb Q (2)'!I$3:O$7,5,0),"") ->  | L7: =IF(INFO!B$8>7,LARGE('Clb Q (2)'!I$3:I$7,4),"") -> 
B8: =VLOOKUP(F8,'Clb Q (2)'!A$3:G$7,2,0) -> BRIAND Ptrick | C8: =VLOOKUP(F8,'Clb Q (2)'!A$3:G$7,3,0) -> 83 | D8: =VLOOKUP(F8,'Clb Q (2)'!A$3:G$7,4,0) -> 74 | E8: =VLOOKUP(F8,'Clb Q (2)'!A$3:G$7,5,0) -> 77 | F8: =LARGE('Clb Q (2)'!A$3:A$7,5) -> 234.0000077 | H8: =IF(INFO!B$8>7,VLOOKUP(L8,'Clb Q (2)'!I$3:O$7,2,0),"") ->  | I8: =IF(INFO!B$8>7,VLOOKUP(L8,'Clb Q (2)'!I$3:O$7,3,0),"") ->  | J8: =IF(INFO!B$8>7,VLOOKUP(L8,'Clb Q (2)'!I$3:O$7,4,0),"") ->  | K8: =IF(INFO!B$8>7,VLOOKUP(L8,'Clb Q (2)'!I$3:O$7,5,0),"") ->  | L8: =IF(INFO!B$8>7,LARGE('Clb Q (2)'!I$3:I$7,5),"") -> 
B10: CLUB N°2 | C10: ='Clb Q (2)'!C9 -> PONS A.P.T.S | F10: ='Clb Q (2)'!F9 -> 1278 | H10: =IF(INFO!B8>6,"CLUB N°7","") ->  | I10: =IF(INFO!B8>6,'Clb Q (2)'!K9,"") ->  | L10: =IF(INFO!B8>6,'Clb Q (2)'!N9,"") -> 
B11: NOMS | C11: série 1 | D11: série 2 | E11: série 3 | F11: POINTS | H11: NOMS | I11: série 1 | J11: série 2 | K11: série 3 | L11: POINTS
B12: =VLOOKUP(F12,'Clb Q (2)'!A$11:G$15,2,0) -> BERNARD Kevin | C12: =VLOOKUP(F12,'Clb Q (2)'!A$11:G$15,3,0) -> 89 | D12: =VLOOKUP(F12,'Clb Q (2)'!A$11:G$15,4,0) -> 90 | E12: =VLOOKUP(F12,'Clb Q (2)'!A$11:G$15,5,0) -> 91 | F12: =LARGE('Clb Q (2)'!A$11:A$15,1) -> 270.0000091 | H12: =IF(INFO!B$8>6,VLOOKUP(L12,'Clb Q (2)'!I$11:O$15,2,0),"") ->  | I12: =IF(INFO!B$8>6,VLOOKUP(L12,'Clb Q (2)'!I$11:O$15,3,0),"") ->  | J12: =IF(INFO!B$8>6,VLOOKUP(L12,'Clb Q (2)'!I$11:O$15,4,0),"") ->  | K12: =IF(INFO!B$8>6,VLOOKUP(L12,'Clb Q (2)'!I$11:O$15,5,0),"") ->  | L12: =IF(INFO!B$8>6,LARGE('Clb Q (2)'!I$11:I$15,1),"") -> 
B13: =VLOOKUP(F13,'Clb Q (2)'!A$11:G$15,2,0) -> POULLY Pascal | C13: =VLOOKUP(F13,'Clb Q (2)'!A$11:G$15,3,0) -> 84 | D13: =VLOOKUP(F13,'Clb Q (2)'!A$11:G$15,4,0) -> 86 | E13: =VLOOKUP(F13,'Clb Q (2)'!A$11:G$15,5,0) -> 89 | F13: =LARGE('Clb Q (2)'!A$11:A$15,2) -> 259.0000089 | H13: =IF(INFO!B$8>6,VLOOKUP(L13,'Clb Q (2)'!I$11:O$15,2,0),"") ->  | I13: =IF(INFO!B$8>6,VLOOKUP(L13,'Clb Q (2)'!I$11:O$15,3,0),"") ->  | J13: =IF(INFO!B$8>6,VLOOKUP(L13,'Clb Q (2)'!I$11:O$15,4,0),"") ->  | K13: =IF(INFO!B$8>6,VLOOKUP(L13,'Clb Q (2)'!I$11:O$15,5,0),"") ->  | L13: =IF(INFO!B$8>6,LARGE('Clb Q (2)'!I$11:I$15,2),"") -> 
B14: =VLOOKUP(F14,'Clb Q (2)'!A$11:G$15,2,0) -> ROUSSEAU Valérie | C14: =VLOOKUP(F14,'Clb Q (2)'!A$11:G$15,3,0) -> 83 | D14: =VLOOKUP(F14,'Clb Q (2)'!A$11:G$15,4,0) -> 82 | E14: =VLOOKUP(F14,'Clb Q (2)'!A$11:G$15,5,0) -> 92 | F14: =LARGE('Clb Q (2)'!A$11:A$15,3) -> 257.0000092 | H14: =IF(INFO!B$8>6,VLOOKUP(L14,'Clb Q (2)'!I$11:O$15,2,0),"") ->  | I14: =IF(INFO!B$8>6,VLOOKUP(L14,'Clb Q (2)'!I$11:O$15,3,0),"") ->  | J14: =IF(INFO!B$8>6,VLOOKUP(L14,'Clb Q (2)'!I$11:O$15,4,0),"") ->  | K14: =IF(INFO!B$8>6,VLOOKUP(L14,'Clb Q (2)'!I$11:O$15,5,0),"") ->  | L14: =IF(INFO!B$8>6,LARGE('Clb Q (2)'!I$11:I$15,3),"") -> 
B15: =VLOOKUP(F15,'Clb Q (2)'!A$11:G$15,2,0) -> ROUSSEAU Thierry | C15: =VLOOKUP(F15,'Clb Q (2)'!A$11:G$15,3,0) -> 87 | D15: =VLOOKUP(F15,'Clb Q (2)'!A$11:G$15,4,0) -> 83 | E15: =VLOOKUP(F15,'Clb Q (2)'!A$11:G$15,5,0) -> 85 | F15: =LARGE('Clb Q (2)'!A$11:A$15,4) -> 255.0000085 | H15: =IF(INFO!B$8>6,VLOOKUP(L15,'Clb Q (2)'!I$11:O$15,2,0),"") ->  | I15: =IF(INFO!B$8>6,VLOOKUP(L15,'Clb Q (2)'!I$11:O$15,3,0),"") ->  | J15: =IF(INFO!B$8>6,VLOOKUP(L15,'Clb Q (2)'!I$11:O$15,4,0),"") ->  | K15: =IF(INFO!B$8>6,VLOOKUP(L15,'Clb Q (2)'!I$11:O$15,5,0),"") ->  | L15: =IF(INFO!B$8>6,LARGE('Clb Q (2)'!I$11:I$15,4),"") -> 
B16: =VLOOKUP(F16,'Clb Q (2)'!A$11:G$15,2,0) -> DEBAIN Nathalie | C16: =VLOOKUP(F16,'Clb Q (2)'!A$11:G$15,3,0) -> 80 | D16: =VLOOKUP(F16,'Clb Q (2)'!A$11:G$15,4,0) -> 82 | E16: =VLOOKUP(F16,'Clb Q (2)'!A$11:G$15,5,0) -> 75 | F16: =LARGE('Clb Q (2)'!A$11:A$15,5) -> 237.0000075 | H16: =IF(INFO!B$8>6,VLOOKUP(L16,'Clb Q (2)'!I$11:O$15,2,0),"") ->  | I16: =IF(INFO!B$8>6,VLOOKUP(L16,'Clb Q (2)'!I$11:O$15,3,0),"") ->  | J16: =IF(INFO!B$8>6,VLOOKUP(L16,'Clb Q (2)'!I$11:O$15,4,0),"") ->  | K16: =IF(INFO!B$8>6,VLOOKUP(L16,'Clb Q (2)'!I$11:O$15,5,0),"") ->  | L16: =IF(INFO!B$8>6,LARGE('Clb Q (2)'!I$11:I$15,5),"") -> 
B18: =IF(INFO!B8>2,"CLUB N°3","") -> CLUB N°3 | C18: =IF(INFO!B8>2,'Clb Q (2)'!C17,"") -> JONZAC S.J.T | F18: =IF(INFO!B8>2,'Clb Q (2)'!F17,"") -> 1268 | H18: =IF(INFO!B8>5,"CLUB N°6","") ->  | I18: =IF(INFO!B8>5,'Clb Q (2)'!K17,"") ->  | L18: =IF(INFO!B8>5,'Clb Q (2)'!N17,"") -> 
B19: NOMS | C19: série 1 | D19: série 2 | E19: série 3 | F19: POINTS | H19: NOMS | I19: série 1 | J19: série 2 | K19: série 3 | L19: POINTS
B20: =IF(INFO!B$8>2,VLOOKUP(F20,'Clb Q (2)'!A$19:G$23,2,0),"") -> ACHTOUK Kenza | C20: =IF(INFO!B$8>2,VLOOKUP(F20,'Clb Q (2)'!A$19:G$23,3,0),"") -> 92 | D20: =IF(INFO!B$8>2,VLOOKUP(F20,'Clb Q (2)'!A$19:G$23,4,0),"") -> 92 | E20: =IF(INFO!B$8>2,VLOOKUP(F20,'Clb Q (2)'!A$19:G$23,5,0),"") -> 88 | F20: =IF(INFO!B$8>2,LARGE('Clb Q (2)'!A$19:A$23,1),"") -> 272.0000088 | H20: =IF(INFO!B$8>5,VLOOKUP(L20,'Clb Q (2)'!I$19:O$23,2,0),"") ->  | I20: =IF(INFO!B$8>5,VLOOKUP(L20,'Clb Q (2)'!I$19:O$23,3,0),"") ->  | J20: =IF(INFO!B$8>5,VLOOKUP(L20,'Clb Q (2)'!I$19:O$23,4,0),"") ->  | K20: =IF(INFO!B$8>5,VLOOKUP(L20,'Clb Q (2)'!I$19:O$23,5,0),"") ->  | L20: =IF(INFO!B$8>5,LARGE('Clb Q (2)'!I$19:I$23,1),"") -> 
B21: =IF(INFO!B$8>2,VLOOKUP(F21,'Clb Q (2)'!A$19:G$23,2,0),"") -> CORMELIER Hervé | C21: =IF(INFO!B$8>2,VLOOKUP(F21,'Clb Q (2)'!A$19:G$23,3,0),"") -> 91 | D21: =IF(INFO!B$8>2,VLOOKUP(F21,'Clb Q (2)'!A$19:G$23,4,0),"") -> 88 | E21: =IF(INFO!B$8>2,VLOOKUP(F21,'Clb Q (2)'!A$19:G$23,5,0),"") -> 83 | F21: =IF(INFO!B$8>2,LARGE('Clb Q (2)'!A$19:A$23,2),"") -> 262.0000083 | H21: =IF(INFO!B$8>5,VLOOKUP(L21,'Clb Q (2)'!I$19:O$23,2,0),"") ->  | I21: =IF(INFO!B$8>5,VLOOKUP(L21,'Clb Q (2)'!I$19:O$23,3,0),"") ->  | J21: =IF(INFO!B$8>5,VLOOKUP(L21,'Clb Q (2)'!I$19:O$23,4,0),"") ->  | K21: =IF(INFO!B$8>5,VLOOKUP(L21,'Clb Q (2)'!I$19:O$23,5,0),"") ->  | L21: =IF(INFO!B$8>5,LARGE('Clb Q (2)'!I$19:I$23,2),"") -> 
B22: =IF(INFO!B$8>2,VLOOKUP(F22,'Clb Q (2)'!A$19:G$23,2,0),"") -> ARRIGONI Stéphane | C22: =IF(INFO!B$8>2,VLOOKUP(F22,'Clb Q (2)'!A$19:G$23,3,0),"") -> 80 | D22: =IF(INFO!B$8>2,VLOOKUP(F22,'Clb Q (2)'!A$19:G$23,4,0),"") -> 81 | E22: =IF(INFO!B$8>2,VLOOKUP(F22,'Clb Q (2)'!A$19:G$23,5,0),"") -> 89 | F22: =IF(INFO!B$8>2,LARGE('Clb Q (2)'!A$19:A$23,3),"") -> 250.0000089 | H22: =IF(INFO!B$8>5,VLOOKUP(L22,'Clb Q (2)'!I$19:O$23,2,0),"") ->  | I22: =IF(INFO!B$8>5,VLOOKUP(L22,'Clb Q (2)'!I$19:O$23,3,0),"") ->  | J22: =IF(INFO!B$8>5,VLOOKUP(L22,'Clb Q (2)'!I$19:O$23,4,0),"") ->  | K22: =IF(INFO!B$8>5,VLOOKUP(L22,'Clb Q (2)'!I$19:O$23,5,0),"") ->  | L22: =IF(INFO!B$8>5,LARGE('Clb Q (2)'!I$19:I$23,3),"") -> 
B23: =IF(INFO!B$8>2,VLOOKUP(F23,'Clb Q (2)'!A$19:G$23,2,0),"") -> GIOVANNONE Philippe | C23: =IF(INFO!B$8>2,VLOOKUP(F23,'Clb Q (2)'!A$19:G$23,3,0),"") -> 84 | D23: =IF(INFO!B$8>2,VLOOKUP(F23,'Clb Q (2)'!A$19:G$23,4,0),"") -> 80 | E23: =IF(INFO!B$8>2,VLOOKUP(F23,'Clb Q (2)'!A$19:G$23,5,0),"") -> 83 | F23: =IF(INFO!B$8>2,LARGE('Clb Q (2)'!A$19:A$23,4),"") -> 247.0000083 | H23: =IF(INFO!B$8>5,VLOOKUP(L23,'Clb Q (2)'!I$19:O$23,2,0),"") ->  | I23: =IF(INFO!B$8>5,VLOOKUP(L23,'Clb Q (2)'!I$19:O$23,3,0),"") ->  | J23: =IF(INFO!B$8>5,VLOOKUP(L23,'Clb Q (2)'!I$19:O$23,4,0),"") ->  | K23: =IF(INFO!B$8>5,VLOOKUP(L23,'Clb Q (2)'!I$19:O$23,5,0),"") ->  | L23: =IF(INFO!B$8>5,LARGE('Clb Q (2)'!I$19:I$23,4),"") -> 
B24: =IF(INFO!B$8>2,VLOOKUP(F24,'Clb Q (2)'!A$19:G$23,2,0),"") -> SOURIS Christine | C24: =IF(INFO!B$8>2,VLOOKUP(F24,'Clb Q (2)'!A$19:G$23,3,0),"") -> 81 | D24: =IF(INFO!B$8>2,VLOOKUP(F24,'Clb Q (2)'!A$19:G$23,4,0),"") -> 75 | E24: =IF(INFO!B$8>2,VLOOKUP(F24,'Clb Q (2)'!A$19:G$23,5,0),"") -> 81 | F24: =IF(INFO!B$8>2,LARGE('Clb Q (2)'!A$19:A$23,5),"") -> 237.0000081 | H24: =IF(INFO!B$8>5,VLOOKUP(L24,'Clb Q (2)'!I$19:O$23,2,0),"") ->  | I24: =IF(INFO!B$8>5,VLOOKUP(L24,'Clb Q (2)'!I$19:O$23,3,0),"") ->  | J24: =IF(INFO!B$8>5,VLOOKUP(L24,'Clb Q (2)'!I$19:O$23,4,0),"") ->  | K24: =IF(INFO!B$8>5,VLOOKUP(L24,'Clb Q (2)'!I$19:O$23,5,0),"") ->  | L24: =IF(INFO!B$8>5,LARGE('Clb Q (2)'!I$19:I$23,5),"") -> 
B26: =IF(INFO!B8>3,"CLUB N°4","") -> CLUB N°4 | C26: =IF(INFO!B8>3,'Clb Q (2)'!C25,"") -> SAINTES S.S.T | F26: =IF(INFO!B8>3,'Clb Q (2)'!F25,"") -> 1142 | H26: =IF(INFO!B8>4,"CLUB N°5","") ->  | I26: =IF(INFO!B8>4,'Clb Q (2)'!K25,"") ->  | L26: =IF(INFO!B8>4,'Clb Q (2)'!N25,"") -> 
B27: NOMS | C27: série 1 | D27: série 2 | E27: série 3 | F27: POINTS | H27: NOMS | I27: série 1 | J27: série 2 | K27: série 3 | L27: POINTS
B28: =IF(INFO!B$8>3,VLOOKUP(F28,'Clb Q (2)'!A$27:G$31,2,0),"") -> FLEURET Eric | C28: =IF(INFO!B$8>3,VLOOKUP(F28,'Clb Q (2)'!A$27:G$31,3,0),"") -> 92 | D28: =IF(INFO!B$8>3,VLOOKUP(F28,'Clb Q (2)'!A$27:G$31,4,0),"") -> 90 | E28: =IF(INFO!B$8>3,VLOOKUP(F28,'Clb Q (2)'!A$27:G$31,5,0),"") -> 91 | F28: =IF(INFO!B$8>3,LARGE('Clb Q (2)'!A$27:A$31,1),"") -> 273.0000091 | H28: =IF(INFO!B$8>4,VLOOKUP(L28,'Clb Q (2)'!I$27:O$31,2,0),"") ->  | I28: =IF(INFO!B$8>4,VLOOKUP(L28,'Clb Q (2)'!I$27:O$31,3,0),"") ->  | J28: =IF(INFO!B$8>4,VLOOKUP(L28,'Clb Q (2)'!I$27:O$31,4,0),"") ->  | K28: =IF(INFO!B$8>4,VLOOKUP(L28,'Clb Q (2)'!I$27:O$31,5,0),"") ->  | L28: =IF(INFO!B$8>4,LARGE('Clb Q (2)'!I$27:I$31,1),"") -> 
B29: =IF(INFO!B$8>3,VLOOKUP(F29,'Clb Q (2)'!A$27:G$31,2,0),"") -> JACQUES Christophe | C29: =IF(INFO!B$8>3,VLOOKUP(F29,'Clb Q (2)'!A$27:G$31,3,0),"") -> 89 | D29: =IF(INFO!B$8>3,VLOOKUP(F29,'Clb Q (2)'!A$27:G$31,4,0),"") -> 88 | E29: =IF(INFO!B$8>3,VLOOKUP(F29,'Clb Q (2)'!A$27:G$31,5,0),"") -> 88 | F29: =IF(INFO!B$8>3,LARGE('Clb Q (2)'!A$27:A$31,2),"") -> 265.0000088 | H29: =IF(INFO!B$8>4,VLOOKUP(L29,'Clb Q (2)'!I$27:O$31,2,0),"") ->  | I29: =IF(INFO!B$8>4,VLOOKUP(L29,'Clb Q (2)'!I$27:O$31,3,0),"") ->  | J29: =IF(INFO!B$8>4,VLOOKUP(L29,'Clb Q (2)'!I$27:O$31,4,0),"") ->  | K29: =IF(INFO!B$8>4,VLOOKUP(L29,'Clb Q (2)'!I$27:O$31,5,0),"") ->  | L29: =IF(INFO!B$8>4,LARGE('Clb Q (2)'!I$27:I$31,2),"") -> 
B30: =IF(INFO!B$8>3,VLOOKUP(F30,'Clb Q (2)'!A$27:G$31,2,0),"") -> SOULIER Jean | C30: =IF(INFO!B$8>3,VLOOKUP(F30,'Clb Q (2)'!A$27:G$31,3,0),"") -> 81 | D30: =IF(INFO!B$8>3,VLOOKUP(F30,'Clb Q (2)'!A$27:G$31,4,0),"") -> 84 | E30: =IF(INFO!B$8>3,VLOOKUP(F30,'Clb Q (2)'!A$27:G$31,5,0),"") -> 83 | F30: =IF(INFO!B$8>3,LARGE('Clb Q (2)'!A$27:A$31,3),"") -> 248.0000083 | H30: =IF(INFO!B$8>4,VLOOKUP(L30,'Clb Q (2)'!I$27:O$31,2,0),"") ->  | I30: =IF(INFO!B$8>4,VLOOKUP(L30,'Clb Q (2)'!I$27:O$31,3,0),"") ->  | J30: =IF(INFO!B$8>4,VLOOKUP(L30,'Clb Q (2)'!I$27:O$31,4,0),"") ->  | K30: =IF(INFO!B$8>4,VLOOKUP(L30,'Clb Q (2)'!I$27:O$31,5,0),"") ->  | L30: =IF(INFO!B$8>4,LARGE('Clb Q (2)'!I$27:I$31,3),"") -> 
B31: =IF(INFO!B$8>3,VLOOKUP(F31,'Clb Q (2)'!A$27:G$31,2,0),"") -> BOIN Bertrand | C31: =IF(INFO!B$8>3,VLOOKUP(F31,'Clb Q (2)'!A$27:G$31,3,0),"") -> 71 | D31: =IF(INFO!B$8>3,VLOOKUP(F31,'Clb Q (2)'!A$27:G$31,4,0),"") -> 75 | E31: =IF(INFO!B$8>3,VLOOKUP(F31,'Clb Q (2)'!A$27:G$31,5,0),"") -> 79 | F31: =IF(INFO!B$8>3,LARGE('Clb Q (2)'!A$27:A$31,4),"") -> 225.0000079 | H31: =IF(INFO!B$8>4,VLOOKUP(L31,'Clb Q (2)'!I$27:O$31,2,0),"") ->  | I31: =IF(INFO!B$8>4,VLOOKUP(L31,'Clb Q (2)'!I$27:O$31,3,0),"") ->  | J31: =IF(INFO!B$8>4,VLOOKUP(L31,'Clb Q (2)'!I$27:O$31,4,0),"") ->  | K31: =IF(INFO!B$8>4,VLOOKUP(L31,'Clb Q (2)'!I$27:O$31,5,0),"") ->  | L31: =IF(INFO!B$8>4,LARGE('Clb Q (2)'!I$27:I$31,4),"") -> 
B32: =IF(INFO!B$8>3,VLOOKUP(F32,'Clb Q (2)'!A$27:G$31,2,0),"") -> RABAT Catherine | C32: =IF(INFO!B$8>3,VLOOKUP(F32,'Clb Q (2)'!A$27:G$31,3,0),"") -> 52 | D32: =IF(INFO!B$8>3,VLOOKUP(F32,'Clb Q (2)'!A$27:G$31,4,0),"") -> 46 | E32: =IF(INFO!B$8>3,VLOOKUP(F32,'Clb Q (2)'!A$27:G$31,5,0),"") -> 33 | F32: =IF(INFO!B$8>3,LARGE('Clb Q (2)'!A$27:A$31,5),"") -> 131.0000033 | H32: =IF(INFO!B$8>4,VLOOKUP(L32,'Clb Q (2)'!I$27:O$31,2,0),"") ->  | I32: =IF(INFO!B$8>4,VLOOKUP(L32,'Clb Q (2)'!I$27:O$31,3,0),"") ->  | J32: =IF(INFO!B$8>4,VLOOKUP(L32,'Clb Q (2)'!I$27:O$31,4,0),"") ->  | K32: =IF(INFO!B$8>4,VLOOKUP(L32,'Clb Q (2)'!I$27:O$31,5,0),"") ->  | L32: =IF(INFO!B$8>4,LARGE('Clb Q (2)'!I$27:I$31,5),"") -> 

Sheet P.F.
B2: =CONCATENATE(INFO!B7," - ",INFO!B9) -> PISTOLET - POITOU-CHARENTES
B4: 1er TOUR 1/4 FINALES 2e TOUR
C5: ='Clb Q'!C2 -> ROCHEFORT T.S.R | F5: POSTE | H5: ='Clb Q'!I2 ->  | M5: ='Clb Q'!C18 -> JONZAC S.J.T | P5: POSTE | R5: ='Clb Q'!I18 -> 
C6: ='Clb Q'!B4 -> BERGOGNE Cyril | F6: 1 | G6: 2 | H6: ='Clb Q'!H4 ->  | M6: ='Clb Q'!B20 -> ACHTOUK Kenza | P6: 1 | Q6: 2 | R6: ='Clb Q'!H20 -> 
C7: ='Clb Q'!B5 -> MERCIER Mickael | F7: 3 | G7: 4 | H7: ='Clb Q'!H5 ->  | M7: ='Clb Q'!B21 -> CORMELIER Hervé | P7: 3 | Q7: 4 | R7: ='Clb Q'!H21 -> 
C8: ='Clb Q'!B6 -> BAUDET Philippe | F8: 5 | G8: 6 | H8: ='Clb Q'!H6 ->  | M8: ='Clb Q'!B22 -> ARRIGONI Stéphane | P8: 5 | Q8: 6 | R8: ='Clb Q'!H22 -> 
C9: ='Clb Q'!B7 -> MERCIER Rémy | F9: 7 | G9: 8 | H9: ='Clb Q'!H7 ->  | M9: ='Clb Q'!B23 -> GIOVANNONE Philippe | P9: 7 | Q9: 8 | R9: ='Clb Q'!H23 -> 
C10: ='Clb Q'!B8 -> BRIAND Ptrick | F10: 9 | G10: 10 | H10: ='Clb Q'!H8 ->  | M10: ='Clb Q'!B24 -> SOURIS Christine | P10: 9 | Q10: 10 | R10: ='Clb Q'!H24 -> 
B11: =IF(E11="","",IF(E11>2,1,0)) ->  | C11: =IF(E11="","",SUM(B11:B17)) ->  | I11: =IF(H11="","",SUM(K11:K17)) ->  | K11: =IF(H11="","",IF(H11>2,1,0)) ->  | L11: =IF(O11="","",IF(O11>2,1,0)) -> 1 | M11: =IF(O11="","",SUM(L11:L17)) -> 4 | O11: 5 | S11: =IF(R11="","",SUM(U11:U17)) ->  | U11: =IF(R11="","",IF(R11>2,1,0)) -> 
B12: =IF(E12="","",IF(E12>2,1,0)) ->  | K12: =IF(H12="","",IF(H12>2,1,0)) ->  | L12: =IF(O12="","",IF(O12>2,1,0)) -> 1 | O12: 5
L13: 1 | O13: 5
L14: 1 | O14: 5
C19: ='Clb Q'!I26 ->  | F19: POSTE | H19: ='Clb Q'!C26 -> SAINTES S.S.T | M19: ='Clb Q'!I10 ->  | P19: POSTE | R19: ='Clb Q'!C10 -> PONS A.P.T.S
C20: ='Clb Q'!H28 ->  | F20: 11 | G20: 12 | H20: ='Clb Q'!B28 -> FLEURET Eric | M20: ='Clb Q'!H12 ->  | P20: 11 | Q20: 12 | R20: ='Clb Q'!B12 -> BERNARD Kevin
C21: ='Clb Q'!H29 ->  | F21: 13 | G21: 14 | H21: ='Clb Q'!B29 -> JACQUES Christophe | M21: ='Clb Q'!H13 ->  | P21: 13 | Q21: 14 | R21: ='Clb Q'!B13 -> POULLY Pascal
C22: ='Clb Q'!H30 ->  | F22: 15 | G22: 16 | H22: ='Clb Q'!B30 -> SOULIER Jean | M22: ='Clb Q'!H14 ->  | P22: 15 | Q22: 16 | R22: ='Clb Q'!B14 -> ROUSSEAU Valérie
C23: ='Clb Q'!H31 ->  | F23: 17 | G23: 18 | H23: ='Clb Q'!B31 -> BOIN Bertrand | M23: ='Clb Q'!H15 ->  | P23: 17 | Q23: 18 | R23: ='Clb Q'!B15 -> ROUSSEAU Thierry
C24: ='Clb Q'!H32 ->  | F24: 19 | G24: 20 | H24: ='Clb Q'!B32 -> RABAT Catherine | M24: ='Clb Q'!H16 ->  | P24: 19 | Q24: 20 | R24: ='Clb Q'!B16 -> DEBAIN Nathalie
B25: =IF(E25="","",IF(E25>2,1,0)) ->  | C25: =IF(E25="","",SUM(B25:B31)) ->  | I25: =IF(H25="","",SUM(K25:K31)) ->  | K25: =IF(H25="","",IF(H25>2,1,0)) ->  | L25: =IF(O25="","",IF(O25>2,1,0)) -> 0 | M25: =IF(O25="","",SUM(L25:L31)) -> 0 | O25: 0 | S25: =IF(R25="","",SUM(U25:U31)) ->  | U25: =IF(R25="","",IF(R25>2,1,0)) -> 
B26: =IF(E26="","",IF(E26>2,1,0)) ->  | K26: =IF(H26="","",IF(H26>2,1,0)) ->  | L26: =IF(O26="","",IF(O26>2,1,0)) -> 0 | O26: 0 | U26: =IF(R26="","",IF(R26>2,1,0)) -> 
L27: 0 | O27: 0
L28: 0 | O28: 0
B34: DEMI-FINALES
C35: =IF(H5="",C5,IF(C11="","",IF(I11="","",IF(C11>3,C5,IF(I11>3,H5,""))))) -> ROCHEFORT T.S.R | F35: POSTE | H35: =IF(C19="",H19,IF(C25="","",IF(I25="","",IF(C25>3,C19,IF(I25>3,H19,""))))) -> SAINTES S.S.T | M35: =IF(R5="",M5,IF(M11="","",IF(S11="","",IF(M11>3,M5,IF(S11>3,R5,""))))) -> JONZAC S.J.T | P35: POSTE | R35: =IF(M19="",R19,IF(M25="","",IF(S25="","",IF(M25>3,M19,IF(S25>3,R19,""))))) -> PONS A.P.T.S
C36: =IF(H6="",C6,IF(C11="","",IF(I11="","",IF(C11>3,C6,IF(I11>3,H6,""))))) -> BERGOGNE Cyril | F36: 2 | G36: 3 | H36: =IF(C20="",H20,IF(C25="","",IF(I25="","",IF(C25>3,C20,IF(I25>3,H20,""))))) -> FLEURET Eric | M36: =IF(R6="",M6,IF(M11="","",IF(S11="","",IF(M11>3,M6,IF(S11>3,R6,""))))) -> ACHTOUK Kenza | P36: 12 | Q36: 13 | R36: =IF(M20="",R20,IF(M25="","",IF(S25="","",IF(M25>3,M20,IF(S25>3,R20,""))))) -> BERNARD Kevin
C37: =IF(H7="",C7,IF(C11="","",IF(I11="","",IF(C11>3,C7,IF(I11>3,H7,""))))) -> MERCIER Mickael | F37: 4 | G37: 5 | H37: =IF(C21="",H21,IF(C25="","",IF(I25="","",IF(C25>3,C21,IF(I25>3,H21,""))))) -> JACQUES Christophe | M37: =IF(R7="",M7,IF(M11="","",IF(S11="","",IF(M11>3,M7,IF(S11>3,R7,""))))) -> CORMELIER Hervé | P37: 14 | Q37: 15 | R37: =IF(M21="",R21,IF(M25="","",IF(S25="","",IF(M25>3,M21,IF(S25>3,R21,""))))) -> POULLY Pascal
C38: =IF(H8="",C8,IF(C11="","",IF(I11="","",IF(C11>3,C8,IF(I11>3,H8,""))))) -> BAUDET Philippe | F38: 6 | G38: 7 | H38: =IF(C22="",H22,IF(C25="","",IF(I25="","",IF(C25>3,C22,IF(I25>3,H22,""))))) -> SOULIER Jean | M38: =IF(R8="",M8,IF(M11="","",IF(S11="","",IF(M11>3,M8,IF(S11>3,R8,""))))) -> ARRIGONI Stéphane | P38: 16 | Q38: 17 | R38: =IF(M22="",R22,IF(M25="","",IF(S25="","",IF(M25>3,M22,IF(S25>3,R22,""))))) -> ROUSSEAU Valérie
C39: =IF(H9="",C9,IF(C11="","",IF(I11="","",IF(C11>3,C9,IF(I11>3,H9,""))))) -> MERCIER Rémy | F39: 8 | G39: 9 | H39: =IF(C23="",H23,IF(C25="","",IF(I25="","",IF(C25>3,C23,IF(I25>3,H23,""))))) -> BOIN Bertrand | M39: =IF(R9="",M9,IF(M11="","",IF(S11="","",IF(M11>3,M9,IF(S11>3,R9,""))))) -> GIOVANNONE Philippe | P39: 18 | Q39: 19 | R39: =IF(M23="",R23,IF(M25="","",IF(S25="","",IF(M25>3,M23,IF(S25>3,R23,""))))) -> ROUSSEAU Thierry
C40: =IF(H10="",C10,IF(C11="","",IF(I11="","",IF(C11>3,C10,IF(I11>3,H10,""))))) -> BRIAND Ptrick | F40: 10 | G40: 11 | H40: =IF(C24="",H24,IF(C25="","",IF(I25="","",IF(C25>3,C24,IF(I25>3,H24,""))))) -> RABAT Catherine | M40: =IF(R10="",M10,IF(M11="","",IF(S11="","",IF(M11>3,M10,IF(S11>3,R10,""))))) -> SOURIS Christine | P40: 20 | Q40: 21 | R40: =IF(M24="",R24,IF(M25="","",IF(S25="","",IF(M25>3,M24,IF(S25>3,R24,""))))) -> DEBAIN Nathalie
B41: =IF(E41="","",IF(E41>2,1,0)) -> 1 | C41: =IF(E41="","",SUM(B41:B47)) -> 4 | E41: 4 | H41: 1 | I41: =IF(H41="","",SUM(K41:K47)) -> 1 | K41: =IF(H41="","",IF(H41>2,1,0)) -> 0 | L41: =IF(O41="","",IF(O41>2,1,0)) -> 1 | M41: =IF(O41="","",SUM(L41:L47)) -> 1 | O41: 5 | R41: 0 | S41: =IF(R41="","",SUM(U41:U47)) -> 4 | U41: =IF(R41="","",IF(R41>2,1,0)) -> 0
B42: =IF(E42="","",IF(E42>2,1,0)) -> 1 | E42: 3 | H42: 2 | K42: =IF(H42="","",IF(H42>2,1,0)) -> 0 | L42: =IF(O42="","",IF(O42>2,1,0)) -> 0 | O42: 2 | R42: 3 | U42: =IF(R42="","",IF(R42>2,1,0)) -> 1
B43: 1 | E43: 3 | H43: 2 | K43: 0 | L43: 0 | O43: 2 | R43: 3 | U43: 1
B44: 0 | E44: 2 | H44: 3 | K44: 1 | L44: 0 | O44: 2 | R44: 3 | U44: 1
B45: 1 | E45: 5 | H45: 0 | K45: 0 | L45: 0 | O45: 1 | R45: 4 | U45: 1
H50: PETITE FINALE
H51: =IF(C41="","",IF(I41="","",IF(C41>3,H35,IF(I41>3,C35,"")))) -> SAINTES S.S.T | K51: POSTE | M51: =IF(M41="","",IF(S41="","",IF(M41>3,R35,IF(S41>3,M35,"")))) -> JONZAC S.J.T
H52: =IF(C41="","",IF(I41="","",IF(C41>3,H36,IF(I41>3,C36,"")))) -> FLEURET Eric | K52: 2 | L52: 3 | M52: =IF(M41="","",IF(S41="","",IF(M41>3,R36,IF(S41>3,M36,"")))) -> ACHTOUK Kenza
H53: =IF(C41="","",IF(I41="","",IF(C41>3,H37,IF(I41>3,C37,"")))) -> JACQUES Christophe | K53: 4 | L53: 5 | M53: =IF(M41="","",IF(S41="","",IF(M41>3,R37,IF(S41>3,M37,"")))) -> CORMELIER Hervé
H54: =IF(C41="","",IF(I41="","",IF(C41>3,H38,IF(I41>3,C38,"")))) -> SOULIER Jean | K54: 6 | L54: 7 | M54: =IF(M41="","",IF(S41="","",IF(M41>3,R38,IF(S41>3,M38,"")))) -> ARRIGONI Stéphane
H55: =IF(C41="","",IF(I41="","",IF(C41>3,H39,IF(I41>3,C39,"")))) -> BOIN Bertrand | K55: 8 | L55: 9 | M55: =IF(M41="","",IF(S41="","",IF(M41>3,R39,IF(S41>3,M39,"")))) -> GIOVANNONE Philippe
H56: =IF(C41="","",IF(I41="","",IF(C41>3,H40,IF(I41>3,C40,"")))) -> RABAT Catherine | K56: 10 | L56: 11 | M56: =IF(M41="","",IF(S41="","",IF(M41>3,R40,IF(S41>3,M40,"")))) -> SOURIS Christine
G57: =IF(J57="","",IF(J57>2,1,0)) -> 1 | H57: =IF(J57="","",SUM(G57:G63)) -> 4 | J57: 4 | M57: 1 | N57: =IF(H35="",IF(M51="","",4),IF(M57="","",SUM(P57:P63))) -> 3 | P57: =IF(M57="","",IF(M57>2,1,0)) -> 0
G58: =IF(J58="","",IF(J58>2,1,0)) -> 1 | J58: 3 | M58: 2 | P58: =IF(M58="","",IF(M58>2,1,0)) -> 0
G59: 1 | J59: 5 | M59: 0 | P59: 0
G60: 0 | J60: 0 | M60: 5 | P60: 1
G61: 0 | J61: 1 | M61: 4 | P61: 1
G62: 0 | J62: 2 | M62: 3 | P62: 1
G63: 1 | J63: 3 | M63: 2 | P63: 0
H64: FINALE
H65: =IF(H35="",C35,IF(C41="","",IF(I41="","",IF(C41>3,C35,IF(I41>3,H35,""))))) -> ROCHEFORT T.S.R | K65: POSTE | M65: =IF(M35="",R35,IF(M41="","",IF(S41="","",IF(M41>3,M35,IF(S41>3,R35,""))))) -> PONS A.P.T.S
H66: =IF(H36="",C36,IF(C41="","",IF(I41="","",IF(C41>3,C36,IF(I41>3,H36,""))))) -> BERGOGNE Cyril | K66: 2 | L66: 3 | M66: =IF(M36="",R36,IF(M41="","",IF(S41="","",IF(M41>3,M36,IF(S41>3,R36,""))))) -> BERNARD Kevin
H67: =IF(H37="",C37,IF(C41="","",IF(I41="","",IF(C41>3,C37,IF(I41>3,H37,""))))) -> MERCIER Mickael | K67: 4 | L67: 5 | M67: =IF(M37="",R37,IF(M41="","",IF(S41="","",IF(M41>3,M37,IF(S41>3,R37,""))))) -> POULLY Pascal
H68: =IF(H38="",C38,IF(C41="","",IF(I41="","",IF(C41>3,C38,IF(I41>3,H38,""))))) -> BAUDET Philippe | K68: 6 | L68: 7 | M68: =IF(M38="",R38,IF(M41="","",IF(S41="","",IF(M41>3,M38,IF(S41>3,R38,""))))) -> ROUSSEAU Valérie
H69: =IF(H39="",C39,IF(C41="","",IF(I41="","",IF(C41>3,C39,IF(I41>3,H39,""))))) -> MERCIER Rémy | K69: 8 | L69: 9 | M69: =IF(M39="",R39,IF(M41="","",IF(S41="","",IF(M41>3,M39,IF(S41>3,R39,""))))) -> ROUSSEAU Thierry
H70: =IF(H40="",C40,IF(C41="","",IF(I41="","",IF(C41>3,C40,IF(I41>3,H40,""))))) -> BRIAND Ptrick | K70: 10 | L70: 11 | M70: =IF(M40="",R40,IF(M41="","",IF(S41="","",IF(M41>3,M40,IF(S41>3,R40,""))))) -> DEBAIN Nathalie
G71: =IF(J71="","",IF(J71>2,1,0)) -> 1 | H71: =IF(J71="","",SUM(G71:G77)) -> 4 | J71: 3 | M71: 2 | N71: =IF(M71="","",SUM(P71:P77)) -> 0 | P71: =IF(M71="","",IF(M71>2,1,0)) -> 0
G72: =IF(J72="","",IF(J72>2,1,0)) -> 1 | J72: 3 | M72: 2 | P72: =IF(M72="","",IF(M72>2,1,0)) -> 0
G73: 1 | J73: 3 | M73: 2 | P73: 0
G74: 1 | J74: 3 | M74: 2 | P74: 0

Sheet PALMARES
A1: =CONCATENATE("PALMARES"," ",INFO!B6," ","CHAMPIONNAT DE FRANCE DES CLUBS"," ","10 METRES") -> PALMARES 2021-2022 CHAMPIONNAT DE FRANCE DES CLUBS 10 METRES
A4: =CONCATENATE(INFO!B7," ",INFO!B9) -> PISTOLET POITOU-CHARENTES
A7: PLACE | B7: CLUBS | C7: LIGUE | D7: n° CLUB | E7: M Q | F7: Bar.
A8: 1 | B8: =IF(A8="","",IF(P.F.!J71="","",IF(P.F.!H71>3,P.F.!H65,IF(P.F.!N71>3,P.F.!M65,"")))) -> ROCHEFORT T.S.R | D8: =IF(A8="","",IF(B8="","",VLOOKUP(B8,'M Q'!B$7:AI$14,2,0))) -> 1717160 | E8: =IF(A8="","",IF(B8="","",VLOOKUP(B8,'M Q'!B$7:AI$14,33,0))) -> 1312 | F8: =IF(A8="","",IF(B8="","",VLOOKUP(B8,'M Q'!B$7:AI$14,34,0))) -> 0 | G8: FINALE
A9: =IF(INFO!B8>1,2,"") -> 2 | B9: =IF(A9="","",IF(P.F.!M71="","",IF(P.F.!H71>3,P.F.!M65,IF(P.F.!N71>3,P.F.!H65,"")))) -> PONS A.P.T.S | D9: =IF(A9="","",IF(B9="","",VLOOKUP(B9,'M Q'!B$7:AI$14,2,0))) -> 1717100 | E9: =IF(A9="","",IF(B9="","",VLOOKUP(B9,'M Q'!B$7:AI$14,33,0))) -> 1278 | F9: =IF(A9="","",IF(B9="","",VLOOKUP(B9,'M Q'!B$7:AI$14,34,0))) -> 0
A10: =IF(INFO!B8>2,3,"") -> 3 | B10: =IF(A10="","",IF(INFO!B8=3,P.F.!M51,IF(P.F.!J57="","",IF(P.F.!H57>3,P.F.!H51,IF(P.F.!N57>3,P.F.!M51,""))))) -> SAINTES S.S.T | D10: =IF(A10="","",IF(B10="","",VLOOKUP(B10,'M Q'!B$7:AI$14,2,0))) -> 1717031 | E10: =IF(A10="","",IF(B10="","",VLOOKUP(B10,'M Q'!B$7:AI$14,33,0))) -> 1142 | F10: =IF(A10="","",IF(B10="","",VLOOKUP(B10,'M Q'!B$7:AI$14,34,0))) -> 0 | G10: PETITE FINALE
A11: =IF(INFO!B8>3,4,"") -> 4 | B11: =IF(A11="","",IF(P.F.!M57="","",IF(P.F.!H57>3,P.F.!M51,IF(P.F.!N57>3,P.F.!H51,"")))) -> JONZAC S.J.T | D11: =IF(A11="","",IF(B11="","",VLOOKUP(B11,'M Q'!B$7:AI$14,2,0))) -> 1717165 | E11: =IF(A11="","",IF(B11="","",VLOOKUP(B11,'M Q'!B$7:AI$14,33,0))) -> 1268 | F11: =IF(A11="","",IF(B11="","",VLOOKUP(B11,'M Q'!B$7:AI$14,34,0))) -> 0 | J11: 1/4 finalistes sortants
A12: =IF(INFO!B8>4,5,"") ->  | B12: =IF(A12="","",VLOOKUP(E12,J$12:M$15,3,0)) ->  | D12: =IF(A12="","",VLOOKUP(E12,J$12:M$15,4,0)) ->  | E12: =IF(A12="","",LARGE(J12:J15,1)) ->  | F12: =IF(A12="","",IF(B12="","",VLOOKUP(B12,'M Q'!B$7:AI$14,34,0))) ->  | G12: 1 / 4 FINALES | J12: =IF(L12="",0,VLOOKUP(L12,saisie!C$7:AL$26,36,0)) -> 0 | K12: =VLOOKUP(L12,saisie!C$7:AL$26,34,0) ->  | L12: =IF(P.F.!E11="","",IF(P.F.!C11>3,P.F.!H5,IF(P.F.!I11>3,P.F.!C5,""))) ->  | M12: =VLOOKUP(L12,saisie!C$7:AL$26,2,0) -> 
A13: =IF(INFO!B8>5,6,"") ->  | B13: =IF(A13="","",VLOOKUP(E13,J$12:M$15,3,0)) ->  | D13: =IF(A13="","",VLOOKUP(E13,J$12:M$15,4,0)) ->  | E13: =IF(A13="","",LARGE(J12:J15,2)) ->  | F13: =IF(A13="","",IF(B13="","",VLOOKUP(B13,'M Q'!B$7:AI$14,34,0))) ->  | J13: =IF(L13="",0,VLOOKUP(L13,saisie!C$7:AL$26,36,0)) -> 0 | K13: =VLOOKUP(L13,saisie!C$7:AL$26,34,0) ->  | L13: =IF(P.F.!O11="","",IF(P.F.!M11>3,P.F.!R5,IF(P.F.!S11>3,P.F.!M5,""))) ->  | M13: =VLOOKUP(L13,saisie!C$7:AL$26,2,0) -> 
A14: =IF(INFO!B8>6,7,"") ->  | B14: =IF(A14="","",VLOOKUP(E14,J$12:M$15,3,0)) ->  | D14: =IF(A14="","",VLOOKUP(E14,J$12:M$15,4,0)) ->  | E14: =IF(A14="","",LARGE(J12:J15,3)) ->  | F14: =IF(A14="","",IF(B14="","",VLOOKUP(B14,'M Q'!B$7:AI$14,34,0))) ->  | J14: =IF(L14="",0,VLOOKUP(L14,saisie!C$7:AL$26,36,0)) -> 0 | K14: =VLOOKUP(L14,saisie!C$7:AL$26,34,0) ->  | L14: =IF(P.F.!H25="","",IF(P.F.!C25>3,P.F.!H19,IF(P.F.!I25>3,P.F.!C19,""))) ->  | M14: =VLOOKUP(L14,saisie!C$7:AL$26,2,0) -> 
A15: =IF(INFO!B8>7,8,"") ->  | B15: =IF(A15="","",VLOOKUP(E15,J$12:M$15,3,0)) ->  | D15: =IF(A15="","",VLOOKUP(E15,J$12:M$15,4,0)) ->  | E15: =IF(A15="","",LARGE(J12:J15,4)) ->  | F15: =IF(A15="","",IF(B15="","",VLOOKUP(B15,'M Q'!B$7:AI$14,34,0))) ->  | J15: =IF(L15="",0,VLOOKUP(L15,saisie!C$7:AL$26,36,0)) -> 0 | K15: =VLOOKUP(L15,saisie!C$7:AL$26,34,0) ->  | L15: =IF(P.F.!R25="","",IF(P.F.!M25>3,P.F.!R19,IF(P.F.!S25>3,P.F.!M19,""))) ->  | M15: =VLOOKUP(L15,saisie!C$7:AL$26,2,0) -> 
A16: =IF(INFO!B8>8,9,"") ->  | B16: =IF(A16="","",IF('M Q'!AE15="","",'M Q'!B15)) ->  | D16: =IF(A16="","",IF('M Q'!AE15="","",'M Q'!C15)) ->  | E16: =IF(A16="","",IF('M Q'!AE15="","",'M Q'!AH15)) ->  | F16: =IF(A16="","",IF('M Q'!AE15="","",'M Q'!AI15)) -> 
A17: =IF(INFO!B8>9,10,"") ->  | B17: =IF(A17="","",IF('M Q'!AE16="","",'M Q'!B16)) ->  | D17: =IF(A17="","",IF('M Q'!AE16="","",'M Q'!C16)) ->  | E17: =IF(A17="","",IF('M Q'!AE16="","",'M Q'!AH16)) ->  | F17: =IF(A17="","",IF('M Q'!AE16="","",'M Q'!AI16)) -> 
A18: =IF(INFO!B8>10,11,"") ->  | B18: =IF(A18="","",IF('M Q'!AE17="","",'M Q'!B17)) ->  | D18: =IF(A18="","",IF('M Q'!AE17="","",'M Q'!C17)) ->  | E18: =IF(A18="","",IF('M Q'!AE17="","",'M Q'!AH17)) ->  | F18: =IF(A18="","",IF('M Q'!AE17="","",'M Q'!AI17)) -> 
A19: =IF(INFO!B8>11,12,"") ->  | B19: =IF(A19="","",IF('M Q'!AE18="","",'M Q'!B18)) ->  | D19: =IF(A19="","",IF('M Q'!AE18="","",'M Q'!C18)) ->  | E19: =IF(A19="","",IF('M Q'!AE18="","",'M Q'!AH18)) ->  | F19: =IF(A19="","",IF('M Q'!AE18="","",'M Q'!AI18)) -> 
A20: =IF(INFO!B8>12,13,"") ->  | B20: =IF(A20="","",IF('M Q'!AE19="","",'M Q'!B19)) ->  | D20: =IF(A20="","",IF('M Q'!AE19="","",'M Q'!C19)) ->  | E20: =IF(A20="","",IF('M Q'!AE19="","",'M Q'!AH19)) ->  | F20: =IF(A20="","",IF('M Q'!AE19="","",'M Q'!AI19)) -> 
A21: =IF(INFO!B8>13,14,"") ->  | B21: =IF(A21="","",IF('M Q'!AE20="","",'M Q'!B20)) ->  | D21: =IF(A21="","",IF('M Q'!AE20="","",'M Q'!C20)) ->  | E21: =IF(A21="","",IF('M Q'!AE20="","",'M Q'!AH20)) ->  | F21: =IF(A21="","",IF('M Q'!AE20="","",'M Q'!AI20)) -> 
A22: =IF(INFO!B8>14,15,"") ->  | B22: =IF(A22="","",IF('M Q'!AE21="","",'M Q'!B21)) ->  | D22: =IF(A22="","",IF('M Q'!AE21="","",'M Q'!C21)) ->  | E22: =IF(A22="","",IF('M Q'!AE21="","",'M Q'!AH21)) ->  | F22: =IF(A22="","",IF('M Q'!AE21="","",'M Q'!AI21)) -> 
A23: =IF(INFO!B8>15,16,"") ->  | B23: =IF(A23="","",IF('M Q'!AE22="","",'M Q'!B22)) ->  | D23: =IF(A23="","",IF('M Q'!AE22="","",'M Q'!C22)) ->  | E23: =IF(A23="","",IF('M Q'!AE22="","",'M Q'!AH22)) ->  | F23: =IF(A23="","",IF('M Q'!AE22="","",'M Q'!AI22)) -> 
A24: =IF(INFO!B8>16,17,"") ->  | B24: =IF(A24="","",IF('M Q'!AE23="","",'M Q'!B23)) ->  | D24: =IF(A24="","",IF('M Q'!AE23="","",'M Q'!C23)) ->  | E24: =IF(A24="","",IF('M Q'!AE23="","",'M Q'!AH23)) ->  | F24: =IF(A24="","",IF('M Q'!AE23="","",'M Q'!AI23)) -> 
A25: =IF(INFO!B8>17,18,"") ->  | B25: =IF(A25="","",IF('M Q'!AE24="","",'M Q'!B24)) ->  | D25: =IF(A25="","",IF('M Q'!AE24="","",'M Q'!C24)) ->  | E25: =IF(A25="","",IF('M Q'!AE24="","",'M Q'!AH24)) ->  | F25: =IF(A25="","",IF('M Q'!AE24="","",'M Q'!AI24)) -> 
A26: =IF(INFO!B8>18,19,"") ->  | B26: =IF(A26="","",IF('M Q'!AE25="","",'M Q'!B25)) ->  | D26: =IF(A26="","",IF('M Q'!AE25="","",'M Q'!C25)) ->  | E26: =IF(A26="","",IF('M Q'!AE25="","",'M Q'!AH25)) ->  | F26: =IF(A26="","",IF('M Q'!AE25="","",'M Q'!AI25)) -> 
A27: =IF(INFO!B8>19,20,"") ->  | B27: =IF(A27="","",IF('M Q'!AE26="","",'M Q'!B26)) ->  | D27: =IF(A27="","",IF('M Q'!AE26="","",'M Q'!C26)) ->  | E27: =IF(A27="","",IF('M Q'!AE26="","",'M Q'!AH26)) ->  | F27: =IF(A27="","",IF('M Q'!AE26="","",'M Q'!AI26)) -> 
